date,department/service,beneficiary,amount,summary of purpose,category,transaction number
01.07.2017,CHIEF EXECUTIVE,CONWAY AECOM LTD,"2,654.96",CAPITAL PS (REGEN),CONSTR'N SUB CONTRACT - NON CERTIFICATED,5902257211
01.07.2017,CHIEF EXECUTIVE,CONWAY AECOM LTD,"7,860.59",CAPITAL PS (REGEN),CONSTR'N SUB CONTRACT - NON CERTIFICATED,5902257335
01.07.2017,CHIEF EXECUTIVE,CONWAY AECOM LTD,"17,015.90",CAPITAL PS (REGEN),CONSTR'N SUB CONTRACT - NON CERTIFICATED,5902257331
01.07.2017,CHIEF EXECUTIVE,CONWAY AECOM LTD,"4,262.48",CAPITAL PS (REGEN),CONSTRUCTION MAIN CONTRACT -CERTIFICATED,5902257353
01.07.2017,ENVIRONMENT AND LEISURE,CYCLEHOOP LTD,450,CAPITAL PS (LEISURE),CONSTRUCTION FEES  - EXTERNAL,5902256666
01.07.2017,ENVIRONMENT AND LEISURE,CYCLEHOOP LTD,560,CAPITAL PS (LEISURE),CONSTRUCTION FEES  - EXTERNAL,5902256666
01.07.2017,ENVIRONMENT AND LEISURE,CYCLEHOOP LTD,"1,960.00",CAPITAL PS (LEISURE),CONSTRUCTION FEES  - EXTERNAL,5902256666
01.07.2017,ENVIRONMENT AND LEISURE,CONWAY AECOM LTD,"1,940.30",CAPITAL PS (LEISURE),CONSTRUCTION MAIN CONTRACT,5902257339
01.07.2017,HOUSING HRA,KP ACOUSTICS LTD,"1,150.00",CAPITAL PS (REGEN),CONSTRUCTION FEES  - EXTERNAL,5902256524
01.07.2017,HOUSING HRA,SPOKEMEAD MAINTENANCE LTD,"140,219.59",PAYMENTS CONTROL ACCOUNT - SPOKEMEAD,MANUAL CREDITORS,5902256526
01.07.2017,MODERNISATION HGF,HAYS RECRUITING EXPERTS WORLDWIDE,"8,312.78",IT MANAGEMENT,RECRUITMENT ADVERTISING,5902256739
01.07.2017,REGENERATION,CONWAY AECOM LTD,"1,500.00",PROPERTY - - PHASE 4,OTHER R&M,5902257158
01.07.2017,REGENERATION,CONWAY AECOM LTD,"3,425.38",PROPERTY - - PHASE 4,OTHER R&M,5902257158
02.07.2017,ADULT SOCIAL CARE,LIFELONG FAMILY LINIKS,"11,250.00",LOCAL COMMUNITY OFFER,EXTERNAL AGENCIES AND BODIES,5902256348
02.07.2017,ENVIRONMENT AND LEISURE,TSC DESIGNS,350,CAPITAL PS (LEISURE),CONST'N MAIN CONTRACT - NON CERTIFICATED,5902256740
02.07.2017,ENVIRONMENT DIRECTORATE,KENT COUNTY COUNCIL - LASER,285.52,SANDGATE STREET,ELECTRICITY,5902257273
02.07.2017,ENVIRONMENT DIRECTORATE,KENT COUNTY COUNCIL - LASER,316.12,SANDGATE STREET,ELECTRICITY,5902257277
02.07.2017,ENVIRONMENT DIRECTORATE,KENT COUNTY COUNCIL - LASER,779.26,SANDGATE STREET,ELECTRICITY,5902257269
02.07.2017,ENVIRONMENT DIRECTORATE,KENT COUNTY COUNCIL - LASER,"1,111.74",SANDGATE STREET,ELECTRICITY,5902257271
02.07.2017,ENVIRONMENT DIRECTORATE,KENT COUNTY COUNCIL - LASER,"1,188.61",SANDGATE STREET,ELECTRICITY,5902257272
02.07.2017,ENVIRONMENT DIRECTORATE,GLASDON UK LIMITED,"1,620.00",STREET CLEANING-GENERAL,MATERIALS,5902256954
02.07.2017,ENVIRONMENT DIRECTORATE,SOUTHWARK NEWSPAPER LTD,300,STREET WORKS OVERHEADS,MARKETING & PUBLICITY SERVICES,5902257193
02.07.2017,ENVIRONMENT DIRECTORATE,SOUTHWARK NEWSPAPER LTD,300,STREET WORKS OVERHEADS,MARKETING & PUBLICITY SERVICES,5902257233
02.07.2017,ENVIRONMENT DIRECTORATE,SOUTHWARK NEWSPAPER LTD,312,STREET WORKS OVERHEADS,MARKETING & PUBLICITY SERVICES,5902257186
02.07.2017,ENVIRONMENT DIRECTORATE,SOUTHWARK NEWSPAPER LTD,312,STREET WORKS OVERHEADS,MARKETING & PUBLICITY SERVICES,5902257305
02.07.2017,ENVIRONMENT DIRECTORATE,SOUTHWARK NEWSPAPER LTD,324,STREET WORKS OVERHEADS,MARKETING & PUBLICITY SERVICES,5902257208
02.07.2017,ENVIRONMENT DIRECTORATE,SOUTHWARK NEWSPAPER LTD,372,STREET WORKS OVERHEADS,MARKETING & PUBLICITY SERVICES,5902257180
02.07.2017,FINANCE & GOVERNANCE,SOUTHWARK NEWSPAPER LTD,540,MEMBERS EXPENDITURE,MARKETING & PUBLICITY SERVICES,5902257322
03.07.2017,CAMBERWELL COMMUNITY COUNCIL,SOMALI INTERGATION DEVELOPMENT ASSOCIATION,"3,048.00",SOMALI POSITIVE AGEING,GRANT,CHEQUE PAYMENT
03.07.2017,COMMUNITIES,72 GROVE LANE T&RA,"1,200.00",TENANTS FUND,GRANTS,5902256862
03.07.2017,COMMUNITIES,CRAWFORD T&RA,"2,080.00",TENANTS FUND,GRANTS,5902256835
03.07.2017,COMMUNITIES,BONAMY & BRAMCOTE T&RA,271,TENANTS FUND,GRANTS,5902256747
03.07.2017,COMMUNITIES,BONAMY & BRAMCOTE T&RA,"2,710.00",TENANTS FUND,GRANTS,5902256747
03.07.2017,COMMUNITIES,BRICKLAYERS ARMS T&RA,"1,300.00",TENANTS FUND,GRANTS,5902256857
03.07.2017,ENVIRONMENT AND LEISURE,MATERIALS SCIENCE CONSULTANTS LTD,"2,000.00",CAPITAL PS (LEISURE),CONSTRUCTION FEES - ARCHITECT,5902256938
03.07.2017,F & C S EXCLUDING CORPORATE BUDGETS,DSI BILLING SERVICES LTD,"1,832.37",ADMINISTRATIVE SUPPORT,POSTAGES,5902257194
03.07.2017,MODERNISATION HGF,ROYAL MAIL GROUP LTD,"3,670.00",160 TOOLEY ST.,POSTAGES,5902256930
03.07.2017,MODERNISATION HGF,INTERSERVE (FACILITIES MANAGEMENT),"6,170.82",FM SERVICES BY INTERSERVE,BUILDING R&M,5902257112
03.07.2017,MODERNISATION HGF,INTERSERVE (FACILITIES MANAGEMENT),"89,765.79",FM SERVICES BY INTERSERVE,SECURITY SERVICES,5902257113
03.07.2017,PECKHAM AND NUNHEAD COMMUNITY COUNCIL,12TH CAMBERWELL SCOUT GROUP,500,PURCHASE OF NEW CAMPING EQUIPMENT,GRANT,CHEQUE PAYMENT
04.07.2017,ADULT SOCIAL CARE,INTERSERVE (FACILITIES MANAGEMENT),614.25,ANCHOR TRUST REPAIRS,BUILDING R&M,2102689242
04.07.2017,ADULT SOCIAL CARE,INTERSERVE (FACILITIES MANAGEMENT),"10,918.73",ANCHOR TRUST REPAIRS,BUILDING R&M,2102689241
04.07.2017,ADULT SOCIAL CARE,INTERSERVE (FACILITIES MANAGEMENT),"14,302.35",ANCHOR TRUST REPAIRS,BUILDING R&M,2102689243
04.07.2017,ADULT SOCIAL CARE,INTERSERVE (FACILITIES MANAGEMENT),"14,392.76",ANCHOR TRUST REPAIRS,BUILDING R&M,2102689240
04.07.2017,ADULT SOCIAL CARE,PEOPLE PLUS,-299.31,LD LTS 18-64,PAYMENTS TO CLIENTS (DIRECT PAYMENTS),2102689211
04.07.2017,ADULT SOCIAL CARE,PEOPLE PLUS,"6,715.09",LD LTS 18-64,PAYMENTS TO CLIENTS (DIRECT PAYMENTS),2102689220
04.07.2017,ADULT SOCIAL CARE,HEALTH PERSONNEL LTD,"29,240.00",LD LTS 18-64,SUPPORTED LIVING,2102689218
04.07.2017,ADULT SOCIAL CARE,LEONARD CHESHIRE DISABILITY,"22,500.00",LOCAL COMMUNITY OFFER,EXTERNAL AGENCIES AND BODIES,5902257612
04.07.2017,ADULT SOCIAL CARE,PEOPLE PLUS,296.41,PHY LTS 18-64,PAYMENTS TO CLIENTS (DIRECT PAYMENTS),2102689212
04.07.2017,ADULT SOCIAL CARE,PEOPLE PLUS,356.36,PHY LTS 18-64,PAYMENTS TO CLIENTS (DIRECT PAYMENTS),2102689213
04.07.2017,ADULT SOCIAL CARE,REDACTED PERSONAL DATA,"1,278.96",PHY LTS 18-64,PAYMENTS TO CLIENTS (DIRECT PAYMENTS),2102689217
04.07.2017,ADULT SOCIAL CARE,CARE DIRECT UK LTD,-561.6,PHY LTS 65+,HOMECARE - C&V,2102689214
04.07.2017,ADULT SOCIAL CARE,CARE DIRECT UK LTD,725.4,PHY LTS 65+,HOMECARE - SPOT,2102689219
04.07.2017,ADULT SOCIAL CARE,SWK DISABLEMENT ASSN,368.25,PHY LTS 65+,PAYMENTS TO CLIENTS (DIRECT PAYMENTS),2102689215
04.07.2017,ASSET MANAGEMENT,SCS TECHNOLOGIES LTD,768.18,ENG CONTRACTS (NORTH),TV AERIALS R&M,5902257640
04.07.2017,ASSET MANAGEMENT,SCS TECHNOLOGIES LTD,"2,423.19",ENG CONTRACTS (NORTH),TV AERIALS R&M,5902257642
04.07.2017,ASSET MANAGEMENT,FRANKLYN SHAW ASSOCIATES LTD,371.41,VOIDS (SOUTH),BUILDING R&M,2102689224
04.07.2017,CENTRAL FUNCTIONS,STANBURY BUILDING SERVICES LTD,395,COMMERCIAL PROPERTIES,BUILDING R&M,2102689251
04.07.2017,CHIEF EXECUTIVE,CYCLEHOOP LTD,460,CAPITAL PS (REGEN),CONSTR'N SUB CONTRACT - NON CERTIFICATED,5902257578
04.07.2017,CHIEF EXECUTIVE,CYCLEHOOP LTD,780,CAPITAL PS (REGEN),CONSTR'N SUB CONTRACT - NON CERTIFICATED,5902257578
04.07.2017,CHIEF EXECUTIVE,NEILCOTT SPECIAL WORKS LTD,"245,921.45",CAPITAL PS (REGEN),CONSTRUCTION FEES,2102689246
04.07.2017,CHILDREN AND ADULT,SHARPE PRITCHARD LLP,652.58,CAPITAL PS (EDUCATION),CONSTRUCTION FEES - LEGAL,5902257557
04.07.2017,CHILDREN AND ADULT,SHARPE PRITCHARD LLP,"4,660.59",CAPITAL PS (EDUCATION),CONSTRUCTION FEES - LEGAL,5902257557
04.07.2017,CHILDREN AND ADULT,GALLIFORD TRY CONSTRUCTION (UK) LTD,"4,998.83",CAPITAL PS (EDUCATION),CONSTRUCTION MAIN CONTRACT -CERTIFICATED,5902257668
04.07.2017,CHILDREN AND ADULT,WERNICK REFURBISHED BUILDINGS LTD,"-7,864.30",CAPITAL PS (EDUCATION),CONSTRUCTION MAIN CONTRACT -CERTIFICATED,5902257932
04.07.2017,CHILDREN AND ADULT,WERNICK REFURBISHED BUILDINGS LTD,"7,864.30",CAPITAL PS (EDUCATION),CONSTRUCTION MAIN CONTRACT -CERTIFICATED,5902257719
04.07.2017,CHILDREN'S SERVICES,REDACTED PERSONAL DATA,401.08,ADOPTION PLACEMENTS & INTER AGENCY,PAYMENTS TO CARERS,5902257617
04.07.2017,CHILDREN'S SERVICES,FLEET TUTORS,700,ALTERNATIVE PROVISION,EXTERNAL AGENCIES AND BODIES,5902257666
04.07.2017,CHILDREN'S SERVICES,KENT COUNTY COUNCIL - LASER,"2,538.11",BUILDING SUMNER,ELECTRICITY,5902257627
04.07.2017,CHILDREN'S SERVICES,KENT COUNTY COUNCIL - LASER,900.56,BUILDING SUMNER,GAS,5902257625
04.07.2017,CHILDREN'S SERVICES,CAMBRIDGE HOUSE & TALBOT,"4,586.75",CAMBRIDGE HOUSE,EXTERNAL AGENCIES AND BODIES,5902257588
04.07.2017,CHILDREN'S SERVICES,AVOCET SOCIAL CARE LTD,"2,450.00",DISABILITY & HIV,PROFESSIONAL FEES,5902257535
04.07.2017,CHILDREN'S SERVICES,AVOCET SOCIAL CARE LTD,"2,450.00",DISABILITY & HIV,PROFESSIONAL FEES,5902257536
04.07.2017,CHILDREN'S SERVICES,AVOCET SOCIAL CARE LTD,"4,550.00",DISABILITY & HIV,PROFESSIONAL FEES,5902257532
04.07.2017,COMMISSIONING & CENTRAL,POSTURITE (UK) LTD,648.62,COMMISSIONING TEAM,EXTERNAL AGENCIES AND BODIES,5902257659
04.07.2017,COMMUNITIES,DEYNSFORD TENANT MANAGEMENT ORGANISATION,"91,075.25",D'EYNSFORD ESTATE,M&M ALLOWANCE CO-OPS,5902257645
04.07.2017,COMMUNITIES,SOUTHWARK GROUP OF TENANTS ORGANISATION,"59,662.50",TENANTS FUND,GRANTS,5902257589
04.07.2017,COMMUNITIES,ST FAITHS COMMUNITY CENTRE,"5,115.25",VCS GRANTS,GRANTS,5902257587
04.07.2017,COMMUNITIES,TIME & TALENTS ASSOCIATION,"1,067.75",VCS GRANTS,GRANTS,5902257591
04.07.2017,COMMUNITIES,TIME & TALENTS ASSOCIATION,"3,475.50",VCS GRANTS,GRANTS,5902257590
04.07.2017,COMMUNITIES,LONDON WILDLIFE TRUST,"7,968.75",VCS GRANTS,GRANTS,5902257592
04.07.2017,COMMUNITIES,SOUTHWARK CITIZENS ADVICE,"5,600.00",VCS GRANTS,GRANTS,5902257593
04.07.2017,COMMUNITIES,EAST DULWICH COMMUNITY CENTRE,"1,740.00",VCS GRANTS,GRANTS,5902257594
04.07.2017,COMMUNITIES,SOUTHWARK SOMALI REFUGEE COUNCIL,"13,222.50",VCS GRANTS,GRANTS,5902257595
04.07.2017,COMMUNITIES,BEORMUND COMMUNITY CENTRE,"17,437.25",VCS GRANTS,GRANTS,5902257596
04.07.2017,COMMUNITIES,BEDE HSE,"3,475.50",VCS GRANTS,GRANTS,5902257597
04.07.2017,COMMUNITIES,CAMBRIDGE HOUSE & TALBOT,"3,475.50",VCS GRANTS,GRANTS,5902257598
04.07.2017,COMMUNITIES,PECAN LTD,"6,429.00",VCS GRANTS,GRANTS,5902257600
04.07.2017,COMMUNITIES,PECAN LTD,"6,863.00",VCS GRANTS,GRANTS,5902257599
04.07.2017,COMMUNITIES,SURREY DOCKS FARM PROVIDENT SOCIETY,"10,678.25",VCS GRANTS,GRANTS,5902257601
04.07.2017,COMMUNITIES,ORGANISATION OF BLIND AFRICANS & CARIBBEANS,"4,084.25",VCS GRANTS,GRANTS,5902257602
04.07.2017,COMMUNITIES,AAINA WOMEN GROUP,"8,018.25",VCS GRANTS,GRANTS,5902257603
04.07.2017,COMMUNITIES,SOUTHWARK PENSIONERS CENTRE,"28,355.25",VCS GRANTS,GRANTS,5902257604
04.07.2017,COMMUNITIES,SWK DAY CTR FOR ASYLUM SEEKERS,"11,330.25",VCS GRANTS,GRANTS,5902257605
04.07.2017,COMMUNITIES,AYLESBURY EVERY WOMAN'S CENTRE,"3,600.00",VCS GRANTS,GRANTS,5902257606
04.07.2017,COMMUNITIES,WORKING WITH MEN,"3,600.00",VCS GRANTS,GRANTS,5902257607
04.07.2017,COMMUNITIES,COOLTAN ARTS,"3,187.50",VCS GRANTS,GRANTS,5902257608
04.07.2017,COMMUNITIES,MENTAL FIGHT CLUB,"1,870.00",VCS GRANTS,GRANTS,5902257609
04.07.2017,COMMUNITIES,CRYSTAL PALACE COMM DEV TRUST,"2,264.75",VCS GRANTS,GRANTS,5902257610
04.07.2017,COMMUNITIES,LATIN AMERICAN DISABLED PEOPLE PROJECT,"4,000.00",VCS GRANTS,GRANTS,5902257611
04.07.2017,COMMUNITIES,LATIN AMERICAN WOMEN'S RIGHTS SERVICES,"3,400.00",VCS GRANTS,GRANTS,5902257613
04.07.2017,COMMUNITIES,PAXTON GREEN TIME BANK,"3,600.00",VCS GRANTS,GRANTS,5902257615
04.07.2017,COMMUNITIES,BLACKFRIARS SETTLEMENT,"5,574.75",VCS GRANTS,GRANTS,5902257616
04.07.2017,COMMUNITIES,BERMONDSEY COMMUNITY KITCHEN,"3,500.00",VCS GRANTS,GRANTS,5902257618
04.07.2017,COMMUNITIES,THE BIKE PROJECT,"3,750.00",VCS GRANTS,GRANTS,5902257619
04.07.2017,CUSTOMER EXPERIENCE HGF,IAN STERN QC,"2,812.50",CORONER'S,LEGAL FEES & COURT COSTS,2102684236
04.07.2017,CUSTOMER EXPERIENCE HGF,TFL TELESALES / OYSTER FULFILMENT,560,HOMELESS & HOUSING OPTIONS MGT,PUBLIC TRANSPORT,5902257641
04.07.2017,ELECTORAL SVCES,BLACKFRIARS SETTLEMENT,416.67,GENERAL ELECTION,HIRE OF ROOMS/HALLS,5902257577
04.07.2017,ELECTORAL SVCES,NEWINGTON T&RA,330,GENERAL ELECTION,HIRE OF ROOMS/HALLS,5902257518
04.07.2017,ELECTORAL SVCES,SETCHELL & LONGFIELD HALL FUND,350,GENERAL ELECTION,HIRE OF ROOMS/HALLS,5902257680
04.07.2017,ELECTORAL SVCES,PARISH OF ST JOHN WITH ST ANDREW,"1,080.00",GENERAL ELECTION,HIRE OF ROOMS/HALLS,5902257637
04.07.2017,ELECTORAL SVCES,INSPIRE AT ST PETER'S LTD,970,GENERAL ELECTION,HIRE OF ROOMS/HALLS,5902257548
04.07.2017,ELECTORAL SVCES,LORDSHIP LANE & MELFORD COURT T&RA,350,GENERAL ELECTION,HIRE OF ROOMS/HALLS,5902257524
04.07.2017,ELECTORAL SVCES,DOCKLAND SETTLEMENT COMMUNITY,500,GENERAL ELECTION,HIRE OF ROOMS/HALLS,5902257560
04.07.2017,ELECTORAL SVCES,ST JOHNS WALWORTH CE SCHOOL,384.14,GENERAL ELECTION,HIRE OF ROOMS/HALLS,5902257681
04.07.2017,ENVIRONMENT AND LEISURE,CONWAY AECOM LTD,"3,834.97",CAPITAL PS (LEISURE),CONSTRUCTION,2102689235
04.07.2017,ENVIRONMENT AND LEISURE,CONWAY AECOM LTD,"4,034.79",CAPITAL PS (LEISURE),CONSTRUCTION,2102689234
04.07.2017,ENVIRONMENT AND LEISURE,CONWAY AECOM LTD,"4,139.13",CAPITAL PS (LEISURE),CONSTRUCTION,2102689230
04.07.2017,ENVIRONMENT AND LEISURE,CONWAY AECOM LTD,"4,740.66",CAPITAL PS (LEISURE),CONSTRUCTION,2102689229
04.07.2017,ENVIRONMENT AND LEISURE,CONWAY AECOM LTD,"6,349.70",CAPITAL PS (LEISURE),CONSTRUCTION,2102689231
04.07.2017,ENVIRONMENT AND LEISURE,CONWAY AECOM LTD,"6,912.50",CAPITAL PS (LEISURE),CONSTRUCTION,2102689232
04.07.2017,ENVIRONMENT AND LEISURE,CONWAY AECOM LTD,"7,025.83",CAPITAL PS (LEISURE),CONSTRUCTION,2102689226
04.07.2017,ENVIRONMENT AND LEISURE,CONWAY AECOM LTD,"7,938.98",CAPITAL PS (LEISURE),CONSTRUCTION,2102689227
04.07.2017,ENVIRONMENT AND LEISURE,CONWAY AECOM LTD,"9,854.33",CAPITAL PS (LEISURE),CONSTRUCTION,2102689233
04.07.2017,ENVIRONMENT AND LEISURE,CONWAY AECOM LTD,"9,900.70",CAPITAL PS (LEISURE),CONSTRUCTION,2102689236
04.07.2017,ENVIRONMENT AND LEISURE,CONWAY AECOM LTD,"13,676.20",CAPITAL PS (LEISURE),CONSTRUCTION,2102689225
04.07.2017,ENVIRONMENT AND LEISURE,CONWAY AECOM LTD,"14,795.11",CAPITAL PS (LEISURE),CONSTRUCTION,2102689228
04.07.2017,ENVIRONMENT AND LEISURE,CONWAY AECOM LTD,"18,470.81",CAPITAL PS (LEISURE),CONSTRUCTION,2102689237
04.07.2017,ENVIRONMENT DIRECTORATE,LOVE SMOOTHIES BLENDER BIKES LTD,379,BEHAVIOUR CHANGE,PROFESSIONAL FEES,5902257582
04.07.2017,ENVIRONMENT DIRECTORATE,SCOT GROUP LIMITED,378.56,COMMERCIAL VEH CTRL A/C,HIRED VEHICLES,5902257529
04.07.2017,ENVIRONMENT DIRECTORATE,SCOT GROUP LIMITED,432,COMMERCIAL VEH CTRL A/C,HIRED VEHICLES,5902257531
04.07.2017,ENVIRONMENT DIRECTORATE,SCOT GROUP LIMITED,672.38,COMMERCIAL VEH CTRL A/C,HIRED VEHICLES,5902257527
04.07.2017,ENVIRONMENT DIRECTORATE,CLOSE BROTHERS VEHICLE HIRE LTD,303.6,COMMERCIAL VEH CTRL A/C,HIRED VEHICLES,5902257679
04.07.2017,ENVIRONMENT DIRECTORATE,CLOSE BROTHERS VEHICLE HIRE LTD,368.5,COMMERCIAL VEH CTRL A/C,HIRED VEHICLES,5902257677
04.07.2017,ENVIRONMENT DIRECTORATE,CLOSE BROTHERS VEHICLE HIRE LTD,494.56,COMMERCIAL VEH CTRL A/C,HIRED VEHICLES,5902257678
04.07.2017,ENVIRONMENT DIRECTORATE,RED R DESIGN,"1,225.00",HIGHWAYS DEVELOPMENT,PRINTING,5902257674
04.07.2017,ENVIRONMENT DIRECTORATE,KENT COUNTY COUNCIL,386,TRADING STANDARDS,PROFESSIONAL FEES,5902257549
04.07.2017,F & C S EXCLUDING CORPORATE BUDGETS,CALLCREDIT,"9,750.00",ANTI-FRAUD AND INVESTIGATIONS,SUBSCRIPTIONS,5902257647
04.07.2017,F & C S EXCLUDING CORPORATE BUDGETS,EDF ENERGY PLC,-255.81,PAYMENTS CONTROL,OFFICE EXPENSES,2102690041
04.07.2017,F & C S EXCLUDING CORPORATE BUDGETS,IAN STERN QC,"-2,812.50",PAYMENTS CONTROL,OFFICE EXPENSES,2102690008
04.07.2017,HOUSING,KENT COUNTY COUNCIL,"24,954.93",SUPPLY OF ELECTRICITY,ELECTRICITY,DIRECT DEBIT PAYMENT
04.07.2017,HOUSING HRA,M C TECHNICIANS LTD,"2,691.00",CAPITAL PS (HRA),CONST'N MAIN CONTRACT - NON CERTIFICATED,2102689223
04.07.2017,HOUSING HRA,M C TECHNICIANS LTD,"11,554.00",CAPITAL PS (HRA),CONST'N MAIN CONTRACT - NON CERTIFICATED,2102689222
04.07.2017,HOUSING HRA,KEEPMOAT REGENERATION (APOLLO) LTD,"276,353.87",CAPITAL PS (HRA),CONSTRUCTION MAIN CONTRACT -CERTIFICATED,2102689244
04.07.2017,HOUSING HRA,KEEPMOAT REGENERATION (APOLLO) LTD,"313,691.08",CAPITAL PS (HRA),CONSTRUCTION MAIN CONTRACT -CERTIFICATED,2102689245
04.07.2017,HOUSING HRA,A & E ELKINS LTD,"34,598.17",CAPITAL PS (HRA),CONSTRUCTION MAIN CONTRACT -CERTIFICATED,2102689238
04.07.2017,HOUSING HRA,A & E ELKINS LTD,"108,056.47",CAPITAL PS (HRA),CONSTRUCTION MAIN CONTRACT -CERTIFICATED,2102689239
04.07.2017,LEISURE DIRECTORATE,RED R DESIGN,325,BERMONDSEY CARNIVAL,MARKETING & PUBLICITY SERVICES,5902257673
04.07.2017,LEISURE DIRECTORATE,NPOWER,761.55,BLUE ANCHOR LIBRARY,ELECTRICITY,5902257564
04.07.2017,LEISURE DIRECTORATE,P D CONSTRUCTION LTD,"6,160.00",BURGESS AREA TEAM,OTHER R&M,2102689247
04.07.2017,LEISURE DIRECTORATE,THAMES WATER UTILITIES LTD,"2,806.34",DULWICH AREA TEAM,WATER,5902254656
04.07.2017,LEISURE DIRECTORATE,BISHOP SPORTS AND LEISURE LTD,650.5,MINT STREET,EQUIPMENT PURCHASE & REPAIR,5902256275
04.07.2017,MODERNISATION HGF,KENT COUNTY COUNCIL - LASER,"1,915.98",160 TOOLEY ST.,GAS,5902257634
04.07.2017,MODERNISATION HGF,KENT COUNTY COUNCIL - LASER,274.95,7 TALFOURD ROAD,GAS,5902257636
04.07.2017,PLANNING AND TRANSPORT,OUR HUT,"4,850.00",PECKHAM TOWNSCAPE HERITAGE INITIATIVE,MISCELLANEOUS EXPENSES,5902257662
04.07.2017,RESIDENT SERVICES,EDF ENERGY PLC,255.81,OPERATIONS/OFFICES ACCOMMODATION,ELECTRICITY,5902256151
04.07.2017,SOUTHWARK BUILDING SERVICES,DIAMOND SCAFFOLDING (SOUTH EAST),"14,346.29",BUSINESS SUPPORT,OTHER CONTRACTORS,2102689249
04.07.2017,SOUTHWARK BUILDING SERVICES,KENT COUNTY COUNCIL - LASER,260.69,BUSINESS SUPPORT,VEHICLE FUEL,5902257623
04.07.2017,SOUTHWARK BUILDING SERVICES,KENT COUNTY COUNCIL - LASER,627.11,BUSINESS SUPPORT,VEHICLE FUEL,5902257631
04.07.2017,SOUTHWARK BUILDING SERVICES,KENT COUNTY COUNCIL - LASER,"2,601.22",ROTHERHITHE VOIDS - CARPENTER,VEHICLE FUEL,5902257545
04.07.2017,SOUTHWARK BUILDING SERVICES,KENT COUNTY COUNCIL - LASER,"3,630.70",VOIDS OVERHEADS,VEHICLE FUEL,5902257542
04.07.2017,SOUTHWARK BUILDING SERVICES,KENT COUNTY COUNCIL - LASER,506.84,WALWORTH TM 2 DAY TO DAY - PLUMBER,VEHICLE FUEL,5902257546
05.07.2017,ADULT SOCIAL CARE,DINARDO SUPPORTS LTD,320,APPOINTEESHIPS,OTHER PAYMENTS FOR CLIENTS,2102689303
05.07.2017,ADULT SOCIAL CARE,ZETETICK HOUSING,"8,360.60",APPOINTEESHIPS,OTHER PAYMENTS FOR CLIENTS,2102689302
05.07.2017,ADULT SOCIAL CARE,CARE ELITE LTD,840,APPOINTEESHIPS,OTHER PAYMENTS FOR CLIENTS,2102690006
05.07.2017,ADULT SOCIAL CARE,REDACTED PERSONAL DATA,644.9,APPOINTEESHIPS,OTHER PAYMENTS FOR CLIENTS,2102689304
05.07.2017,ADULT SOCIAL CARE,REDACTED PERSONAL DATA,"1,000.00",APPOINTEESHIPS,OTHER PAYMENTS FOR CLIENTS,2102690007
05.07.2017,ADULT SOCIAL CARE,REDACTED PERSONAL DATA,747,APPOINTEESHIPS,OTHER PAYMENTS FOR CLIENTS,2102689305
05.07.2017,ADULT SOCIAL CARE,SOUTHWARK CITIZENS ADVICE,"61,627.73",BREAK FOR CARERS,EXTERNAL AGENCIES AND BODIES,5902257775
05.07.2017,ADULT SOCIAL CARE,HOUSING & CARE 21,412.16,LD LTS 65+,SUPPORTED LIVING,2102689316
05.07.2017,ADULT SOCIAL CARE,NESTOR PRIMECARE SERVICES LTD,742,MEM LTS 18-64,HOMECARE - C&V,2102689319
05.07.2017,ADULT SOCIAL CARE,GENERAL WELFARE OF THE BLIND,"1,976.33",PHY LTS 18-64,EMPLOYMENT SUPPORT,2102689315
05.07.2017,ADULT SOCIAL CARE,SWK DISABLEMENT ASSN,486.4,PHY LTS 65+,HOMECARE - C&V,2102689322
05.07.2017,ADULT SOCIAL CARE,SWK DISABLEMENT ASSN,"1,087.72",PHY LTS 65+,HOMECARE - C&V,2102689321
05.07.2017,ADULT SOCIAL CARE,SWK DISABLEMENT ASSN,"1,702.40",PHY LTS 65+,HOMECARE - C&V,2102689328
05.07.2017,ADULT SOCIAL CARE,SWK DISABLEMENT ASSN,874,PHY LTS 65+,HOMECARE - SPOT,2102689324
05.07.2017,ADULT SOCIAL CARE,SWK DISABLEMENT ASSN,879.12,PHY LTS 65+,HOMECARE - SPOT,2102689326
05.07.2017,ADULT SOCIAL CARE,SWK DISABLEMENT ASSN,918.72,PHY LTS 65+,HOMECARE - SPOT,2102689325
05.07.2017,ADULT SOCIAL CARE,SWK DISABLEMENT ASSN,"1,544.40",PHY LTS 65+,HOMECARE - SPOT,2102689323
05.07.2017,ADULT SOCIAL CARE,SWK DISABLEMENT ASSN,"2,705.60",PHY LTS 65+,HOMECARE - SPOT,2102689320
05.07.2017,ADULT SOCIAL CARE,REDACTED PERSONAL DATA,798,SUB LTS 18-64,DAYCARE,2102689311
05.07.2017,ADULT SOCIAL CARE,REDACTED PERSONAL DATA,"1,596.00",SUB LTS 18-64,DAYCARE,2102689307
05.07.2017,ADULT SOCIAL CARE,REDACTED PERSONAL DATA,"1,596.00",SUB LTS 18-64,DAYCARE,2102689309
05.07.2017,ADULT SOCIAL CARE,REDACTED PERSONAL DATA,"1,596.00",SUB LTS 18-64,DAYCARE,2102689313
05.07.2017,ASSET MANAGEMENT,ANTHONY GOLD SOLICITORS,"10,500.00",DISREPAIR,LEGAL FEES & COURT COSTS,2102689268
05.07.2017,ASSET MANAGEMENT,CLARKE BARNES SOLICITORS LLP,"2,500.00",DISREPAIR,LEGAL FEES & COURT COSTS,2102689274
05.07.2017,ASSET MANAGEMENT,MALCOLM G SANKEY,420,DISREPAIR,LEGAL FEES & COURT COSTS,2102689284
05.07.2017,ASSET MANAGEMENT,DONALD BROATCH,500,DISREPAIR,LEGAL FEES & COURT COSTS,2102689275
05.07.2017,ASSET MANAGEMENT,IHS GLOBAL LTD,"14,919.97",ENG CONTRACTS (NORTH),HEATING - DISTRICT PLANT REPAIR & REPLAC,5902257711
05.07.2017,ASSET MANAGEMENT,A & H PEST CONTROL LTD,390,ENG CONTRACTS (NORTH),PLANNED MAINTENANCE,5902257849
05.07.2017,ASSET MANAGEMENT,A & H PEST CONTROL LTD,390,ENG CONTRACTS (NORTH),PLANNED MAINTENANCE,5902257852
05.07.2017,ASSET MANAGEMENT,LONDON SOUTH BANK UNIVERSITY,"4,500.00",REPAIRS OPERATIONS,TRAINING,5902257810
05.07.2017,ASSET MANAGEMENT,LONDON SOUTH BANK UNIVERSITY,"4,500.00",REPAIRS OPERATIONS,TRAINING,5902257814
05.07.2017,ASSET MANAGEMENT,LONDON SOUTH BANK UNIVERSITY,"4,500.00",REPAIRS OPERATIONS,TRAINING,5902257825
05.07.2017,ASSET MANAGEMENT,LONDON SOUTH BANK UNIVERSITY,"4,500.00",REPAIRS OPERATIONS,TRAINING,5902257830
05.07.2017,ASSET MANAGEMENT,LONDON SOUTH BANK UNIVERSITY,"4,960.00",REPAIRS OPERATIONS,TRAINING,5902257806
05.07.2017,CENTRAL FUNCTIONS,THE ALBANY 2001 COMPANY LTD,289.34,DIRECTOR OF H&M,HIRE OF ROOMS/HALLS,5902257831
05.07.2017,CHIEF EXECUTIVE,ANDREW WALLER,849,CAPITAL PS (REGEN),CONSTRUCTION FEES  - EXTERNAL,5902257754
05.07.2017,CHILDREN AND ADULT,GLEEDS ADVISORY LTD,500,CAPITAL PS (EDUCATION),CONSTRUCTION FEES  - EXTERNAL,5902257804
05.07.2017,CHILDREN'S SERVICES,REVIVAL,825,ADMIN CURLEW,OTHER PAYMENTS FOR CLIENTS,5902257726
05.07.2017,CHILDREN'S SERVICES,ST FRANCIS' CHILDREN SOCIETY,"1,598.64",ADOPTION PLACEMENTS & INTER AGENCY,EXTERNAL AGENCIES AND BODIES,5902257731
05.07.2017,CHILDREN'S SERVICES,ST FRANCIS' CHILDREN SOCIETY,"2,250.00",ADOPTION PLACEMENTS & INTER AGENCY,EXTERNAL AGENCIES AND BODIES,5902257730
05.07.2017,CHILDREN'S SERVICES,REDACTED PERSONAL DATA,465.52,ADOPTION PLACEMENTS & INTER AGENCY,PAYMENTS TO CARERS,2102689454
05.07.2017,CHILDREN'S SERVICES,REDACTED PERSONAL DATA,559.06,ADOPTION PLACEMENTS & INTER AGENCY,PAYMENTS TO CARERS,2102689450
05.07.2017,CHILDREN'S SERVICES,REDACTED PERSONAL DATA,695.04,ADOPTION PLACEMENTS & INTER AGENCY,PAYMENTS TO CARERS,2102689496
05.07.2017,CHILDREN'S SERVICES,REDACTED PERSONAL DATA,375.54,ADOPTION PLACEMENTS & INTER AGENCY,PAYMENTS TO CARERS,2102689368
05.07.2017,CHILDREN'S SERVICES,REDACTED PERSONAL DATA,-352.74,ADOPTION PLACEMENTS & INTER AGENCY,PAYMENTS TO CARERS,2102689401
05.07.2017,CHILDREN'S SERVICES,REDACTED PERSONAL DATA,352.74,ADOPTION PLACEMENTS & INTER AGENCY,PAYMENTS TO CARERS,2102678832
05.07.2017,CHILDREN'S SERVICES,REDACTED PERSONAL DATA,375.54,ADOPTION PLACEMENTS & INTER AGENCY,PAYMENTS TO CARERS,2102689371
05.07.2017,CHILDREN'S SERVICES,REDACTED PERSONAL DATA,468.46,ADOPTION PLACEMENTS & INTER AGENCY,PAYMENTS TO CARERS,2102689405
05.07.2017,CHILDREN'S SERVICES,REDACTED PERSONAL DATA,404.46,ADOPTION PLACEMENTS & INTER AGENCY,PAYMENTS TO CARERS,2102689384
05.07.2017,CHILDREN'S SERVICES,REDACTED PERSONAL DATA,311.34,ADOPTION PLACEMENTS & INTER AGENCY,PAYMENTS TO CARERS,2102689452
05.07.2017,CHILDREN'S SERVICES,REDACTED PERSONAL DATA,400.84,ADOPTION PLACEMENTS & INTER AGENCY,PAYMENTS TO CARERS,2102689333
05.07.2017,CHILDREN'S SERVICES,REDACTED PERSONAL DATA,635.34,ADOPTION PLACEMENTS & INTER AGENCY,PAYMENTS TO CARERS,2102689391
05.07.2017,CHILDREN'S SERVICES,REDACTED PERSONAL DATA,263.24,ADOPTION PLACEMENTS & INTER AGENCY,PAYMENTS TO CARERS,2102689460
05.07.2017,CHILDREN'S SERVICES,REDACTED PERSONAL DATA,375.54,ADOPTION PLACEMENTS & INTER AGENCY,PAYMENTS TO CARERS,2102689340
05.07.2017,CHILDREN'S SERVICES,REDACTED PERSONAL DATA,653.06,ADOPTION PLACEMENTS & INTER AGENCY,PAYMENTS TO CARERS,2102689359
05.07.2017,CHILDREN'S SERVICES,REDACTED PERSONAL DATA,354.76,ADOPTION PLACEMENTS & INTER AGENCY,PAYMENTS TO CARERS,2102689435
05.07.2017,CHILDREN'S SERVICES,REDACTED PERSONAL DATA,390.26,ADOPTION PLACEMENTS & INTER AGENCY,PAYMENTS TO CARERS,2102689470
05.07.2017,CHILDREN'S SERVICES,REDACTED PERSONAL DATA,465.54,ADOPTION PLACEMENTS & INTER AGENCY,PAYMENTS TO CARERS,2102689344
05.07.2017,CHILDREN'S SERVICES,REDACTED PERSONAL DATA,465.54,ADOPTION PLACEMENTS & INTER AGENCY,PAYMENTS TO CARERS,2102689408
05.07.2017,CHILDREN'S SERVICES,REDACTED PERSONAL DATA,255.22,ADOPTION PLACEMENTS & INTER AGENCY,PAYMENTS TO CARERS,2102689439
05.07.2017,CHILDREN'S SERVICES,REDACTED PERSONAL DATA,269.22,ADOPTION PLACEMENTS & INTER AGENCY,PAYMENTS TO CARERS,2102689398
05.07.2017,CHILDREN'S SERVICES,REDACTED PERSONAL DATA,303.32,ADOPTION PLACEMENTS & INTER AGENCY,PAYMENTS TO CARERS,2102689423
05.07.2017,CHILDREN'S SERVICES,REDACTED PERSONAL DATA,256.54,ADOPTION PLACEMENTS & INTER AGENCY,PAYMENTS TO CARERS,2102689514
05.07.2017,CHILDREN'S SERVICES,REDACTED PERSONAL DATA,329.16,ADOPTION PLACEMENTS & INTER AGENCY,PAYMENTS TO CARERS,2102689349
05.07.2017,CHILDREN'S SERVICES,REDACTED PERSONAL DATA,329.16,ADOPTION PLACEMENTS & INTER AGENCY,PAYMENTS TO CARERS,2102689419
05.07.2017,CHILDREN'S SERVICES,REDACTED PERSONAL DATA,293.26,ADOPTION PLACEMENTS & INTER AGENCY,PAYMENTS TO CARERS,2102689443
05.07.2017,CHILDREN'S SERVICES,REDACTED PERSONAL DATA,279.26,ADOPTION PLACEMENTS & INTER AGENCY,PAYMENTS TO CARERS,2102689404
05.07.2017,CHILDREN'S SERVICES,REDACTED PERSONAL DATA,316.5,ADOPTION PLACEMENTS & INTER AGENCY,PAYMENTS TO CARERS,2102689500
05.07.2017,CHILDREN'S SERVICES,REDACTED PERSONAL DATA,375.54,ADOPTION PLACEMENTS & INTER AGENCY,PAYMENTS TO CARERS,2102689412
05.07.2017,CHILDREN'S SERVICES,REDACTED PERSONAL DATA,451.8,ADOPTION PLACEMENTS & INTER AGENCY,PAYMENTS TO CARERS,2102689427
05.07.2017,CHILDREN'S SERVICES,REDACTED PERSONAL DATA,295.3,ADOPTION PLACEMENTS & INTER AGENCY,PAYMENTS TO CARERS,2102689510
05.07.2017,CHILDREN'S SERVICES,REDACTED PERSONAL DATA,275.1,ADOPTION PLACEMENTS & INTER AGENCY,PAYMENTS TO CARERS,2102689396
05.07.2017,CHILDREN'S SERVICES,REDACTED PERSONAL DATA,316.5,ADOPTION PLACEMENTS & INTER AGENCY,PAYMENTS TO CARERS,2102689417
05.07.2017,CHILDREN'S SERVICES,REDACTED PERSONAL DATA,465.48,ADOPTION PLACEMENTS & INTER AGENCY,PAYMENTS TO CARERS,2102689448
05.07.2017,CHILDREN'S SERVICES,REDACTED PERSONAL DATA,375.54,ADOPTION PLACEMENTS & INTER AGENCY,PAYMENTS TO CARERS,2102689348
05.07.2017,CHILDREN'S SERVICES,REDACTED PERSONAL DATA,465.54,ADOPTION PLACEMENTS & INTER AGENCY,PAYMENTS TO CARERS,2102689342
05.07.2017,CHILDREN'S SERVICES,REDACTED PERSONAL DATA,465.54,ADOPTION PLACEMENTS & INTER AGENCY,PAYMENTS TO CARERS,2102689418
05.07.2017,CHILDREN'S SERVICES,REDACTED PERSONAL DATA,705.24,ADOPTION PLACEMENTS & INTER AGENCY,PAYMENTS TO CARERS,2102689421
05.07.2017,CHILDREN'S SERVICES,REDACTED PERSONAL DATA,777.36,ADOPTION PLACEMENTS & INTER AGENCY,PAYMENTS TO CARERS,2102689472
05.07.2017,CHILDREN'S SERVICES,REDACTED PERSONAL DATA,"1,011.20",ADOPTION PLACEMENTS & INTER AGENCY,PAYMENTS TO CARERS,2102689522
05.07.2017,CHILDREN'S SERVICES,REDACTED PERSONAL DATA,465.54,ADOPTION PLACEMENTS & INTER AGENCY,PAYMENTS TO CARERS,2102689463
05.07.2017,CHILDREN'S SERVICES,REDACTED PERSONAL DATA,512.02,ADOPTION PLACEMENTS & INTER AGENCY,PAYMENTS TO CARERS,2102689441
05.07.2017,CHILDREN'S SERVICES,REDACTED PERSONAL DATA,717.14,ADOPTION PLACEMENTS & INTER AGENCY,PAYMENTS TO CARERS,2102689434
05.07.2017,CHILDREN'S SERVICES,REDACTED PERSONAL DATA,534.54,ADOPTION PLACEMENTS & INTER AGENCY,PAYMENTS TO CARERS,2102689380
05.07.2017,CHILDREN'S SERVICES,REDACTED PERSONAL DATA,552.16,ADOPTION PLACEMENTS & INTER AGENCY,PAYMENTS TO CARERS,2102689407
05.07.2017,CHILDREN'S SERVICES,REDACTED PERSONAL DATA,375.54,ADOPTION PLACEMENTS & INTER AGENCY,PAYMENTS TO CARERS,2102689341
05.07.2017,CHILDREN'S SERVICES,REDACTED PERSONAL DATA,453.24,ADOPTION PLACEMENTS & INTER AGENCY,PAYMENTS TO CARERS,2102689332
05.07.2017,CHILDREN'S SERVICES,REDACTED PERSONAL DATA,465.52,ADOPTION PLACEMENTS & INTER AGENCY,PAYMENTS TO CARERS,2102689383
05.07.2017,CHILDREN'S SERVICES,REDACTED PERSONAL DATA,375.54,ADOPTION PLACEMENTS & INTER AGENCY,PAYMENTS TO CARERS,2102689410
05.07.2017,CHILDREN'S SERVICES,REDACTED PERSONAL DATA,457.14,ADOPTION PLACEMENTS & INTER AGENCY,PAYMENTS TO CARERS,2102689508
05.07.2017,CHILDREN'S SERVICES,REDACTED PERSONAL DATA,502,ADOPTION PLACEMENTS & INTER AGENCY,PAYMENTS TO CARERS,2102689356
05.07.2017,CHILDREN'S SERVICES,REDACTED PERSONAL DATA,375.54,ADOPTION PLACEMENTS & INTER AGENCY,PAYMENTS TO CARERS,2102689437
05.07.2017,CHILDREN'S SERVICES,REDACTED PERSONAL DATA,640.9,ADOPTION PLACEMENTS & INTER AGENCY,PAYMENTS TO CARERS,2102689350
05.07.2017,CHILDREN'S SERVICES,REDACTED PERSONAL DATA,382.3,ADOPTION PLACEMENTS & INTER AGENCY,PAYMENTS TO CARERS,2102689388
05.07.2017,CHILDREN'S SERVICES,REDACTED PERSONAL DATA,382.3,ADOPTION PLACEMENTS & INTER AGENCY,PAYMENTS TO CARERS,2102689449
05.07.2017,CHILDREN'S SERVICES,REDACTED PERSONAL DATA,375.54,ADOPTION PLACEMENTS & INTER AGENCY,PAYMENTS TO CARERS,2102689334
05.07.2017,CHILDREN'S SERVICES,REDACTED PERSONAL DATA,485.22,ADOPTION PLACEMENTS & INTER AGENCY,PAYMENTS TO CARERS,2102689461
05.07.2017,CHILDREN'S SERVICES,REDACTED PERSONAL DATA,319.36,ADOPTION PLACEMENTS & INTER AGENCY,PAYMENTS TO CARERS,2102689395
05.07.2017,CHILDREN'S SERVICES,REDACTED PERSONAL DATA,368.52,ADOPTION PLACEMENTS & INTER AGENCY,PAYMENTS TO CARERS,2102689425
05.07.2017,CHILDREN'S SERVICES,REDACTED PERSONAL DATA,252.9,ADOPTION PLACEMENTS & INTER AGENCY,PAYMENTS TO CARERS,2102689357
05.07.2017,CHILDREN'S SERVICES,REDACTED PERSONAL DATA,253.56,ADOPTION PLACEMENTS & INTER AGENCY,PAYMENTS TO CARERS,2102689389
05.07.2017,CHILDREN'S SERVICES,REDACTED PERSONAL DATA,382.3,ADOPTION PLACEMENTS & INTER AGENCY,PAYMENTS TO CARERS,2102689338
05.07.2017,CHILDREN'S SERVICES,REDACTED PERSONAL DATA,382.3,ADOPTION PLACEMENTS & INTER AGENCY,PAYMENTS TO CARERS,2102689429
05.07.2017,CHILDREN'S SERVICES,REDACTED PERSONAL DATA,484.92,ADOPTION PLACEMENTS & INTER AGENCY,PAYMENTS TO CARERS,2102689502
05.07.2017,CHILDREN'S SERVICES,REDACTED PERSONAL DATA,530,ADOPTION PLACEMENTS & INTER AGENCY,PAYMENTS TO CARERS,2102689426
05.07.2017,CHILDREN'S SERVICES,REDACTED PERSONAL DATA,908,ADOPTION PLACEMENTS & INTER AGENCY,PAYMENTS TO CARERS,2102689459
05.07.2017,CHILDREN'S SERVICES,REDACTED PERSONAL DATA,738.32,ADOPTION PLACEMENTS & INTER AGENCY,PAYMENTS TO CARERS,2102689352
05.07.2017,CHILDREN'S SERVICES,REDACTED PERSONAL DATA,695.12,ADOPTION PLACEMENTS & INTER AGENCY,PAYMENTS TO CARERS,2102689428
05.07.2017,CHILDREN'S SERVICES,REDACTED PERSONAL DATA,293.98,ADOPTION PLACEMENTS & INTER AGENCY,PAYMENTS TO CARERS,2102689433
05.07.2017,CHILDREN'S SERVICES,REDACTED PERSONAL DATA,652.9,ADOPTION PLACEMENTS & INTER AGENCY,PAYMENTS TO CARERS,2102689361
05.07.2017,CHILDREN'S SERVICES,REDACTED PERSONAL DATA,652.9,ADOPTION PLACEMENTS & INTER AGENCY,PAYMENTS TO CARERS,2102689512
05.07.2017,CHILDREN'S SERVICES,REDACTED PERSONAL DATA,854.28,ADOPTION PLACEMENTS & INTER AGENCY,PAYMENTS TO CARERS,2102689498
05.07.2017,CHILDREN'S SERVICES,REDACTED PERSONAL DATA,712.3,ADOPTION PLACEMENTS & INTER AGENCY,PAYMENTS TO CARERS,2102689488
05.07.2017,CHILDREN'S SERVICES,REDACTED PERSONAL DATA,767.68,ADOPTION PLACEMENTS & INTER AGENCY,PAYMENTS TO CARERS,2102689366
05.07.2017,CHILDREN'S SERVICES,REDACTED PERSONAL DATA,"1,647.18",ADOPTION PLACEMENTS & INTER AGENCY,PAYMENTS TO CARERS,2102689343
05.07.2017,CHILDREN'S SERVICES,REDACTED PERSONAL DATA,400.18,ADOPTION PLACEMENTS & INTER AGENCY,PAYMENTS TO CARERS,2102689486
05.07.2017,CHILDREN'S SERVICES,REDACTED PERSONAL DATA,682.3,ADOPTION PLACEMENTS & INTER AGENCY,PAYMENTS TO CARERS,2102689406
05.07.2017,CHILDREN'S SERVICES,REDACTED PERSONAL DATA,682.3,ADOPTION PLACEMENTS & INTER AGENCY,PAYMENTS TO CARERS,2102689416
05.07.2017,CHILDREN'S SERVICES,REDACTED PERSONAL DATA,588.42,ADOPTION PLACEMENTS & INTER AGENCY,PAYMENTS TO CARERS,2102689351
05.07.2017,CHILDREN'S SERVICES,REDACTED PERSONAL DATA,"1,053.20",ADOPTION PLACEMENTS & INTER AGENCY,PAYMENTS TO CARERS,2102689458
05.07.2017,CHILDREN'S SERVICES,REDACTED PERSONAL DATA,538.08,ADOPTION PLACEMENTS & INTER AGENCY,PAYMENTS TO CARERS,2102689339
05.07.2017,CHILDREN'S SERVICES,REDACTED PERSONAL DATA,571.43,ADOPTION PLACEMENTS & INTER AGENCY,PAYMENTS TO CARERS,2102689399
05.07.2017,CHILDREN'S SERVICES,REDACTED PERSONAL DATA,635.34,ADOPTION PLACEMENTS & INTER AGENCY,PAYMENTS TO CARERS,2102689474
05.07.2017,CHILDREN'S SERVICES,CARE O LINE,374.85,AIS - IHT,OTHER PAYMENTS FOR CLIENTS,5902257745
05.07.2017,CHILDREN'S SERVICES,CASTLE WATER LTD,"2,880.49",BUILDING SUMNER,WATER,5902257770
05.07.2017,CHILDREN'S SERVICES,ACTIVE RECRUITMENT SEN LTD,"3,231.56",CENTRAL COSTS - SEN,CONTRIBUTION TO PROVISIONS (TP PAYMENTS),5902257706
05.07.2017,CHILDREN'S SERVICES,REDACTED PERSONAL DATA,"1,604.38",DISABILITY & HIV,ADDITIONAL PAYMENTS TO AGENCIES/CARERS,2102689789
05.07.2017,CHILDREN'S SERVICES,REDACTED PERSONAL DATA,400,DISABILITY & HIV,ADDITIONAL PAYMENTS TO AGENCIES/CARERS,2102689954
05.07.2017,CHILDREN'S SERVICES,REDACTED PERSONAL DATA,400,DISABILITY & HIV,ADDITIONAL PAYMENTS TO AGENCIES/CARERS,2102689914
05.07.2017,CHILDREN'S SERVICES,REDACTED PERSONAL DATA,452.14,DISABILITY & HIV,ADDITIONAL PAYMENTS TO AGENCIES/CARERS,2102689665
05.07.2017,CHILDREN'S SERVICES,REDACTED PERSONAL DATA,400,DISABILITY & HIV,ADDITIONAL PAYMENTS TO AGENCIES/CARERS,2102689643
05.07.2017,CHILDREN'S SERVICES,REDACTED PERSONAL DATA,400,DISABILITY & HIV,ADDITIONAL PAYMENTS TO AGENCIES/CARERS,2102689837
05.07.2017,CHILDREN'S SERVICES,REDACTED PERSONAL DATA,300,DISABILITY & HIV,ADDITIONAL PAYMENTS TO AGENCIES/CARERS,2102689944
05.07.2017,CHILDREN'S SERVICES,REDACTED PERSONAL DATA,347.14,DISABILITY & HIV,ADDITIONAL PAYMENTS TO AGENCIES/CARERS,2102689798
05.07.2017,CHILDREN'S SERVICES,REDACTED PERSONAL DATA,400,DISABILITY & HIV,ADDITIONAL PAYMENTS TO AGENCIES/CARERS,2102689697
05.07.2017,CHILDREN'S SERVICES,REDACTED PERSONAL DATA,400,DISABILITY & HIV,ADDITIONAL PAYMENTS TO AGENCIES/CARERS,2102689895
05.07.2017,CHILDREN'S SERVICES,REDACTED PERSONAL DATA,"1,415.71",DISABILITY & HIV,ADDITIONAL PAYMENTS TO AGENCIES/CARERS,2102689880
05.07.2017,CHILDREN'S SERVICES,REDACTED PERSONAL DATA,400,DISABILITY & HIV,ADDITIONAL PAYMENTS TO AGENCIES/CARERS,2102689929
05.07.2017,CHILDREN'S SERVICES,REDACTED PERSONAL DATA,400,DISABILITY & HIV,ADDITIONAL PAYMENTS TO AGENCIES/CARERS,2102689781
05.07.2017,CHILDREN'S SERVICES,REDACTED PERSONAL DATA,400,DISABILITY & HIV,ADDITIONAL PAYMENTS TO AGENCIES/CARERS,2102689840
05.07.2017,CHILDREN'S SERVICES,REDACTED PERSONAL DATA,400,DISABILITY & HIV,ADDITIONAL PAYMENTS TO AGENCIES/CARERS,2102689923
05.07.2017,CHILDREN'S SERVICES,REDACTED PERSONAL DATA,623.57,DISABILITY & HIV,ADDITIONAL PAYMENTS TO AGENCIES/CARERS,2102689950
05.07.2017,CHILDREN'S SERVICES,REDACTED PERSONAL DATA,300,DISABILITY & HIV,ADDITIONAL PAYMENTS TO AGENCIES/CARERS,2102689811
05.07.2017,CHILDREN'S SERVICES,REDACTED PERSONAL DATA,400,DISABILITY & HIV,ADDITIONAL PAYMENTS TO AGENCIES/CARERS,2102689618
05.07.2017,CHILDREN'S SERVICES,REDACTED PERSONAL DATA,400,DISABILITY & HIV,PAYMENTS TO CARERS,2102689940
05.07.2017,CHILDREN'S SERVICES,REDACTED PERSONAL DATA,276,DISABILITY & HIV,PAYMENTS TO CARERS,2102689824
05.07.2017,CHILDREN'S SERVICES,REDACTED PERSONAL DATA,798.12,DISABILITY & HIV,PAYMENTS TO CARERS,2102689815
05.07.2017,CHILDREN'S SERVICES,REDACTED PERSONAL DATA,798.12,DISABILITY & HIV,PAYMENTS TO CARERS,2102689928
05.07.2017,CHILDREN'S SERVICES,REDACTED PERSONAL DATA,888.12,DISABILITY & HIV,PAYMENTS TO CARERS,2102689735
05.07.2017,CHILDREN'S SERVICES,REDACTED PERSONAL DATA,806.08,DISABILITY & HIV,PAYMENTS TO CARERS,2102689661
05.07.2017,CHILDREN'S SERVICES,REDACTED PERSONAL DATA,776.08,DISABILITY & HIV,PAYMENTS TO CARERS,2102689907
05.07.2017,CHILDREN'S SERVICES,REDACTED PERSONAL DATA,888.12,DISABILITY & HIV,PAYMENTS TO CARERS,2102689703
05.07.2017,CHILDREN'S SERVICES,REDACTED PERSONAL DATA,806.08,DISABILITY & HIV,PAYMENTS TO CARERS,2102689809
05.07.2017,CHILDREN'S SERVICES,REDACTED PERSONAL DATA,665.34,DISABILITY & HIV,PAYMENTS TO CARERS,2102689957
05.07.2017,CHILDREN'S SERVICES,REDACTED PERSONAL DATA,665.34,DISABILITY & HIV,PAYMENTS TO CARERS,2102689733
05.07.2017,CHILDREN'S SERVICES,REDACTED PERSONAL DATA,712.3,DISABILITY & HIV,PAYMENTS TO CARERS,2102689725
05.07.2017,CHILDREN'S SERVICES,REDACTED PERSONAL DATA,776.08,DISABILITY & HIV,PAYMENTS TO CARERS,2102689790
05.07.2017,CHILDREN'S SERVICES,REDACTED PERSONAL DATA,806.08,DISABILITY & HIV,PAYMENTS TO CARERS,2102689848
05.07.2017,CHILDREN'S SERVICES,REDACTED PERSONAL DATA,768.12,DISABILITY & HIV,PAYMENTS TO CARERS,2102689816
05.07.2017,CHILDREN'S SERVICES,REDACTED PERSONAL DATA,798.12,DISABILITY & HIV,PAYMENTS TO CARERS,2102689868
05.07.2017,CHILDREN'S SERVICES,REDACTED PERSONAL DATA,806.08,DISABILITY & HIV,PAYMENTS TO CARERS,2102689776
05.07.2017,CHILDREN'S SERVICES,REDACTED PERSONAL DATA,806.08,DISABILITY & HIV,PAYMENTS TO CARERS,2102689877
05.07.2017,CHILDREN'S SERVICES,REDACTED PERSONAL DATA,712.3,DISABILITY & HIV,PAYMENTS TO CARERS,2102689679
05.07.2017,CHILDREN'S SERVICES,REDACTED PERSONAL DATA,806.08,DISABILITY & HIV,PAYMENTS TO CARERS,2102689651
05.07.2017,CHILDREN'S SERVICES,REDACTED PERSONAL DATA,712.3,DISABILITY & HIV,PAYMENTS TO CARERS,2102689943
05.07.2017,CHILDREN'S SERVICES,REDACTED PERSONAL DATA,806.08,DISABILITY & HIV,PAYMENTS TO CARERS,2102689836
05.07.2017,CHILDREN'S SERVICES,REDACTED PERSONAL DATA,806.08,DISABILITY & HIV,PAYMENTS TO CARERS,2102689922
05.07.2017,CHILDREN'S SERVICES,REDACTED PERSONAL DATA,712.3,DISABILITY & HIV,PAYMENTS TO CARERS,2102689842
05.07.2017,CHILDREN'S SERVICES,REDACTED PERSONAL DATA,806.08,DISABILITY & HIV,PAYMENTS TO CARERS,2102689939
05.07.2017,CHILDREN'S SERVICES,REDACTED PERSONAL DATA,806.08,DISABILITY & HIV,PAYMENTS TO CARERS,2102689788
05.07.2017,CHILDREN'S SERVICES,REDACTED PERSONAL DATA,888.12,DISABILITY & HIV,PAYMENTS TO CARERS,2102689876
05.07.2017,CHILDREN'S SERVICES,REDACTED PERSONAL DATA,798.12,DISABILITY & HIV,PAYMENTS TO CARERS,2102689687
05.07.2017,CHILDREN'S SERVICES,REDACTED PERSONAL DATA,888.12,DISABILITY & HIV,PAYMENTS TO CARERS,2102689779
05.07.2017,CHILDREN'S SERVICES,REDACTED PERSONAL DATA,888.12,DISABILITY & HIV,PAYMENTS TO CARERS,2102689891
05.07.2017,CHILDREN'S SERVICES,REDACTED PERSONAL DATA,712.3,DISABILITY & HIV,PAYMENTS TO CARERS,2102689759
05.07.2017,CHILDREN'S SERVICES,REDACTED PERSONAL DATA,806.08,DISABILITY & HIV,PAYMENTS TO CARERS,2102689955
05.07.2017,CHILDREN'S SERVICES,REDACTED PERSONAL DATA,888.12,DISABILITY & HIV,PAYMENTS TO CARERS,2102689731
05.07.2017,CHILDREN'S SERVICES,REDACTED PERSONAL DATA,665.34,DISABILITY & HIV,PAYMENTS TO CARERS,2102689908
05.07.2017,CHILDREN'S SERVICES,REDACTED PERSONAL DATA,858.12,DISABILITY & HIV,PAYMENTS TO CARERS,2102689689
05.07.2017,CHILDREN'S SERVICES,REDACTED PERSONAL DATA,858.12,DISABILITY & HIV,PAYMENTS TO CARERS,2102689886
05.07.2017,CHILDREN'S SERVICES,REDACTED PERSONAL DATA,665.34,DISABILITY & HIV,PAYMENTS TO CARERS,2102689865
05.07.2017,CHILDREN'S SERVICES,REDACTED PERSONAL DATA,924.2,DISABILITY & HIV,PAYMENTS TO CARERS,2102689915
05.07.2017,CHILDREN'S SERVICES,REDACTED PERSONAL DATA,682.3,DISABILITY & HIV,PAYMENTS TO CARERS,2102689766
05.07.2017,CHILDREN'S SERVICES,REDACTED PERSONAL DATA,858.12,DISABILITY & HIV,PAYMENTS TO CARERS,2102689677
05.07.2017,CHILDREN'S SERVICES,REDACTED PERSONAL DATA,665.34,DISABILITY & HIV,PAYMENTS TO CARERS,2102689657
05.07.2017,CHILDREN'S SERVICES,REDACTED PERSONAL DATA,888.12,DISABILITY & HIV,PAYMENTS TO CARERS,2102689667
05.07.2017,CHILDREN'S SERVICES,REDACTED PERSONAL DATA,888.12,DISABILITY & HIV,PAYMENTS TO CARERS,2102689645
05.07.2017,CHILDREN'S SERVICES,REDACTED PERSONAL DATA,712.3,DISABILITY & HIV,PAYMENTS TO CARERS,2102689739
05.07.2017,CHILDREN'S SERVICES,REDACTED PERSONAL DATA,"1,321.08",DISABILITY & HIV,PAYMENTS TO CARERS,2102689649
05.07.2017,CHILDREN'S SERVICES,REDACTED PERSONAL DATA,"1,481.85",DISABILITY & HIV,PAYMENTS TO CARERS,2102689713
05.07.2017,CHILDREN'S SERVICES,REDACTED PERSONAL DATA,712.3,DISABILITY & HIV,PAYMENTS TO CARERS,2102689844
05.07.2017,CHILDREN'S SERVICES,REDACTED PERSONAL DATA,991.48,DISABILITY & HIV,PAYMENTS TO CARERS,2102689838
05.07.2017,CHILDREN'S SERVICES,REDACTED PERSONAL DATA,768.12,DISABILITY & HIV,PAYMENTS TO CARERS,2102689705
05.07.2017,CHILDREN'S SERVICES,REDACTED PERSONAL DATA,252.64,DISABILITY & HIV,PAYMENTS TO CARERS,2102689827
05.07.2017,CHILDREN'S SERVICES,REDACTED PERSONAL DATA,272.73,DISABILITY & HIV,PAYMENTS TO CARERS,2102689624
05.07.2017,CHILDREN'S SERVICES,REDACTED PERSONAL DATA,272.73,DISABILITY & HIV,PAYMENTS TO CARERS,2102689797
05.07.2017,CHILDREN'S SERVICES,REDACTED PERSONAL DATA,798.12,DISABILITY & HIV,PAYMENTS TO CARERS,2102689800
05.07.2017,CHILDREN'S SERVICES,REDACTED PERSONAL DATA,888.16,DISABILITY & HIV,PAYMENTS TO CARERS,2102689765
05.07.2017,CHILDREN'S SERVICES,REDACTED PERSONAL DATA,888.12,DISABILITY & HIV,PAYMENTS TO CARERS,2102689910
05.07.2017,CHILDREN'S SERVICES,REDACTED PERSONAL DATA,888.12,DISABILITY & HIV,PAYMENTS TO CARERS,2102689634
05.07.2017,CHILDREN'S SERVICES,REDACTED PERSONAL DATA,888.12,DISABILITY & HIV,PAYMENTS TO CARERS,2102689737
05.07.2017,CHILDREN'S SERVICES,REDACTED PERSONAL DATA,888.12,DISABILITY & HIV,PAYMENTS TO CARERS,2102689879
05.07.2017,CHILDREN'S SERVICES,REDACTED PERSONAL DATA,798.12,DISABILITY & HIV,PAYMENTS TO CARERS,2102689799
05.07.2017,CHILDREN'S SERVICES,REDACTED PERSONAL DATA,806.08,DISABILITY & HIV,PAYMENTS TO CARERS,2102689833
05.07.2017,CHILDREN'S SERVICES,REDACTED PERSONAL DATA,806.08,DISABILITY & HIV,PAYMENTS TO CARERS,2102689859
05.07.2017,CHILDREN'S SERVICES,REDACTED PERSONAL DATA,-403.04,DISABILITY & HIV,PAYMENTS TO CARERS,2102689933
05.07.2017,CHILDREN'S SERVICES,REDACTED PERSONAL DATA,798.12,DISABILITY & HIV,PAYMENTS TO CARERS,2102689856
05.07.2017,CHILDREN'S SERVICES,REDACTED PERSONAL DATA,798.12,DISABILITY & HIV,PAYMENTS TO CARERS,2102689864
05.07.2017,CHILDREN'S SERVICES,REDACTED PERSONAL DATA,806.08,DISABILITY & HIV,PAYMENTS TO CARERS,2102689961
05.07.2017,CHILDREN'S SERVICES,REDACTED PERSONAL DATA,"2,347.17",DISABILITY & HIV,PAYMENTS TO CARERS,2102689699
05.07.2017,CHILDREN'S SERVICES,REDACTED PERSONAL DATA,-285.15,DISABILITY & HIV,PAYMENTS TO CARERS,2102689945
05.07.2017,CHILDREN'S SERVICES,REDACTED PERSONAL DATA,665.34,DISABILITY & HIV,PAYMENTS TO CARERS,2102689858
05.07.2017,CHILDREN'S SERVICES,REDACTED PERSONAL DATA,888.12,DISABILITY & HIV,PAYMENTS TO CARERS,2102689882
05.07.2017,CHILDREN'S SERVICES,REDACTED PERSONAL DATA,888.12,DISABILITY & HIV,PAYMENTS TO CARERS,2102689941
05.07.2017,CHILDREN'S SERVICES,REDACTED PERSONAL DATA,712.3,DISABILITY & HIV,PAYMENTS TO CARERS,2102689884
05.07.2017,CHILDREN'S SERVICES,REDACTED PERSONAL DATA,888.12,DISABILITY & HIV,PAYMENTS TO CARERS,2102689835
05.07.2017,CHILDREN'S SERVICES,REDACTED PERSONAL DATA,712.3,DISABILITY & HIV,PAYMENTS TO CARERS,2102689818
05.07.2017,CHILDREN'S SERVICES,REDACTED PERSONAL DATA,841.24,DISABILITY & HIV,PAYMENTS TO CARERS,2102689896
05.07.2017,CHILDREN'S SERVICES,REDACTED PERSONAL DATA,951.56,DISABILITY & HIV,PAYMENTS TO CARERS,2102689881
05.07.2017,CHILDREN'S SERVICES,REDACTED PERSONAL DATA,806.08,DISABILITY & HIV,PAYMENTS TO CARERS,2102689769
05.07.2017,CHILDREN'S SERVICES,REDACTED PERSONAL DATA,806.08,DISABILITY & HIV,PAYMENTS TO CARERS,2102689814
05.07.2017,CHILDREN'S SERVICES,REDACTED PERSONAL DATA,806.08,DISABILITY & HIV,PAYMENTS TO CARERS,2102689883
05.07.2017,CHILDREN'S SERVICES,REDACTED PERSONAL DATA,888.12,DISABILITY & HIV,PAYMENTS TO CARERS,2102689610
05.07.2017,CHILDREN'S SERVICES,REDACTED PERSONAL DATA,806.08,DISABILITY & HIV,PAYMENTS TO CARERS,2102689808
05.07.2017,CHILDREN'S SERVICES,REDACTED PERSONAL DATA,806.08,DISABILITY & HIV,PAYMENTS TO CARERS,2102689826
05.07.2017,CHILDREN'S SERVICES,REDACTED PERSONAL DATA,806.08,DISABILITY & HIV,PAYMENTS TO CARERS,2102689831
05.07.2017,CHILDREN'S SERVICES,REDACTED PERSONAL DATA,806.08,DISABILITY & HIV,PAYMENTS TO CARERS,2102689909
05.07.2017,CHILDREN'S SERVICES,REDACTED PERSONAL DATA,712.3,DISABILITY & HIV,PAYMENTS TO CARERS,2102689821
05.07.2017,CHILDREN'S SERVICES,REDACTED PERSONAL DATA,806.08,DISABILITY & HIV,PAYMENTS TO CARERS,2102689681
05.07.2017,CHILDREN'S SERVICES,REDACTED PERSONAL DATA,806.08,DISABILITY & HIV,PAYMENTS TO CARERS,2102689962
05.07.2017,CHILDREN'S SERVICES,REDACTED PERSONAL DATA,665.34,DISABILITY & HIV,PAYMENTS TO CARERS,2102689608
05.07.2017,CHILDREN'S SERVICES,REDACTED PERSONAL DATA,991.42,DISABILITY & HIV,PAYMENTS TO CARERS,2102689600
05.07.2017,CHILDREN'S SERVICES,REDACTED PERSONAL DATA,"1,094.60",DISABILITY & HIV,PAYMENTS TO CARERS,2102689828
05.07.2017,CHILDREN'S SERVICES,REDACTED PERSONAL DATA,635.34,DISABILITY & HIV,PAYMENTS TO CARERS,2102689628
05.07.2017,CHILDREN'S SERVICES,REDACTED PERSONAL DATA,665.34,DISABILITY & HIV,PAYMENTS TO CARERS,2102689784
05.07.2017,CHILDREN'S SERVICES,REDACTED PERSONAL DATA,712.3,DISABILITY & HIV,PAYMENTS TO CARERS,2102689846
05.07.2017,CHILDREN'S SERVICES,REDACTED PERSONAL DATA,712.3,DISABILITY & HIV,PAYMENTS TO CARERS,2102689711
05.07.2017,CHILDREN'S SERVICES,REDACTED PERSONAL DATA,806.08,DISABILITY & HIV,PAYMENTS TO CARERS,2102689930
05.07.2017,CHILDREN'S SERVICES,REDACTED PERSONAL DATA,798.12,DISABILITY & HIV,PAYMENTS TO CARERS,2102689671
05.07.2017,CHILDREN'S SERVICES,REDACTED PERSONAL DATA,888.12,DISABILITY & HIV,PAYMENTS TO CARERS,2102689845
05.07.2017,CHILDREN'S SERVICES,REDACTED PERSONAL DATA,798.12,DISABILITY & HIV,PAYMENTS TO CARERS,2102689852
05.07.2017,CHILDREN'S SERVICES,REDACTED PERSONAL DATA,806.08,DISABILITY & HIV,PAYMENTS TO CARERS,2102689655
05.07.2017,CHILDREN'S SERVICES,REDACTED PERSONAL DATA,806.08,DISABILITY & HIV,PAYMENTS TO CARERS,2102689756
05.07.2017,CHILDREN'S SERVICES,REDACTED PERSONAL DATA,798.12,DISABILITY & HIV,PAYMENTS TO CARERS,2102689938
05.07.2017,CHILDREN'S SERVICES,REDACTED PERSONAL DATA,806.08,DISABILITY & HIV,PAYMENTS TO CARERS,2102689771
05.07.2017,CHILDREN'S SERVICES,REDACTED PERSONAL DATA,806.08,DISABILITY & HIV,PAYMENTS TO CARERS,2102689897
05.07.2017,CHILDREN'S SERVICES,REDACTED PERSONAL DATA,635.34,DISABILITY & HIV,PAYMENTS TO CARERS,2102689911
05.07.2017,CHILDREN'S SERVICES,REDACTED PERSONAL DATA,712.3,DISABILITY & HIV,PAYMENTS TO CARERS,2102689804
05.07.2017,CHILDREN'S SERVICES,REDACTED PERSONAL DATA,"1,094.60",DISABILITY & HIV,PAYMENTS TO CARERS,2102689782
05.07.2017,CHILDREN'S SERVICES,REDACTED PERSONAL DATA,712.3,DISABILITY & HIV,PAYMENTS TO CARERS,2102689849
05.07.2017,CHILDREN'S SERVICES,REDACTED PERSONAL DATA,806.08,DISABILITY & HIV,PAYMENTS TO CARERS,2102689616
05.07.2017,CHILDREN'S SERVICES,REDACTED PERSONAL DATA,806.08,DISABILITY & HIV,PAYMENTS TO CARERS,2102689937
05.07.2017,CHILDREN'S SERVICES,REDACTED PERSONAL DATA,798.12,DISABILITY & HIV,PAYMENTS TO CARERS,2102689638
05.07.2017,CHILDREN'S SERVICES,REDACTED PERSONAL DATA,798.12,DISABILITY & HIV,PAYMENTS TO CARERS,2102689783
05.07.2017,CHILDREN'S SERVICES,REDACTED PERSONAL DATA,806.08,DISABILITY & HIV,PAYMENTS TO CARERS,2102689902
05.07.2017,CHILDREN'S SERVICES,REDACTED PERSONAL DATA,806.08,DISABILITY & HIV,PAYMENTS TO CARERS,2102689920
05.07.2017,CHILDREN'S SERVICES,REDACTED PERSONAL DATA,991.42,DISABILITY & HIV,PAYMENTS TO CARERS,2102689841
05.07.2017,CHILDREN'S SERVICES,REDACTED PERSONAL DATA,991.42,DISABILITY & HIV,PAYMENTS TO CARERS,2102689924
05.07.2017,CHILDREN'S SERVICES,REDACTED PERSONAL DATA,665.34,DISABILITY & HIV,PAYMENTS TO CARERS,2102689612
05.07.2017,CHILDREN'S SERVICES,REDACTED PERSONAL DATA,712.3,DISABILITY & HIV,PAYMENTS TO CARERS,2102689763
05.07.2017,CHILDREN'S SERVICES,REDACTED PERSONAL DATA,806.08,DISABILITY & HIV,PAYMENTS TO CARERS,2102689843
05.07.2017,CHILDREN'S SERVICES,REDACTED PERSONAL DATA,635.34,DISABILITY & HIV,PAYMENTS TO CARERS,2102689636
05.07.2017,CHILDREN'S SERVICES,REDACTED PERSONAL DATA,665.34,DISABILITY & HIV,PAYMENTS TO CARERS,2102689829
05.07.2017,CHILDREN'S SERVICES,REDACTED PERSONAL DATA,806.08,DISABILITY & HIV,PAYMENTS TO CARERS,2102689935
05.07.2017,CHILDREN'S SERVICES,REDACTED PERSONAL DATA,665.34,DISABILITY & HIV,PAYMENTS TO CARERS,2102689719
05.07.2017,CHILDREN'S SERVICES,REDACTED PERSONAL DATA,665.34,DISABILITY & HIV,PAYMENTS TO CARERS,2102689857
05.07.2017,CHILDREN'S SERVICES,REDACTED PERSONAL DATA,888.12,DISABILITY & HIV,PAYMENTS TO CARERS,2102689685
05.07.2017,CHILDREN'S SERVICES,REDACTED PERSONAL DATA,712.3,DISABILITY & HIV,PAYMENTS TO CARERS,2102689959
05.07.2017,CHILDREN'S SERVICES,REDACTED PERSONAL DATA,806.08,DISABILITY & HIV,PAYMENTS TO CARERS,2102689872
05.07.2017,CHILDREN'S SERVICES,REDACTED PERSONAL DATA,665.34,DISABILITY & HIV,PAYMENTS TO CARERS,2102689949
05.07.2017,CHILDREN'S SERVICES,REDACTED PERSONAL DATA,712.3,DISABILITY & HIV,PAYMENTS TO CARERS,2102689878
05.07.2017,CHILDREN'S SERVICES,REDACTED PERSONAL DATA,806.08,DISABILITY & HIV,PAYMENTS TO CARERS,2102689598
05.07.2017,CHILDREN'S SERVICES,REDACTED PERSONAL DATA,-305.27,DISABILITY & HIV,PAYMENTS TO CARERS,2102689942
05.07.2017,CHILDREN'S SERVICES,REDACTED PERSONAL DATA,888.12,DISABILITY & HIV,PAYMENTS TO CARERS,2102689885
05.07.2017,CHILDREN'S SERVICES,REDACTED PERSONAL DATA,"1,368.20",DISABILITY & HIV,PAYMENTS TO CARERS,2102689675
05.07.2017,CHILDREN'S SERVICES,REDACTED PERSONAL DATA,806.08,DISABILITY & HIV,PAYMENTS TO CARERS,2102689867
05.07.2017,CHILDREN'S SERVICES,REDACTED PERSONAL DATA,854.28,DISABILITY & HIV,PAYMENTS TO CARERS,2102689819
05.07.2017,CHILDREN'S SERVICES,REDACTED PERSONAL DATA,806.08,DISABILITY & HIV,PAYMENTS TO CARERS,2102689780
05.07.2017,CHILDREN'S SERVICES,REDACTED PERSONAL DATA,806.08,DISABILITY & HIV,PAYMENTS TO CARERS,2102689850
05.07.2017,CHILDREN'S SERVICES,REDACTED PERSONAL DATA,806.08,DISABILITY & HIV,PAYMENTS TO CARERS,2102689854
05.07.2017,CHILDREN'S SERVICES,REDACTED PERSONAL DATA,858.12,DISABILITY & HIV,PAYMENTS TO CARERS,2102689775
05.07.2017,CHILDREN'S SERVICES,REDACTED PERSONAL DATA,"1,522.49",DISABILITY & HIV,PAYMENTS TO CARERS,2102689903
05.07.2017,CHILDREN'S SERVICES,REDACTED PERSONAL DATA,712.3,DISABILITY & HIV,PAYMENTS TO CARERS,2102689673
05.07.2017,CHILDREN'S SERVICES,REDACTED PERSONAL DATA,712.3,DISABILITY & HIV,PAYMENTS TO CARERS,2102689762
05.07.2017,CHILDREN'S SERVICES,REDACTED PERSONAL DATA,712.3,DISABILITY & HIV,PAYMENTS TO CARERS,2102689904
05.07.2017,CHILDREN'S SERVICES,REDACTED PERSONAL DATA,806.08,DISABILITY & HIV,PAYMENTS TO CARERS,2102689772
05.07.2017,CHILDREN'S SERVICES,REDACTED PERSONAL DATA,635.34,DISABILITY & HIV,PAYMENTS TO CARERS,2102689936
05.07.2017,CHILDREN'S SERVICES,REDACTED PERSONAL DATA,682.3,DISABILITY & HIV,PAYMENTS TO CARERS,2102689807
05.07.2017,CHILDREN'S SERVICES,REDACTED PERSONAL DATA,776.08,DISABILITY & HIV,PAYMENTS TO CARERS,2102689830
05.07.2017,CHILDREN'S SERVICES,REDACTED PERSONAL DATA,806.08,DISABILITY & HIV,PAYMENTS TO CARERS,2102689747
05.07.2017,CHILDREN'S SERVICES,REDACTED PERSONAL DATA,806.08,DISABILITY & HIV,PAYMENTS TO CARERS,2102689900
05.07.2017,CHILDREN'S SERVICES,REDACTED PERSONAL DATA,801.68,DISABILITY & HIV,PAYMENTS TO CARERS,2102689810
05.07.2017,CHILDREN'S SERVICES,REDACTED PERSONAL DATA,665.34,DISABILITY & HIV,PAYMENTS TO CARERS,2102689791
05.07.2017,CHILDREN'S SERVICES,REDACTED PERSONAL DATA,712.3,DISABILITY & HIV,PAYMENTS TO CARERS,2102689785
05.07.2017,CHILDREN'S SERVICES,REDACTED PERSONAL DATA,888.12,DISABILITY & HIV,PAYMENTS TO CARERS,2102689951
05.07.2017,CHILDREN'S SERVICES,REDACTED PERSONAL DATA,888.12,DISABILITY & HIV,PAYMENTS TO CARERS,2102689906
05.07.2017,CHILDREN'S SERVICES,REDACTED PERSONAL DATA,742.3,DISABILITY & HIV,PAYMENTS TO CARERS,2102689796
05.07.2017,CHILDREN'S SERVICES,REDACTED PERSONAL DATA,682.3,DISABILITY & HIV,PAYMENTS TO CARERS,2102689870
05.07.2017,CHILDREN'S SERVICES,REDACTED PERSONAL DATA,776.08,DISABILITY & HIV,PAYMENTS TO CARERS,2102689921
05.07.2017,CHILDREN'S SERVICES,REDACTED PERSONAL DATA,888.12,DISABILITY & HIV,PAYMENTS TO CARERS,2102689723
05.07.2017,CHILDREN'S SERVICES,REDACTED PERSONAL DATA,"1,379.08",DISABILITY & HIV,PAYMENTS TO CARERS,2102689801
05.07.2017,CHILDREN'S SERVICES,REDACTED PERSONAL DATA,806.08,DISABILITY & HIV,PAYMENTS TO CARERS,2102689874
05.07.2017,CHILDREN'S SERVICES,REDACTED PERSONAL DATA,806.08,DISABILITY & HIV,PAYMENTS TO CARERS,2102689952
05.07.2017,CHILDREN'S SERVICES,REDACTED PERSONAL DATA,279,DISABILITY & HIV,PAYMENTS TO CARERS,2102689860
05.07.2017,CHILDREN'S SERVICES,REDACTED PERSONAL DATA,403.04,DISABILITY & HIV,PAYMENTS TO CARERS,2102689777
05.07.2017,CHILDREN'S SERVICES,REDACTED PERSONAL DATA,712.3,DISABILITY & HIV,PAYMENTS TO CARERS,2102689825
05.07.2017,CHILDREN'S SERVICES,REDACTED PERSONAL DATA,635.34,DISABILITY & HIV,PAYMENTS TO CARERS,2102689761
05.07.2017,CHILDREN'S SERVICES,REDACTED PERSONAL DATA,682.3,DISABILITY & HIV,PAYMENTS TO CARERS,2102689767
05.07.2017,CHILDREN'S SERVICES,REDACTED PERSONAL DATA,682.3,DISABILITY & HIV,PAYMENTS TO CARERS,2102689751
05.07.2017,CHILDREN'S SERVICES,REDACTED PERSONAL DATA,712.3,DISABILITY & HIV,PAYMENTS TO CARERS,2102689721
05.07.2017,CHILDREN'S SERVICES,REDACTED PERSONAL DATA,712.3,DISABILITY & HIV,PAYMENTS TO CARERS,2102689894
05.07.2017,CHILDREN'S SERVICES,REDACTED PERSONAL DATA,855.2,DISABILITY & HIV,PAYMENTS TO CARERS,2102689812
05.07.2017,CHILDREN'S SERVICES,REDACTED PERSONAL DATA,682.3,DISABILITY & HIV,PAYMENTS TO CARERS,2102689749
05.07.2017,CHILDREN'S SERVICES,REDACTED PERSONAL DATA,682.3,DISABILITY & HIV,PAYMENTS TO CARERS,2102689869
05.07.2017,CHILDREN'S SERVICES,REDACTED PERSONAL DATA,806.08,DISABILITY & HIV,PAYMENTS TO CARERS,2102689768
05.07.2017,CHILDREN'S SERVICES,REDACTED PERSONAL DATA,682.3,DISABILITY & HIV,PAYMENTS TO CARERS,2102689926
05.07.2017,CHILDREN'S SERVICES,REDACTED PERSONAL DATA,682.3,DISABILITY & HIV,PAYMENTS TO CARERS,2102689691
05.07.2017,CHILDREN'S SERVICES,REDACTED PERSONAL DATA,682.3,DISABILITY & HIV,PAYMENTS TO CARERS,2102689741
05.07.2017,CHILDREN'S SERVICES,REDACTED PERSONAL DATA,949.76,DISABILITY & HIV,PAYMENTS TO CARERS,2102689919
05.07.2017,CHILDREN'S SERVICES,REDACTED PERSONAL DATA,776.08,DISABILITY & HIV,PAYMENTS TO CARERS,2102689770
05.07.2017,CHILDREN'S SERVICES,REDACTED PERSONAL DATA,776.08,DISABILITY & HIV,PAYMENTS TO CARERS,2102689794
05.07.2017,CHILDREN'S SERVICES,REDACTED PERSONAL DATA,682.3,DISABILITY & HIV,PAYMENTS TO CARERS,2102689792
05.07.2017,CHILDREN'S SERVICES,REDACTED PERSONAL DATA,858.12,DISABILITY & HIV,PAYMENTS TO CARERS,2102689948
05.07.2017,CHILDREN'S SERVICES,REDACTED PERSONAL DATA,888.12,DISABILITY & HIV,PAYMENTS TO CARERS,2102689875
05.07.2017,CHILDREN'S SERVICES,REDACTED PERSONAL DATA,682.3,DISABILITY & HIV,PAYMENTS TO CARERS,2102689855
05.07.2017,CHILDREN'S SERVICES,REDACTED PERSONAL DATA,635.34,DISABILITY & HIV,PAYMENTS TO CARERS,2102689820
05.07.2017,CHILDREN'S SERVICES,REDACTED PERSONAL DATA,682.3,DISABILITY & HIV,PAYMENTS TO CARERS,2102689717
05.07.2017,CHILDREN'S SERVICES,REDACTED PERSONAL DATA,798.12,DISABILITY & HIV,PAYMENTS TO CARERS,2102689620
05.07.2017,CHILDREN'S SERVICES,REDACTED PERSONAL DATA,682.3,DISABILITY & HIV,PAYMENTS TO CARERS,2102689622
05.07.2017,CHILDREN'S SERVICES,REDACTED PERSONAL DATA,888.12,DISABILITY & HIV,PAYMENTS TO CARERS,2102689604
05.07.2017,CHILDREN'S SERVICES,REDACTED PERSONAL DATA,888.12,DISABILITY & HIV,PAYMENTS TO CARERS,2102689890
05.07.2017,CHILDREN'S SERVICES,REDACTED PERSONAL DATA,888.12,DISABILITY & HIV,PAYMENTS TO CARERS,2102689901
05.07.2017,CHILDREN'S SERVICES,REDACTED PERSONAL DATA,768.12,DISABILITY & HIV,PAYMENTS TO CARERS,2102689786
05.07.2017,CHILDREN'S SERVICES,REDACTED PERSONAL DATA,858.12,DISABILITY & HIV,PAYMENTS TO CARERS,2102689823
05.07.2017,CHILDREN'S SERVICES,REDACTED PERSONAL DATA,776.08,DISABILITY & HIV,PAYMENTS TO CARERS,2102689715
05.07.2017,CHILDREN'S SERVICES,REDACTED PERSONAL DATA,776.08,DISABILITY & HIV,PAYMENTS TO CARERS,2102689918
05.07.2017,CHILDREN'S SERVICES,REDACTED PERSONAL DATA,858.12,DISABILITY & HIV,PAYMENTS TO CARERS,2102689873
05.07.2017,CHILDREN'S SERVICES,REDACTED PERSONAL DATA,776.08,DISABILITY & HIV,PAYMENTS TO CARERS,2102689802
05.07.2017,CHILDREN'S SERVICES,REDACTED PERSONAL DATA,858.12,DISABILITY & HIV,PAYMENTS TO CARERS,2102689913
05.07.2017,CHILDREN'S SERVICES,REDACTED PERSONAL DATA,776.08,DISABILITY & HIV,PAYMENTS TO CARERS,2102689632
05.07.2017,CHILDREN'S SERVICES,REDACTED PERSONAL DATA,776.08,DISABILITY & HIV,PAYMENTS TO CARERS,2102689760
05.07.2017,CHILDREN'S SERVICES,REDACTED PERSONAL DATA,635.34,DISABILITY & HIV,PAYMENTS TO CARERS,2102689787
05.07.2017,CHILDREN'S SERVICES,REDACTED PERSONAL DATA,635.34,DISABILITY & HIV,PAYMENTS TO CARERS,2102689916
05.07.2017,CHILDREN'S SERVICES,REDACTED PERSONAL DATA,682.3,DISABILITY & HIV,PAYMENTS TO CARERS,2102689805
05.07.2017,CHILDREN'S SERVICES,REDACTED PERSONAL DATA,635.34,DISABILITY & HIV,PAYMENTS TO CARERS,2102689659
05.07.2017,CHILDREN'S SERVICES,REDACTED PERSONAL DATA,768.12,DISABILITY & HIV,PAYMENTS TO CARERS,2102689892
05.07.2017,CHILDREN'S SERVICES,REDACTED PERSONAL DATA,682.3,DISABILITY & HIV,PAYMENTS TO CARERS,2102689793
05.07.2017,CHILDREN'S SERVICES,REDACTED PERSONAL DATA,635.34,DISABILITY & HIV,PAYMENTS TO CARERS,2102689822
05.07.2017,CHILDREN'S SERVICES,REDACTED PERSONAL DATA,335.34,DISABILITY & HIV,PAYMENTS TO CARERS,2102689953
05.07.2017,CHILDREN'S SERVICES,CORAL COMMUNITY ASSESSMENTS LTD,"2,200.00",FAMILY ASSESSMENTS,RESIDENTIAL CARE,5902257758
05.07.2017,CHILDREN'S SERVICES,YVONNE WILSON LTD,452.1,FAMILY ASSESSMENTS,RESIDENTIAL CARE,5902257734
05.07.2017,CHILDREN'S SERVICES,REDACTED PERSONAL DATA,682.3,FRIENDS & FAMILY FOSTERING,PAYMENTS TO CARERS,2102689985
05.07.2017,CHILDREN'S SERVICES,REDACTED PERSONAL DATA,382.3,FRIENDS & FAMILY FOSTERING,PAYMENTS TO CARERS,2102689979
05.07.2017,CHILDREN'S SERVICES,REDACTED PERSONAL DATA,767.66,FRIENDS & FAMILY FOSTERING,PAYMENTS TO CARERS,2102689995
05.07.2017,CHILDREN'S SERVICES,REDACTED PERSONAL DATA,682.3,FRIENDS & FAMILY FOSTERING,PAYMENTS TO CARERS,2102689987
05.07.2017,CHILDREN'S SERVICES,REDACTED PERSONAL DATA,682.3,FRIENDS & FAMILY FOSTERING,PAYMENTS TO CARERS,2102689990
05.07.2017,CHILDREN'S SERVICES,REDACTED PERSONAL DATA,776.08,FRIENDS & FAMILY FOSTERING,PAYMENTS TO CARERS,2102689978
05.07.2017,CHILDREN'S SERVICES,REDACTED PERSONAL DATA,635.34,FRIENDS & FAMILY FOSTERING,PAYMENTS TO CARERS,2102689982
05.07.2017,CHILDREN'S SERVICES,REDACTED PERSONAL DATA,682.3,FRIENDS & FAMILY FOSTERING,PAYMENTS TO CARERS,2102689974
05.07.2017,CHILDREN'S SERVICES,REDACTED PERSONAL DATA,682.3,FRIENDS & FAMILY FOSTERING,PAYMENTS TO CARERS,2102689984
05.07.2017,CHILDREN'S SERVICES,REDACTED PERSONAL DATA,375.54,FRIENDS & FAMILY FOSTERING,PAYMENTS TO CARERS,2102689973
05.07.2017,CHILDREN'S SERVICES,REDACTED PERSONAL DATA,329.42,FRIENDS & FAMILY FOSTERING,PAYMENTS TO CARERS,2102689986
05.07.2017,CHILDREN'S SERVICES,REDACTED PERSONAL DATA,682.3,FRIENDS & FAMILY FOSTERING,PAYMENTS TO CARERS,2102689981
05.07.2017,CHILDREN'S SERVICES,REDACTED PERSONAL DATA,776.08,FRIENDS & FAMILY FOSTERING,PAYMENTS TO CARERS,2102689964
05.07.2017,CHILDREN'S SERVICES,REDACTED PERSONAL DATA,776.08,FRIENDS & FAMILY FOSTERING,PAYMENTS TO CARERS,2102689967
05.07.2017,CHILDREN'S SERVICES,REDACTED PERSONAL DATA,682.3,FRIENDS & FAMILY FOSTERING,PAYMENTS TO CARERS,2102689968
05.07.2017,CHILDREN'S SERVICES,REDACTED PERSONAL DATA,682.3,FRIENDS & FAMILY FOSTERING,PAYMENTS TO CARERS,2102689977
05.07.2017,CHILDREN'S SERVICES,REDACTED PERSONAL DATA,776.08,FRIENDS & FAMILY FOSTERING,PAYMENTS TO CARERS,2102689966
05.07.2017,CHILDREN'S SERVICES,REDACTED PERSONAL DATA,382.3,FRIENDS & FAMILY FOSTERING,PAYMENTS TO CARERS,2102689975
05.07.2017,CHILDREN'S SERVICES,REDACTED PERSONAL DATA,776.08,FRIENDS & FAMILY FOSTERING,PAYMENTS TO CARERS,2102689992
05.07.2017,CHILDREN'S SERVICES,REDACTED PERSONAL DATA,776.08,FRIENDS & FAMILY FOSTERING,PAYMENTS TO CARERS,2102689972
05.07.2017,CHILDREN'S SERVICES,REDACTED PERSONAL DATA,382.3,FRIENDS & FAMILY FOSTERING,PAYMENTS TO CARERS,2102689963
05.07.2017,CHILDREN'S SERVICES,REDACTED PERSONAL DATA,382.3,FRIENDS & FAMILY FOSTERING,PAYMENTS TO CARERS,2102689965
05.07.2017,CHILDREN'S SERVICES,REDACTED PERSONAL DATA,382.3,FRIENDS & FAMILY FOSTERING,PAYMENTS TO CARERS,2102689996
05.07.2017,CHILDREN'S SERVICES,REDACTED PERSONAL DATA,682.3,FRIENDS & FAMILY FOSTERING,PAYMENTS TO CARERS,2102689969
05.07.2017,CHILDREN'S SERVICES,REDACTED PERSONAL DATA,682.3,FRIENDS & FAMILY FOSTERING,PAYMENTS TO CARERS,2102689970
05.07.2017,CHILDREN'S SERVICES,REDACTED PERSONAL DATA,476.08,FRIENDS & FAMILY FOSTERING,PAYMENTS TO CARERS,2102689997
05.07.2017,CHILDREN'S SERVICES,REDACTED PERSONAL DATA,682.3,FRIENDS & FAMILY FOSTERING,PAYMENTS TO CARERS,2102689999
05.07.2017,CHILDREN'S SERVICES,REDACTED PERSONAL DATA,635.34,FRIENDS & FAMILY FOSTERING,PAYMENTS TO CARERS,2102689971
05.07.2017,CHILDREN'S SERVICES,REDACTED PERSONAL DATA,682.3,FRIENDS & FAMILY FOSTERING,PAYMENTS TO CARERS,2102689991
05.07.2017,CHILDREN'S SERVICES,REDACTED PERSONAL DATA,682.3,FRIENDS & FAMILY FOSTERING,PAYMENTS TO CARERS,2102689994
05.07.2017,CHILDREN'S SERVICES,REDACTED PERSONAL DATA,858.12,FRIENDS & FAMILY FOSTERING,PAYMENTS TO CARERS,2102689983
05.07.2017,CHILDREN'S SERVICES,REDACTED PERSONAL DATA,476.08,FRIENDS & FAMILY FOSTERING,PAYMENTS TO CARERS,2102689976
05.07.2017,CHILDREN'S SERVICES,REDACTED PERSONAL DATA,476.08,FRIENDS & FAMILY FOSTERING,PAYMENTS TO CARERS,2102689989
05.07.2017,CHILDREN'S SERVICES,REDACTED PERSONAL DATA,476.08,FRIENDS & FAMILY FOSTERING,PAYMENTS TO CARERS,2102690000
05.07.2017,CHILDREN'S SERVICES,REDACTED PERSONAL DATA,335.34,FRIENDS & FAMILY FOSTERING,PAYMENTS TO CARERS,2102689998
05.07.2017,CHILDREN'S SERVICES,THAMES REACH EMPOLYMENT ACADEMY,500,GENERAL CPD,REFRESHMENTS FOR MEETINGS,5902257809
05.07.2017,CHILDREN'S SERVICES,THAMES REACH EMPOLYMENT ACADEMY,500,GENERAL CPD,REFRESHMENTS FOR MEETINGS,5902257813
05.07.2017,CHILDREN'S SERVICES,REDACTED PERSONAL DATA,350,LEGAL,LEGAL FEES & COURT COSTS,2102689266
05.07.2017,CHILDREN'S SERVICES,MELANIE NAZARETH,700,LEGAL,LEGAL FEES & COURT COSTS,2102689286
05.07.2017,CHILDREN'S SERVICES,INSPIRING CHILDHOOD LTD,"2,801.76",LEGAL,LEGAL FEES & COURT COSTS,2102689278
05.07.2017,CHILDREN'S SERVICES,BARRY McALINDEN,325,LEGAL,LEGAL FEES & COURT COSTS,2102689269
05.07.2017,CHILDREN'S SERVICES,JAMES ALLEN GIRLS SCHOOL,645,POST ADOPTION ADVISE & SUPPORT,EXTERNAL AGENCIES AND BODIES,5902257727
05.07.2017,CHILDREN'S SERVICES,I4 GROUP UK LTD,268.96,POST ADOPTION ADVISE & SUPPORT,PROFESSIONAL FEES,5902257728
05.07.2017,CHILDREN'S SERVICES,PEOPLETOO LTD,"4,312.50",PRIMARY ACHIEVEMENT,CONSULTANTS SERVICES,5902257787
05.07.2017,CHILDREN'S SERVICES,MACE LTD,"17,000.00",PROPERTY MANAGEMENT,PROFESSIONAL FEES,5902257688
05.07.2017,CHILDREN'S SERVICES,MACE LTD,"17,000.00",PROPERTY MANAGEMENT,PROFESSIONAL FEES,5902257723
05.07.2017,CHILDREN'S SERVICES,J C FRANCIS & PARTNERS LTD,"1,650.00",PROPERTY MANAGEMENT,PROFESSIONAL FEES,5902254142
05.07.2017,CHILDREN'S SERVICES,HE SAFEGUARDING LTD,375,RESOURCE PANEL,SECTION 17 PAYMENTS TO AGENCIES/CARERS,5902257736
05.07.2017,CHILDREN'S SERVICES,CONTACT PROFESSIONALS,380,S & FAM SUPP - PRAC GRP D SET 23-25,OTHER PAYMENTS FOR CLIENTS,5902257748
05.07.2017,CHILDREN'S SERVICES,CONTACT PROFESSIONALS,380,S & FAM SUPP - PRAC GRP D SET 23-25,OTHER PAYMENTS FOR CLIENTS,5902257750
05.07.2017,CHILDREN'S SERVICES,CONTACT PROFESSIONALS,380,S & FAM SUPP - PRAC GRP D SET 23-25,OTHER PAYMENTS FOR CLIENTS,5902257752
05.07.2017,CHILDREN'S SERVICES,ALERE TOXICOLOGY PLC,417.4,S & FAM SUPP - PRAC GRP D SET 23-25,OTHER PAYMENTS FOR CLIENTS,5902257733
05.07.2017,CHILDREN'S SERVICES,ZENITH CARS LTD,565,S & FAM SUPP - PRAC GRP F SET 29-31,HIRED VEHICLES,5902257740
05.07.2017,CHILDREN'S SERVICES,REDACTED PERSONAL DATA,500,STAYING PUT,PAYMENTS TO CARERS,2102689695
05.07.2017,CHILDREN'S SERVICES,REDACTED PERSONAL DATA,500,STAYING PUT,PAYMENTS TO CARERS,2102689947
05.07.2017,CHILDREN'S SERVICES,REDACTED PERSONAL DATA,500,STAYING PUT,PAYMENTS TO CARERS,2102689813
05.07.2017,CHILDREN'S SERVICES,REDACTED PERSONAL DATA,500,STAYING PUT,PAYMENTS TO CARERS,2102689773
05.07.2017,CHILDREN'S SERVICES,REDACTED PERSONAL DATA,500,STAYING PUT,PAYMENTS TO CARERS,2102689774
05.07.2017,CHILDREN'S SERVICES,REDACTED PERSONAL DATA,500,STAYING PUT,PAYMENTS TO CARERS,2102689757
05.07.2017,CHILDREN'S SERVICES,REDACTED PERSONAL DATA,"1,464.29",STAYING PUT,PAYMENTS TO CARERS,2102689701
05.07.2017,CHILDREN'S SERVICES,REDACTED PERSONAL DATA,500,STAYING PUT,PAYMENTS TO CARERS,2102689778
05.07.2017,CHILDREN'S SERVICES,REDACTED PERSONAL DATA,373.46,STAYING PUT,PAYMENTS TO CARERS,2102689889
05.07.2017,CHILDREN'S SERVICES,REDACTED PERSONAL DATA,928.58,STAYING PUT,PAYMENTS TO CARERS,2102689862
05.07.2017,CHILDREN'S SERVICES,REDACTED PERSONAL DATA,500,STAYING PUT,PAYMENTS TO CARERS,2102689898
05.07.2017,CHILDREN'S SERVICES,REDACTED PERSONAL DATA,500,STAYING PUT,PAYMENTS TO CARERS,2102689887
05.07.2017,CHILDREN'S SERVICES,REDACTED PERSONAL DATA,798.12,STAYING PUT,PAYMENTS TO CARERS,2102689866
05.07.2017,CHILDREN'S SERVICES,REDACTED PERSONAL DATA,"2,464.29",STAYING PUT,PAYMENTS TO CARERS,2102689853
05.07.2017,CHILDREN'S SERVICES,REDACTED PERSONAL DATA,500,STAYING PUT,PAYMENTS TO CARERS,2102689912
05.07.2017,CHILDREN'S SERVICES,REDACTED PERSONAL DATA,500,STAYING PUT,PAYMENTS TO CARERS,2102689899
05.07.2017,CHILDREN'S SERVICES,REDACTED PERSONAL DATA,500,STAYING PUT,PAYMENTS TO CARERS,2102689863
05.07.2017,CHILDREN'S SERVICES,REDACTED PERSONAL DATA,500,STAYING PUT,PAYMENTS TO CARERS,2102689871
05.07.2017,CHILDREN'S SERVICES,REDACTED PERSONAL DATA,928.58,STAYING PUT,PAYMENTS TO CARERS,2102689693
05.07.2017,CHILDREN'S SERVICES,REDACTED PERSONAL DATA,500,STAYING PUT,PAYMENTS TO CARERS,2102689917
05.07.2017,CHILDREN'S SERVICES,REDACTED PERSONAL DATA,500,STAYING PUT,PAYMENTS TO CARERS,2102689653
05.07.2017,CHILDREN'S SERVICES,REDACTED PERSONAL DATA,500,STAYING PUT,PAYMENTS TO CARERS,2102689834
05.07.2017,CHILDREN'S SERVICES,REDACTED PERSONAL DATA,500,STAYING PUT,PAYMENTS TO CARERS,2102689707
05.07.2017,CHILDREN'S SERVICES,REDACTED PERSONAL DATA,500,STAYING PUT,PAYMENTS TO CARERS,2102689993
05.07.2017,CHILDREN'S SERVICES,REDACTED PERSONAL DATA,400,UNIVERSITY SUPPORT,OTHER PAYMENTS FOR CLIENTS,2102689556
05.07.2017,CHILDREN'S SERVICES,THAMES REACH EMPOLYMENT ACADEMY,340,YOS SUPPORT,HIRE OF ROOMS/HALLS,5902257760
05.07.2017,CHILDREN'S SERVICES,ANTALIS LTD,499,YOS SUPPORT,STATIONERY,5902257755
05.07.2017,COLLECTION FUNDS,GREATER LONDON AUTHORITY,"2,746,662.28",GLA PRECEPT,LEVIES,5902257776
05.07.2017,COMMUNITIES,RED R DESIGN,"1,275.00",RESIDENT INVOLVEMENT TEAM,MARKETING & PUBLICITY SERVICES,5902257774
05.07.2017,COMMUNITIES,BRICKLAYERS ARMS T&RA,950,TENANTS FUND,GRANTS,5902257807
05.07.2017,COMMUNITIES,KING CHARLES COURT RESIDENTS CLUB,"1,200.00",TENANTS FUND,GRANTS,5902257780
05.07.2017,COMMUNITIES,KING CHARLES COURT RESIDENTS CLUB,"1,200.00",TENANTS FUND,GRANTS,5902257781
05.07.2017,CUSTOMER EXPERIENCE,US-CREATES LTD,"11,250.00",HOUSING NEEDS,MARKETING & PUBLICITY SERVICES,5902257896
05.07.2017,CUSTOMER EXPERIENCE HGF,IC CONSULTANTS LTD,312,CORONER'S,PROFESSIONAL FEES,5902257843
05.07.2017,CUSTOMER EXPERIENCE HGF,MICHAEL PAGET,"1,500.00",HOMELESS & HOUSING OPTIONS MGT,LEGAL FEES & COURT COSTS,2102689287
05.07.2017,CUSTOMER EXPERIENCE HGF,ANNELI ROBINS,700,HOMELESS & HOUSING OPTIONS MGT,LEGAL FEES & COURT COSTS,2102689267
05.07.2017,CUSTOMER EXPERIENCE HGF,SHUTTLEWORTH (UK) LTD,"54,696.00",NIGHTLY TA (NSC),EXTERNAL AGENCIES AND BODIES,5902257683
05.07.2017,CUSTOMER EXPERIENCE HGF,S A PROPERTY MANAGEMENT LTD,"7,112.00",NIGHTLY TA (NSC),EXTERNAL AGENCIES AND BODIES,5902257871
05.07.2017,CUSTOMER EXPERIENCE HGF,ACE FAST LETTINGS LTD,"1,605.00",NIGHTLY TA (NSC),EXTERNAL AGENCIES AND BODIES,5902257827
05.07.2017,CUSTOMER EXPERIENCE HGF,OAK HOUSING LTD,"-1,329.60",PRIVATE SECTOR LEASING,EXTERNAL AGENCIES AND BODIES,5902257820
05.07.2017,CUSTOMER EXPERIENCE HGF,OAK HOUSING LTD,"1,231.50",PRIVATE SECTOR LEASING,EXTERNAL AGENCIES AND BODIES,5902257785
05.07.2017,CUSTOMER EXPERIENCE HGF,OAK HOUSING LTD,"1,272.55",PRIVATE SECTOR LEASING,EXTERNAL AGENCIES AND BODIES,5902257783
05.07.2017,CUSTOMER EXPERIENCE HGF,OAK HOUSING LTD,"1,272.55",PRIVATE SECTOR LEASING,EXTERNAL AGENCIES AND BODIES,5902257874
05.07.2017,CUSTOMER EXPERIENCE HGF,OAK HOUSING LTD,"1,329.60",PRIVATE SECTOR LEASING,EXTERNAL AGENCIES AND BODIES,5902257782
05.07.2017,ENVIRONMENT AND LEISURE,COMMUNITY CYCLEWORKS,"1,400.00",CAPITAL PS (LEISURE),CAPITAL GRANTS,5902257732
05.07.2017,ENVIRONMENT AND LEISURE,THE COOPERATIVE PLANTERS,"1,499.75",CAPITAL PS (LEISURE),CAPITAL GRANTS,5902257768
05.07.2017,ENVIRONMENT AND LEISURE,CONWAY AECOM LTD,"6,224.06",CAPITAL PS (LEISURE),CONSTRUCTION,2102690009
05.07.2017,ENVIRONMENT AND LEISURE,UK POWER NETWORKS (OPERATIONS) LTD,293.67,CAPITAL PS (LEISURE),CONSTRUCTION SITE COSTS,5902257869
05.07.2017,ENVIRONMENT DIRECTORATE,FIVEWAYS MUNICIPAL VEHICLE HIRE LTD,725,COMMERCIAL VEH CTRL A/C,HIRED VEHICLES,5902257695
05.07.2017,ENVIRONMENT DIRECTORATE,DAGENHAM MOTORS,364,COMMERCIAL VEH CTRL A/C,HIRED VEHICLES,5902257690
05.07.2017,ENVIRONMENT DIRECTORATE,CLOSE BROTHERS VEHICLE HIRE LTD,268.4,COMMERCIAL VEH CTRL A/C,HIRED VEHICLES,5902257709
05.07.2017,ENVIRONMENT DIRECTORATE,CLOSE BROTHERS VEHICLE HIRE LTD,268.4,COMMERCIAL VEH CTRL A/C,HIRED VEHICLES,5902257710
05.07.2017,ENVIRONMENT DIRECTORATE,CLOSE BROTHERS VEHICLE HIRE LTD,286,COMMERCIAL VEH CTRL A/C,HIRED VEHICLES,5902257682
05.07.2017,ENVIRONMENT DIRECTORATE,GREENHAM TRADING LTD,"1,634.55",ESTATE CLEANING-GENERAL,MATERIALS,5902257735
05.07.2017,ENVIRONMENT DIRECTORATE,LEWIS AND GRAVES PARTNERSHIP LTD,"1,195.00",ESTATE CLEANING-GENERAL,OTHER CONTRACTORS,5902257699
05.07.2017,ENVIRONMENT DIRECTORATE,LEWIS AND GRAVES PARTNERSHIP LTD,"2,409.00",ESTATE CLEANING-GENERAL,OTHER CONTRACTORS,5902257700
05.07.2017,ENVIRONMENT DIRECTORATE,SPALDINGS (UK) LTD,582.45,GROUNDS MAINTENANCE - GENERAL,MATERIALS,5902257739
05.07.2017,ENVIRONMENT DIRECTORATE,BUILDBASE,297.59,GROUNDS MAINTENANCE - GENERAL,MATERIALS,5902257743
05.07.2017,ENVIRONMENT DIRECTORATE,TENNANT UK CLEANING SOLUTIONS LTD,681.38,MANAGEMENT TEAM,EQUIPMENT PURCHASE & REPAIR,5902257801
05.07.2017,ENVIRONMENT DIRECTORATE,NPOWER,371.48,SANDGATE STREET,ELECTRICITY,5902257722
05.07.2017,ENVIRONMENT DIRECTORATE,NPOWER,481.14,SANDGATE STREET,ELECTRICITY,5902257724
05.07.2017,F & C S EXCLUDING CORPORATE BUDGETS,REMINGTON HALL,325,CORPORATE SERVICES,LEGAL FEES & COURT COSTS,2102689288
05.07.2017,F & C S EXCLUDING CORPORATE BUDGETS,JARED NORMAN,900,CORPORATE SERVICES,LEGAL FEES & COURT COSTS,2102689281
05.07.2017,F & C S EXCLUDING CORPORATE BUDGETS,MATTHEW HUTCHINGS,"26,500.00",FINANCE DIRECTOR,LEGAL FEES & COURT COSTS,2102689285
05.07.2017,F & C S EXCLUDING CORPORATE BUDGETS,RUCHI PAREKH,"1,700.00",FINANCE DIRECTOR,LEGAL FEES & COURT COSTS,2102689290
05.07.2017,F & C S EXCLUDING CORPORATE BUDGETS,LEGAL ACTION GROUP,355,LEGAL SVCES MANAGEMENT,SUBSCRIPTIONS,5902257762
05.07.2017,HOUSING HRA,POTTER RAPER AND PARTNERS,"6,812.29",CAPITAL PS (HRA),CONSTRUCTION FEES  - EXTERNAL,5902257714
05.07.2017,HOUSING HRA,PLANNING & PARTY WALL SPECIALISTS LTD,"1,150.00",CAPITAL PS (REGEN),CONSTRUCTION FEES,5902257833
05.07.2017,HOUSING HRA,STANDAGE & CO LTD,"9,344.30",STANDAGE,MANUAL CREDITORS,5902257701
05.07.2017,HOUSING HRA,STANDAGE & CO LTD,"17,458.73",STANDAGE,MANUAL CREDITORS,5902257698
05.07.2017,HOUSING HRA,CORBYS & CO,252,STORES,CREDITORS -GR/IR CLEARING ACCOUNT,5902257848
05.07.2017,LEISURE DIRECTORATE,RICHARD LANGHAM,"1,200.00",ACCOMODATION,LEGAL FEES & COURT COSTS,2102689289
05.07.2017,LEISURE DIRECTORATE,BLUE ELEPHANT THEATRE LTD,"4,875.00",ARTS GRANTS,GRANTS,5902257798
05.07.2017,LEISURE DIRECTORATE,BLUE ELEPHANT THEATRE LTD,"4,875.00",ARTS GRANTS,GRANTS,5902257798
05.07.2017,LEISURE DIRECTORATE,QUADRON SERVICES LIMITED,303.48,DULWICH AREA TEAM,GROUNDS MAINTENANCE,5902257769
05.07.2017,LEISURE DIRECTORATE,LONDON WILDLIFE TRUST,"-7,619.85",ENVIRONMENT & LEISURE GRANTS,OTHER CONTRACTORS,5902258097
05.07.2017,LEISURE DIRECTORATE,LONDON WILDLIFE TRUST,"7,619.85",ENVIRONMENT & LEISURE GRANTS,OTHER CONTRACTORS,5902258027
05.07.2017,LEISURE DIRECTORATE,SPORTS AND LEISURE MANAGEMENT LTD,"23,648.00",FACILITIES MAINTENANCE,BUILDING R&M,5902257828
05.07.2017,LEISURE DIRECTORATE,CASTLE WATER LTD,430.46,JOHN HARVARD LIBRARY,WATER,5902257875
05.07.2017,LEISURE DIRECTORATE,THE METRO CENTRE LTD,"7,787.50",YOUTH MANAGEMENT AND ADMIN,GRANTS,5902257819
05.07.2017,MODERNISATION HGF,ROYAL MAIL GROUP LTD,"1,250.30",160 TOOLEY ST.,POSTAGES,5902257751
05.07.2017,MODERNISATION HGF,INTERSERVE (FACILITIES MANAGEMENT),"130,799.80",FM SERVICES BY INTERSERVE,BUILDING R&M,5902257707
05.07.2017,REGENERATION,TOWN LEGAL LLP,"1,108.33",MASTER PLAN-H/WAY & TRANS INTERCHANGE,LEGAL FEES & COURT COSTS,2102689291
05.07.2017,REGENERATION,HTA DESIGN LLP,590,PECKHAM/CAMBERWELL SITES-FEES/MPLAN,CONSULTANTS SERVICES,5902257696
05.07.2017,REGENERATION,HTA DESIGN LLP,"3,649.00",PECKHAM/CAMBERWELL SITES-FEES/MPLAN,CONSULTANTS SERVICES,5902257693
05.07.2017,REGENERATION,HTA DESIGN LLP,"10,000.00",PECKHAM/CAMBERWELL SITES-FEES/MPLAN,CONSULTANTS SERVICES,5902257694
05.07.2017,RESIDENT SERVICES,CSG USHERS LTD,625,AYLESBURY,TREE MAINTENANCE,5902257838
05.07.2017,RESIDENT SERVICES,EDF ENERGY PLC,-521.43,OPERATIONS/OFFICES ACCOMMODATION,ELECTRICITY,5902257789
05.07.2017,RESIDENT SERVICES,EDF ENERGY PLC,-387.94,OPERATIONS/OFFICES ACCOMMODATION,ELECTRICITY,5902257789
05.07.2017,RESIDENT SERVICES,EDF ENERGY PLC,-380.71,OPERATIONS/OFFICES ACCOMMODATION,ELECTRICITY,5902257789
05.07.2017,RESIDENT SERVICES,EDF ENERGY PLC,-353.99,OPERATIONS/OFFICES ACCOMMODATION,ELECTRICITY,5902257789
05.07.2017,RESIDENT SERVICES,EDF ENERGY PLC,255.87,OPERATIONS/OFFICES ACCOMMODATION,ELECTRICITY,5902257766
05.07.2017,RESIDENT SERVICES,EDF ENERGY PLC,373.86,OPERATIONS/OFFICES ACCOMMODATION,ELECTRICITY,5902257749
05.07.2017,RESIDENT SERVICES,EDF ENERGY PLC,380.71,OPERATIONS/OFFICES ACCOMMODATION,ELECTRICITY,5902257761
05.07.2017,RESIDENT SERVICES,EDF ENERGY PLC,387.94,OPERATIONS/OFFICES ACCOMMODATION,ELECTRICITY,5902257759
05.07.2017,RESIDENT SERVICES,EDF ENERGY PLC,435.2,OPERATIONS/OFFICES ACCOMMODATION,ELECTRICITY,5902257753
05.07.2017,RESIDENT SERVICES,EDF ENERGY PLC,"1,707.00",OPERATIONS/OFFICES ACCOMMODATION,ELECTRICITY,5902257793
05.07.2017,RESIDENT SERVICES,TFL TELESALES / OYSTER FULFILMENT,"4,075.00",OPERATIONS/OFFICES ACCOMMODATION,PUBLIC TRANSPORT,5902257811
05.07.2017,RESIDENT SERVICES,NPOWER,511.57,SPECIAL NEEDS HOSTELS,ELECTRICITY,5902257805
05.07.2017,RESIDENT SERVICES,LONDON TOOLS LIMITED,283.15,SPECIAL NEEDS HOSTELS,FURNITURE PURCHASE & REPAIR,5902257892
05.07.2017,SOUTHWARK BUILDING SERVICES,A & E ELKINS LTD,"9,870.79",BUSINESS SUPPORT,OTHER CONTRACTORS,2102689254
05.07.2017,SOUTHWARK BUILDING SERVICES,MULTI-INSTALLATIONS LTD,"6,621.71",BUSINESS SUPPORT,OTHER CONTRACTORS,2102689261
05.07.2017,SOUTHWARK BUILDING SERVICES,NEW IMAGE WINDOWS LTD,"12,026.14",BUSINESS SUPPORT,OTHER CONTRACTORS,2102689262
05.07.2017,SOUTHWARK BUILDING SERVICES,FRANKLYN SHAW ASSOCIATES LTD,"29,249.96",BUSINESS SUPPORT,OTHER CONTRACTORS,2102689259
05.07.2017,SOUTHWARK BUILDING SERVICES,EMPIRE BUILDERS,"1,659.72",BUSINESS SUPPORT,OTHER CONTRACTORS,2102689257
05.07.2017,SOUTHWARK BUILDING SERVICES,1st ACTIVE PROPERTY SERVICES LTD,"19,982.45",BUSINESS SUPPORT,OTHER CONTRACTORS,2102689252
05.07.2017,SOUTHWARK BUILDING SERVICES,DEREK BUILDING SERVICES LTD,"51,488.77",BUSINESS SUPPORT,OTHER CONTRACTORS,2102689256
05.07.2017,SOUTHWARK BUILDING SERVICES,ATPB LTD,"35,691.70",BUSINESS SUPPORT,OTHER CONTRACTORS,2102689253
05.07.2017,SOUTHWARK BUILDING SERVICES,BUDMAX CONSTRUCTION LTD,"11,252.05",BUSINESS SUPPORT,OTHER CONTRACTORS,2102689255
05.07.2017,SOUTHWARK BUILDING SERVICES,TASCOR SERVICES LTD,730,HEALTH & SAFETY,TRAINING,5902257854
05.07.2017,SOUTHWARK BUILDING SERVICES,TASCOR SERVICES LTD,900,HEALTH & SAFETY,TRAINING,5902257854
05.07.2017,SOUTHWARK BUILDING SERVICES,TASCOR SERVICES LTD,"1,400.00",HEALTH & SAFETY,TRAINING,5902257854
05.07.2017,SOUTHWARK BUILDING SERVICES,ORANGE PERSONAL COMMUNICATIONS,"2,026.69",ICT & COMMUNICATIONS,TELEPHONES (MOBILES),5902257865
05.07.2017,SOUTHWARK BUILDING SERVICES,PITNEY BOWES PURCHASE POWER,"1,114.81",R & M OVERHEADS,POSTAGES,5902257861
05.07.2017,SOUTHWARK SCHOOL FOR FUTURE,ROBERT WEST CONSULTING LTD,"2,675.40",CAPITAL PS (REGEN),CONST'N MAIN CONTRACT - NON CERTIFICATED,5902257836
06.07.2017,ADULT SOCIAL CARE,SURREY DOCKS FARM PROVIDENT SOCIETY,420,LD LTS 18-64,DAYCARE,2102690331
06.07.2017,ADULT SOCIAL CARE,REDACTED PERSONAL DATA,"-1,290.16",LD LTS 18-64,DISCRETIONARY FLEXIBLE FEES & INCOME,2102691264
06.07.2017,ADULT SOCIAL CARE,REDACTED PERSONAL DATA,-718,LD LTS 18-64,DISCRETIONARY FLEXIBLE FEES & INCOME,2102691290
06.07.2017,ADULT SOCIAL CARE,REDACTED PERSONAL DATA,-624,LD LTS 18-64,DISCRETIONARY FLEXIBLE FEES & INCOME,2102691926
06.07.2017,ADULT SOCIAL CARE,SWK DISABLEMENT ASSN,"2,122.56",LD LTS 18-64,HOMECARE - C&V,2102690166
06.07.2017,ADULT SOCIAL CARE,REDACTED PERSONAL DATA,718,LD LTS 18-64,PAYMENTS TO CLIENTS (DIRECT PAYMENTS),2102691289
06.07.2017,ADULT SOCIAL CARE,REDACTED PERSONAL DATA,"1,290.16",LD LTS 18-64,PAYMENTS TO CLIENTS (DIRECT PAYMENTS),2102691263
06.07.2017,ADULT SOCIAL CARE,REDACTED PERSONAL DATA,624,LD LTS 18-64,PAYMENTS TO CLIENTS (DIRECT PAYMENTS),2102691925
06.07.2017,ADULT SOCIAL CARE,BRANDON TRUST,645,LD LTS 18-64,RESIDENTIAL CARE,2102690266
06.07.2017,ADULT SOCIAL CARE,BRANDON TRUST,664.06,LD LTS 18-64,RESIDENTIAL CARE,2102690261
06.07.2017,ADULT SOCIAL CARE,BRANDON TRUST,683.12,LD LTS 18-64,RESIDENTIAL CARE,2102690271
06.07.2017,ADULT SOCIAL CARE,BRANDON TRUST,879.06,LD LTS 18-64,RESIDENTIAL CARE,2102690269
06.07.2017,ADULT SOCIAL CARE,BRANDON TRUST,"1,075.00",LD LTS 18-64,RESIDENTIAL CARE,2102690264
06.07.2017,ADULT SOCIAL CARE,BRANDON TRUST,"1,261.00",LD LTS 18-64,RESIDENTIAL CARE,2102690268
06.07.2017,ADULT SOCIAL CARE,BRANDON TRUST,"1,290.00",LD LTS 18-64,RESIDENTIAL CARE,2102690265
06.07.2017,ADULT SOCIAL CARE,BRANDON TRUST,"1,514.12",LD LTS 18-64,RESIDENTIAL CARE,2102690267
06.07.2017,ADULT SOCIAL CARE,BRANDON TRUST,"1,557.00",LD LTS 18-64,RESIDENTIAL CARE,2102690263
06.07.2017,ADULT SOCIAL CARE,BRANDON TRUST,"1,557.00",LD LTS 18-64,RESIDENTIAL CARE,2102690270
06.07.2017,ADULT SOCIAL CARE,BRANDON TRUST,"8,304.00",LD LTS 18-64,RESIDENTIAL CARE,2102690262
06.07.2017,ADULT SOCIAL CARE,CHOICE SUPPORT,293.92,LD LTS 18-64,SUPPORTED LIVING,2102690147
06.07.2017,ADULT SOCIAL CARE,CHOICE SUPPORT,293.92,LD LTS 18-64,SUPPORTED LIVING,2102690148
06.07.2017,ADULT SOCIAL CARE,LIFECARE CONSULTING LTD,"1,296.26",LD LTS 65+,HOMECARE - C&V,2102690312
06.07.2017,ADULT SOCIAL CARE,LIFECARE CONSULTING LTD,344.75,MEM LTS 18-64,HOMECARE - SPOT,2102690280
06.07.2017,ADULT SOCIAL CARE,YOUTH GRACES (UK) LTD,675.64,MEM LTS 65+,HOMECARE - C&V,2102690117
06.07.2017,ADULT SOCIAL CARE,YOUTH GRACES (UK) LTD,675.64,MEM LTS 65+,HOMECARE - C&V,2102690190
06.07.2017,ADULT SOCIAL CARE,LIFECARE CONSULTING LTD,262.01,MEM LTS 65+,HOMECARE - SPOT,2102690297
06.07.2017,ADULT SOCIAL CARE,YOUTH GRACES (UK) LTD,261.98,MEM LTS 65+,HOMECARE - SPOT,2102690089
06.07.2017,ADULT SOCIAL CARE,YOUTH GRACES (UK) LTD,261.98,MEM LTS 65+,HOMECARE - SPOT,2102690205
06.07.2017,ADULT SOCIAL CARE,OASIS CARE AND TRAINING AGENCY,255.11,MH LTS 18-64,HOMECARE - SPOT,2102690150
06.07.2017,ADULT SOCIAL CARE,OASIS CARE AND TRAINING AGENCY,275.8,MH LTS 18-64,HOMECARE - SPOT,2102690149
06.07.2017,ADULT SOCIAL CARE,YOUTH GRACES (UK) LTD,263.16,MH LTS 65+,HOMECARE - SPOT,2102690114
06.07.2017,ADULT SOCIAL CARE,YOUTH GRACES (UK) LTD,263.16,MH LTS 65+,HOMECARE - SPOT,2102690179
06.07.2017,ADULT SOCIAL CARE,REDACTED PERSONAL DATA,"-1,018.40",PHY LTS 18-64,DISCRETIONARY FLEXIBLE FEES & INCOME,2102691932
06.07.2017,ADULT SOCIAL CARE,YOUTH GRACES (UK) LTD,351.64,PHY LTS 18-64,HOMECARE - C&V,2102690091
06.07.2017,ADULT SOCIAL CARE,YOUTH GRACES (UK) LTD,351.64,PHY LTS 18-64,HOMECARE - C&V,2102690231
06.07.2017,ADULT SOCIAL CARE,YOUTH GRACES (UK) LTD,413.68,PHY LTS 18-64,HOMECARE - C&V,2102690135
06.07.2017,ADULT SOCIAL CARE,YOUTH GRACES (UK) LTD,413.68,PHY LTS 18-64,HOMECARE - C&V,2102690207
06.07.2017,ADULT SOCIAL CARE,SWK DISABLEMENT ASSN,904.4,PHY LTS 18-64,HOMECARE - SPOT,2102690168
06.07.2017,ADULT SOCIAL CARE,SWK DISABLEMENT ASSN,"1,178.00",PHY LTS 18-64,HOMECARE - SPOT,2102690167
06.07.2017,ADULT SOCIAL CARE,LIFECARE CONSULTING LTD,730.87,PHY LTS 18-64,HOMECARE - SPOT,2102690293
06.07.2017,ADULT SOCIAL CARE,YOUTH GRACES (UK) LTD,255.15,PHY LTS 18-64,HOMECARE - SPOT,2102690062
06.07.2017,ADULT SOCIAL CARE,YOUTH GRACES (UK) LTD,255.15,PHY LTS 18-64,HOMECARE - SPOT,2102690228
06.07.2017,ADULT SOCIAL CARE,YOUTH GRACES (UK) LTD,261.98,PHY LTS 18-64,HOMECARE - SPOT,2102690060
06.07.2017,ADULT SOCIAL CARE,YOUTH GRACES (UK) LTD,261.98,PHY LTS 18-64,HOMECARE - SPOT,2102690254
06.07.2017,ADULT SOCIAL CARE,YOUTH GRACES (UK) LTD,434.56,PHY LTS 18-64,HOMECARE - SPOT,2102690125
06.07.2017,ADULT SOCIAL CARE,YOUTH GRACES (UK) LTD,434.56,PHY LTS 18-64,HOMECARE - SPOT,2102690184
06.07.2017,ADULT SOCIAL CARE,YOUTH GRACES (UK) LTD,969.57,PHY LTS 18-64,HOMECARE - SPOT,2102690197
06.07.2017,ADULT SOCIAL CARE,REDACTED PERSONAL DATA,"1,018.40",PHY LTS 18-64,PAYMENTS TO CLIENTS (DIRECT PAYMENTS),2102691933
06.07.2017,ADULT SOCIAL CARE,LONDON CARE LTD,437.2,PHY LTS 65+,HOMECARE - C&V,2102690330
06.07.2017,ADULT SOCIAL CARE,LIFECARE CONSULTING LTD,461.97,PHY LTS 65+,HOMECARE - C&V,2102690311
06.07.2017,ADULT SOCIAL CARE,YOUTH GRACES (UK) LTD,555.1,PHY LTS 65+,HOMECARE - C&V,2102690145
06.07.2017,ADULT SOCIAL CARE,YOUTH GRACES (UK) LTD,555.1,PHY LTS 65+,HOMECARE - C&V,2102690176
06.07.2017,ADULT SOCIAL CARE,LIFECARE CONSULTING LTD,272.35,PHY LTS 65+,HOMECARE - SPOT,2102690305
06.07.2017,ADULT SOCIAL CARE,LIFECARE CONSULTING LTD,434.39,PHY LTS 65+,HOMECARE - SPOT,2102690303
06.07.2017,ADULT SOCIAL CARE,LIFECARE CONSULTING LTD,530.92,PHY LTS 65+,HOMECARE - SPOT,2102690325
06.07.2017,ADULT SOCIAL CARE,LIFECARE CONSULTING LTD,579.18,PHY LTS 65+,HOMECARE - SPOT,2102690323
06.07.2017,ADULT SOCIAL CARE,LIFECARE CONSULTING LTD,627.45,PHY LTS 65+,HOMECARE - SPOT,2102690283
06.07.2017,ADULT SOCIAL CARE,LIFECARE CONSULTING LTD,689.5,PHY LTS 65+,HOMECARE - SPOT,2102690277
06.07.2017,ADULT SOCIAL CARE,LIFECARE CONSULTING LTD,779.14,PHY LTS 65+,HOMECARE - SPOT,2102690300
06.07.2017,ADULT SOCIAL CARE,YOUTH GRACES (UK) LTD,282.66,PHY LTS 65+,HOMECARE - SPOT,2102690104
06.07.2017,ADULT SOCIAL CARE,YOUTH GRACES (UK) LTD,282.66,PHY LTS 65+,HOMECARE - SPOT,2102690224
06.07.2017,ADULT SOCIAL CARE,YOUTH GRACES (UK) LTD,351.75,PHY LTS 65+,HOMECARE - SPOT,2102690138
06.07.2017,ADULT SOCIAL CARE,YOUTH GRACES (UK) LTD,351.75,PHY LTS 65+,HOMECARE - SPOT,2102690194
06.07.2017,ADULT SOCIAL CARE,YOUTH GRACES (UK) LTD,462.24,PHY LTS 65+,HOMECARE - SPOT,2102690221
06.07.2017,ADULT SOCIAL CARE,YOUTH GRACES (UK) LTD,472.36,PHY LTS 65+,HOMECARE - SPOT,2102690083
06.07.2017,ADULT SOCIAL CARE,YOUTH GRACES (UK) LTD,503.41,PHY LTS 65+,HOMECARE - SPOT,2102690137
06.07.2017,ADULT SOCIAL CARE,YOUTH GRACES (UK) LTD,503.41,PHY LTS 65+,HOMECARE - SPOT,2102690208
06.07.2017,ADULT SOCIAL CARE,YOUTH GRACES (UK) LTD,541.35,PHY LTS 65+,HOMECARE - SPOT,2102690113
06.07.2017,ADULT SOCIAL CARE,YOUTH GRACES (UK) LTD,548.25,PHY LTS 65+,HOMECARE - SPOT,2102690204
06.07.2017,ADULT SOCIAL CARE,YOUTH GRACES (UK) LTD,792.93,PHY LTS 65+,HOMECARE - SPOT,2102690084
06.07.2017,ADULT SOCIAL CARE,YOUTH GRACES (UK) LTD,792.93,PHY LTS 65+,HOMECARE - SPOT,2102690199
06.07.2017,ADULT SOCIAL CARE,SWK DISABLEMENT ASSN,"1,132.56",SOCIAL ISOLATION,HOMECARE - SPOT,2102690165
06.07.2017,ASSET MANAGEMENT,LONDON TOOLS LIMITED,385,REPAIRS OPERATIONS,MATERIALS,5902258099
06.07.2017,BERMONDSEY AND ROTHERHITHE COMMUNITY COUNCIL,ASTLEY AND COOPER TRA,"2,500.00",SUMMER FUNDAY,GRANT,CHEQUE PAYMENT
06.07.2017,CENTRAL FUNCTIONS,POTTER RAPER AND PARTNERS,"9,620.00",GARAGE REPAIRS,PROFESSIONAL FEES,5902258000
06.07.2017,CENTRAL FUNCTIONS,NPOWER LTD,"8,644.34",HEATING ACCOUNT,ELECTRICITY,5902258108
06.07.2017,CHIEF EXECUTIVE,CONWAY AECOM LTD,"6,271.00",CAPITAL PS (REGEN),CONSTR'N SUB CONTRACT - NON CERTIFICATED,5902258146
06.07.2017,CHIEF EXECUTIVE,STREET TREE CARE LTD,"1,350.00",CAPITAL PS (REGEN),CONSTRUCTION FEES  - EXTERNAL,5902257323
06.07.2017,CHIEF EXECUTIVE,KENT COUNTY COUNCIL - LASER,"1,156.29",CAPITAL PS (REGEN),CONSTRUCTION MAIN CONTRACT -CERTIFICATED,5902257974
06.07.2017,CHILDREN AND ADULT,HARRISON CATERING SERVICES LTD,"4,651.00",CAPITAL PS (EDUCATION),FIT-OUT,5902258025
06.07.2017,CHILDREN AND ADULT,CORELOGIC LTD,"12,500.00",CAPITAL PS (STRAT SERV),ICT ACQUISITION,5902258033
06.07.2017,CHILDREN'S SERVICES,JEANETTE SCOTT,578,ADOPTION REFORM GRANT (PART B),PROFESSIONAL FEES,5902257297
06.07.2017,CHILDREN'S SERVICES,JEANETTE SCOTT,981,ADOPTION REFORM GRANT (PART B),PROFESSIONAL FEES,5902257300
06.07.2017,CHILDREN'S SERVICES,JEANETTE SCOTT,"1,182.50",ADOPTION REFORM GRANT (PART B),PROFESSIONAL FEES,5902257298
06.07.2017,CHILDREN'S SERVICES,NISBETS PLC,300.55,CAMBERWELL GROVE EARLY YEARS CENTRE,EQUIPMENT PURCHASE & REPAIR,5902258021
06.07.2017,CHILDREN'S SERVICES,PULSE HEALTHCARE LTD,299,HOME 2 SCHOOL TRANSPORT,AGENCY STAFF,5902257561
06.07.2017,CHILDREN'S SERVICES,EQUAL EDUCATION LTD,390,PUPIL PREMIUM CURRENT YEAR,EXTERNAL AGENCIES AND BODIES,5902258067
06.07.2017,CHILDREN'S SERVICES,ST MARKS CHURCH OF ENGLAND ACADEMY,"1,199.08",PUPIL PREMIUM CURRENT YEAR,SCHOOLS CAPITATION,2102690031
06.07.2017,CHILDREN'S SERVICES,ST MARKS CHURCH OF ENGLAND ACADEMY,"1,206.74",PUPIL PREMIUM CURRENT YEAR,SCHOOLS CAPITATION,2102690032
06.07.2017,CHILDREN'S SERVICES,NEWRAYS CARE SERVICES LTD,"15,428.57",RESIDENTIAL,RESIDENTIAL CARE,5902258088
06.07.2017,CHILDREN'S SERVICES,POSITIVE CYCLE LTD,"6,068.65",RESIDENTIAL,RESIDENTIAL CARE,5902258084
06.07.2017,CHILDREN'S SERVICES,POSITIVE CYCLE LTD,"6,068.65",RESIDENTIAL,RESIDENTIAL CARE,5902258085
06.07.2017,COLLECTION FUNDS,GREATER LONDON AUTHORITY,"991,950.55",GLA CROSSRAIL BUSINESS RATE SUPPLEMENT,LEVIES,5902258017
06.07.2017,COMMISSIONING & CENTRAL,MKJ&L SERVICES LTD,"3,342.00",SAFEGUARDING BOARDS,PROFESSIONAL FEES,5902257930
06.07.2017,COMMUNITIES,COOPER CLOSE CO-OPERATIVE LTD,"14,399.25",COOPERS CLOSE CO-OP,M&M ALLOWANCE CO-OPS,5902257943
06.07.2017,COMMUNITIES,HADDON HALL RESIDENTS TMO,"57,660.00",HADDON HALL CO-OP,M&M ALLOWANCE CO-OPS,5902257934
06.07.2017,COMMUNITIES,THE BLUE ELEPHANT THEATRE,"3,250.00",JOINT SECURITY INITIATIVES,GRANTS,5902257949
06.07.2017,COMMUNITIES,SOUTHWARK CITIZENS ADVICE,"96,550.00",LEGAL GRANTS,EXTERNAL AGENCIES AND BODIES,5902257944
06.07.2017,COMMUNITIES,ADVISING LONDON,"18,000.00",LEGAL GRANTS,EXTERNAL AGENCIES AND BODIES,5902257942
06.07.2017,COMMUNITIES,ADVISING LONDON,"78,345.00",LEGAL GRANTS,EXTERNAL AGENCIES AND BODIES,5902257940
06.07.2017,COMMUNITIES,TOM HOPKINS ASSOCIATES LTD,990,TENANT MGT INITITIVES,TRAINING,5902257948
06.07.2017,COMMUNITIES,SCEAUX GARDENS T&R ASSOCIATION,"2,216.50",TENANTS FUND,GRANTS,5902256932
06.07.2017,COMMUNITIES,PELICAN PLUS T&RA,"1,350.00",TENANTS FUND,GRANTS,5902256944
06.07.2017,COMMUNITIES,MEADOW ROW & SMEATON COURT T&RA,"1,300.00",TENANTS FUND,GRANTS,5902256928
06.07.2017,COMMUNITIES,WILLOWBROOK TENANT MANAGEMENT CO-OP LTD,"62,668.50",WILLOWBROOK CO-OP,M&M ALLOWANCE CO-OPS,5902257938
06.07.2017,CUSTOMER EXPERIENCE HGF,KKB PROPERTY & FINANCIAL SERVICES,"3,000.00",HOMELESS PROJECTS,GRANTS,5902257951
06.07.2017,CUSTOMER EXPERIENCE HGF,WILLOW ESTATE AGENTS (LONDON) LTD,"40,711.34",NIGHTLY TA (NSC),EXTERNAL AGENCIES AND BODIES,5902257936
06.07.2017,CUSTOMER EXPERIENCE HGF,UXBRIDGE ESTATE AGENTS LTD,"4,624.50",NIGHTLY TA (NSC),EXTERNAL AGENCIES AND BODIES,5902257929
06.07.2017,CUSTOMER EXPERIENCE HGF,TRADE  IN OPTIONS LTD,"1,440.00",NIGHTLY TA (NSC),EXTERNAL AGENCIES AND BODIES,5902258149
06.07.2017,CUSTOMER EXPERIENCE HGF,SK HOUSING LTD,"9,679.50",NIGHTLY TA (NSC),EXTERNAL AGENCIES AND BODIES,5902257923
06.07.2017,CUSTOMER EXPERIENCE HGF,SOUTH OF THE RIVER INVESTMENTS LTD,"5,418.00",NIGHTLY TA (NSC),EXTERNAL AGENCIES AND BODIES,5902257935
06.07.2017,CUSTOMER EXPERIENCE HGF,SOUTH OF THE RIVER INVESTMENTS LTD,"93,312.90",NIGHTLY TA (NSC),EXTERNAL AGENCIES AND BODIES,5902257939
06.07.2017,CUSTOMER EXPERIENCE HGF,STENFORD PROPERTY LTD,"44,334.00",NIGHTLY TA (NSC),EXTERNAL AGENCIES AND BODIES,5902258150
06.07.2017,CUSTOMER EXPERIENCE HGF,CYBERSTYLE LETTINGS LTD,"1,605.00",NIGHTLY TA (NSC),EXTERNAL AGENCIES AND BODIES,5902258128
06.07.2017,CUSTOMER EXPERIENCE HGF,MSR HOUSING,"2,655.00",NIGHTLY TA (NSC),EXTERNAL AGENCIES AND BODIES,5902258148
06.07.2017,ELECTORAL SVCES,DOWNSIDE FISHER YOUTH CLUB,680,GENERAL ELECTION,HIRE OF ROOMS/HALLS,5902257997
06.07.2017,ELECTORAL SVCES,HONOR OAK BAPTIST CHURCH,400,GENERAL ELECTION,HIRE OF ROOMS/HALLS,5902257941
06.07.2017,ELECTORAL SVCES,ST MARY MAGDALENE CHURCH,500,GENERAL ELECTION,HIRE OF ROOMS/HALLS,5902258057
06.07.2017,ENVIRONMENT AND LEISURE,COMMUNITY CYCLEWORKS,760,CAPITAL PS (LEISURE),CAPITAL GRANTS,5902257914
06.07.2017,ENVIRONMENT AND LEISURE,CONWAY AECOM LTD,"1,143.96",CAPITAL PS (LEISURE),CONSTRUCTION,2102690016
06.07.2017,ENVIRONMENT AND LEISURE,CONWAY AECOM LTD,"1,601.57",CAPITAL PS (LEISURE),CONSTRUCTION,2102690013
06.07.2017,ENVIRONMENT AND LEISURE,CONWAY AECOM LTD,"1,788.01",CAPITAL PS (LEISURE),CONSTRUCTION,2102690010
06.07.2017,ENVIRONMENT AND LEISURE,CONWAY AECOM LTD,"1,916.64",CAPITAL PS (LEISURE),CONSTRUCTION,2102690015
06.07.2017,ENVIRONMENT AND LEISURE,CONWAY AECOM LTD,"2,342.51",CAPITAL PS (LEISURE),CONSTRUCTION,2102690011
06.07.2017,ENVIRONMENT AND LEISURE,CONWAY AECOM LTD,"3,119.97",CAPITAL PS (LEISURE),CONSTRUCTION,2102690024
06.07.2017,ENVIRONMENT AND LEISURE,CONWAY AECOM LTD,"3,331.74",CAPITAL PS (LEISURE),CONSTRUCTION,2102690018
06.07.2017,ENVIRONMENT AND LEISURE,CONWAY AECOM LTD,"3,533.72",CAPITAL PS (LEISURE),CONSTRUCTION,2102690014
06.07.2017,ENVIRONMENT AND LEISURE,CONWAY AECOM LTD,"4,008.65",CAPITAL PS (LEISURE),CONSTRUCTION,2102690019
06.07.2017,ENVIRONMENT AND LEISURE,CONWAY AECOM LTD,"5,116.15",CAPITAL PS (LEISURE),CONSTRUCTION,2102690017
06.07.2017,ENVIRONMENT AND LEISURE,CONWAY AECOM LTD,"8,500.38",CAPITAL PS (LEISURE),CONSTRUCTION,2102690022
06.07.2017,ENVIRONMENT AND LEISURE,CONWAY AECOM LTD,"11,256.78",CAPITAL PS (LEISURE),CONSTRUCTION,2102690023
06.07.2017,ENVIRONMENT AND LEISURE,CONWAY AECOM LTD,"17,225.89",CAPITAL PS (LEISURE),CONSTRUCTION,2102690021
06.07.2017,ENVIRONMENT AND LEISURE,CONWAY AECOM LTD,"23,380.75",CAPITAL PS (LEISURE),CONSTRUCTION,2102690020
06.07.2017,ENVIRONMENT AND LEISURE,CONWAY AECOM LTD,"25,839.91",CAPITAL PS (LEISURE),CONSTRUCTION,2102690012
06.07.2017,ENVIRONMENT DIRECTORATE,CBS MAINTENANCE SERVICES LTD,320.41,CCTV,EQUIPMENT PURCHASE & REPAIR,5902257945
06.07.2017,ENVIRONMENT DIRECTORATE,THE T.P. PARTNERSHIP,445,ESTATE CLEANING-GENERAL,OTHER CONTRACTORS,5902258135
06.07.2017,ENVIRONMENT DIRECTORATE,PILLAR SOFTWARE LTD,"1,914.00",PROJECT SUPPORT,SOFTWARE,5902257059
06.07.2017,ENVIRONMENT DIRECTORATE,NPOWER LTD,386.86,STREET TRADING A/C,ELECTRICITY,5902258110
06.07.2017,ENVIRONMENT DIRECTORATE,C BREWER & SONS LTD,523.3,STREET TRADING A/C,MATERIALS,5902257976
06.07.2017,EXTERNAL AFFAIRS,JADU LIMITED,"-5,400.00",E-COMMUNICATIONS,CONSULTANTS SERVICES,5902258289
06.07.2017,EXTERNAL AFFAIRS,JADU LIMITED,"-3,600.00",E-COMMUNICATIONS,CONSULTANTS SERVICES,5902258288
06.07.2017,EXTERNAL AFFAIRS,JADU LIMITED,"3,600.00",E-COMMUNICATIONS,CONSULTANTS SERVICES,5902258263
06.07.2017,EXTERNAL AFFAIRS,JADU LIMITED,"5,400.00",E-COMMUNICATIONS,CONSULTANTS SERVICES,5902258264
06.07.2017,F & C S EXCLUDING CORPORATE BUDGETS,LEXISNEXIS UK,"-3,750.00",LEGAL SVCES MANAGEMENT,SOFTWARE,5902257960
06.07.2017,F & C S EXCLUDING CORPORATE BUDGETS,LEXISNEXIS UK,"30,126.01",LEGAL SVCES MANAGEMENT,SOFTWARE,5902257957
06.07.2017,F & C S EXCLUDING CORPORATE BUDGETS,HAMMICKS,337,LEGAL SVCES MANAGEMENT,SUBSCRIPTIONS,5902258034
06.07.2017,FINANCE & GOVERNANCE,HEYWOOD LIMITED,400.25,PENSIONS,CONSULTANTS SERVICES,5902257924
06.07.2017,HOUSING GENERAL FUND,DAVID MILES & PARTNERS,"12,100.00",CAPITAL PS (REGEN),CONSTRUCTION,5902258154
06.07.2017,HOUSING GENERAL FUND,J2 GLOBAL CANADA,"7,087.00",EFAX SERVICE FEES,DATA COMMUNICATIONS,CHAPS PAYMENT
06.07.2017,HOUSING HRA,CALFORD SEADEN LLP,"5,154.23",CAPITAL PS (HRA),CONSTRUCTION FEES  - EXTERNAL,5902258095
06.07.2017,HOUSING HRA,JOHN BURKE ASSOCIATES,608,CAPITAL PS (HRA),LAND & BUILDINGS ACQUISITION FEES,5902257946
06.07.2017,HOUSING HRA,JOHN BURKE ASSOCIATES,736,CAPITAL PS (HRA),LAND & BUILDINGS ACQUISITION FEES,5902257925
06.07.2017,HOUSING HRA,JOHN BURKE ASSOCIATES,768,CAPITAL PS (HRA),LAND & BUILDINGS ACQUISITION FEES,5902257918
06.07.2017,HOUSING HRA,PRB ESTATES LTD,"26,508.21",PRBE,MANUAL CREDITORS,2102689250
06.07.2017,HOUSING HRA,LONDON TOOLS LIMITED,378,STORES,CREDITORS -GR/IR CLEARING ACCOUNT,5902258122
06.07.2017,HOUSING HRA,LONDON TOOLS LIMITED,775,STORES,CREDITORS -GR/IR CLEARING ACCOUNT,5902257906
06.07.2017,HOUSING HRA,LONDON TOOLS LIMITED,800,STORES,CREDITORS -GR/IR CLEARING ACCOUNT,5902258120
06.07.2017,HOUSING HRA,LONDON TOOLS LIMITED,"1,050.00",STORES,CREDITORS -GR/IR CLEARING ACCOUNT,5902258119
06.07.2017,HOUSING HRA,LONDON TOOLS LIMITED,"1,390.00",STORES,CREDITORS -GR/IR CLEARING ACCOUNT,5902257906
06.07.2017,HOUSING HRA,LONDON TOOLS LIMITED,"1,440.00",STORES,CREDITORS -GR/IR CLEARING ACCOUNT,5902257906
06.07.2017,HOUSING HRA,LONDON TOOLS LIMITED,"1,440.00",STORES,CREDITORS -GR/IR CLEARING ACCOUNT,5902258120
06.07.2017,LEISURE DIRECTORATE,KENT COUNTY COUNCIL - LASER,274.22,CAMBERWELL LIBRARY,GAS,5902257911
06.07.2017,LEISURE DIRECTORATE,BANKSIDE OPEN SPACES TRUST,"11,503.25",ENVIRONMENT & LEISURE GRANTS,OTHER CONTRACTORS,5902258049
06.07.2017,LEISURE DIRECTORATE,LONDON WILDLIFE TRUST,"7,619.85",ENVIRONMENT & LEISURE GRANTS,OTHER CONTRACTORS,5902258103
06.07.2017,LEISURE DIRECTORATE,NPOWER LTD,307.09,PECKHAM ADVENTURE PLAY,ELECTRICITY,5902258015
06.07.2017,LEISURE DIRECTORATE,INCENTIVE QAS LTD,"1,330.17",TEMPORARY NEWINGTON,PREMISES CLEANING,5902257980
06.07.2017,MODERNISATION HGF,SODEXHO PASS LTD,792.72,CHILDCARE VOUCHERS,OTHER EMPLOYEE EXPENSES,5902258024
06.07.2017,MODERNISATION HGF,SODEXHO PASS LTD,"26,424.00",CHILDCARE VOUCHERS,OTHER EMPLOYEE EXPENSES,5902258024
06.07.2017,MODERNISATION HGF,NPOWER LTD,610.3,CURLEW HOUSE,ELECTRICITY,5902258071
06.07.2017,MODERNISATION HGF,COMENSURA LTD,"3,336.42",MONTHLY ADMIN FEE,AGENCY STAFF,5902258074
06.07.2017,MODERNISATION HGF,COMENSURA LTD,"450,952.59",WEEKLY PAYMENTS,AGENCY STAFF,5902258074
06.07.2017,PECKHAM AND NUNHEAD COMMUNITY COUNCIL,PUFFIN T&RA,"2,000.00",,GRANT,CHEQUE PAYMENT
06.07.2017,PLANNING AND TRANSPORT,KYBO CORP,"1,287.00",DEVELOPMENT CONTROL ADMINSTRATION,COMPUTER MAINTENANCE,5902256920
06.07.2017,PUBLIC HEALTH,MAIDSTONE & TUNBRIDGE WELLS NHS TRUST,910,SEXUAL HEALTH - STI,EXTERNAL AGENCIES AND BODIES,5902257931
06.07.2017,REGENERATION,SANDERSON WEATHERALL LLP,"7,500.00",PECKHAM/CAMBERWELL SITES-FEES/MPLAN,PROFESSIONAL FEES,5902257921
06.07.2017,RESIDENT SERVICES,EDF ENERGY PLC,258.9,OPERATIONS/OFFICES ACCOMMODATION,ELECTRICITY,5902256299
06.07.2017,RESIDENT SERVICES,EDF ENERGY PLC,279.08,OPERATIONS/OFFICES ACCOMMODATION,ELECTRICITY,5902256287
06.07.2017,RESIDENT SERVICES,EDF ENERGY PLC,287.63,OPERATIONS/OFFICES ACCOMMODATION,ELECTRICITY,5902253264
06.07.2017,RESIDENT SERVICES,EDF ENERGY PLC,"2,020.55",OPERATIONS/OFFICES ACCOMMODATION,ELECTRICITY,5902258140
06.07.2017,RESIDENT SERVICES,EDF ENERGY PLC,"2,272.19",OPERATIONS/OFFICES ACCOMMODATION,ELECTRICITY,5902258147
06.07.2017,RESIDENT SERVICES,EDF ENERGY PLC,"2,283.07",OPERATIONS/OFFICES ACCOMMODATION,ELECTRICITY,5902258144
06.07.2017,RESIDENT SERVICES,C BREWER & SONS LTD,344.45,TA HOSTELS,MATERIALS,5902257978
06.07.2017,RESIDENT SERVICES,C BREWER & SONS LTD,776.25,TA HOSTELS,MATERIALS,5902257978
06.07.2017,RESIDENT SERVICES HGF,STAKRAK LTD,"6,430.00",ILDERTON ROAD PERM,EQUIPMENT PURCHASE & REPAIR,5902258141
06.07.2017,SOUTHWARK BUILDING SERVICES,LOCKESLEYS LTD,"-15,955.68",BUSINESS SUPPORT,OTHER CONTRACTORS,2102692081
06.07.2017,SOUTHWARK BUILDING SERVICES,LOCKESLEYS LTD,"15,955.68",BUSINESS SUPPORT,OTHER CONTRACTORS,2102689260
06.07.2017,SOUTHWARK BUILDING SERVICES,PEARSON GLAZING LIMITED,281.66,ROTHERHITHE DAY TO DAY - GLAZIER,MATERIALS,5902258072
06.07.2017,SOUTHWARK BUILDING SERVICES,ACCLAIM HANDLING PLC,346.66,STORES/LOGISTICS,OP LEASE/HIRE CHARGES:PLANT/EQUIP/FURNIT,5902257987
07.07.2017,ADULT SOCIAL CARE,CHORUS LAW LTD,"5,058.38",APPOINTEESHIPS,OTHER PAYMENTS FOR CLIENTS,5902258418
07.07.2017,ADULT SOCIAL CARE,REDACTED PERSONAL DATA,"1,902.84",APPOINTEESHIPS,OTHER PAYMENTS FOR CLIENTS,5902258426
07.07.2017,ADULT SOCIAL CARE,REDACTED PERSONAL DATA,264.8,APPOINTEESHIPS,OTHER PAYMENTS FOR CLIENTS,5902258285
07.07.2017,ADULT SOCIAL CARE,REDACTED PERSONAL DATA,480,APPOINTEESHIPS,OTHER PAYMENTS FOR CLIENTS,5902258287
07.07.2017,ADULT SOCIAL CARE,REDACTED PERSONAL DATA,826.71,APPOINTEESHIPS,OTHER PAYMENTS FOR CLIENTS,5902258392
07.07.2017,ADULT SOCIAL CARE,PEOPLE PLUS,"3,518.32",CONTINUING CARE PERSONAL BUDGETS DR,RECOVERABLE COSTS INCL. HEALTH,2102691786
07.07.2017,ADULT SOCIAL CARE,PEOPLE PLUS,"3,613.68",CONTINUING CARE PERSONAL BUDGETS DR,RECOVERABLE COSTS INCL. HEALTH,2102691461
07.07.2017,ADULT SOCIAL CARE,PEOPLE PLUS,"7,703.32",CONTINUING CARE PERSONAL BUDGETS DR,RECOVERABLE COSTS INCL. HEALTH,2102690951
07.07.2017,ADULT SOCIAL CARE,REDACTED PERSONAL DATA,"2,360.80",CONTINUING CARE PERSONAL BUDGETS DR,RECOVERABLE COSTS INCL. HEALTH,2102691194
07.07.2017,ADULT SOCIAL CARE,REDACTED PERSONAL DATA,"5,335.96",CONTINUING CARE PERSONAL BUDGETS DR,RECOVERABLE COSTS INCL. HEALTH,2102692004
07.07.2017,ADULT SOCIAL CARE,THE CAMDEN SOCIETY (SOCIAL CARE),"-1,262.11",LD LTS 18-64,DAYCARE,2102691024
07.07.2017,ADULT SOCIAL CARE,THE CAMDEN SOCIETY (SOCIAL CARE),379.2,LD LTS 18-64,DAYCARE,2102691613
07.07.2017,ADULT SOCIAL CARE,THE CAMDEN SOCIETY (SOCIAL CARE),384,LD LTS 18-64,DAYCARE,2102691167
07.07.2017,ADULT SOCIAL CARE,THE CAMDEN SOCIETY (SOCIAL CARE),465.6,LD LTS 18-64,DAYCARE,2102691005
07.07.2017,ADULT SOCIAL CARE,THE CAMDEN SOCIETY (SOCIAL CARE),465.6,LD LTS 18-64,DAYCARE,2102691208
07.07.2017,ADULT SOCIAL CARE,THE CAMDEN SOCIETY (SOCIAL CARE),504,LD LTS 18-64,DAYCARE,2102691762
07.07.2017,ADULT SOCIAL CARE,THE CAMDEN SOCIETY (SOCIAL CARE),609.6,LD LTS 18-64,DAYCARE,2102691329
07.07.2017,ADULT SOCIAL CARE,THE CAMDEN SOCIETY (SOCIAL CARE),676.8,LD LTS 18-64,DAYCARE,2102691479
07.07.2017,ADULT SOCIAL CARE,THE CAMDEN SOCIETY (SOCIAL CARE),700,LD LTS 18-64,DAYCARE,2102691102
07.07.2017,ADULT SOCIAL CARE,THE CAMDEN SOCIETY (SOCIAL CARE),705.6,LD LTS 18-64,DAYCARE,2102691404
07.07.2017,ADULT SOCIAL CARE,THE CAMDEN SOCIETY (SOCIAL CARE),753.6,LD LTS 18-64,DAYCARE,2102690930
07.07.2017,ADULT SOCIAL CARE,THE CAMDEN SOCIETY (SOCIAL CARE),753.6,LD LTS 18-64,DAYCARE,2102690963
07.07.2017,ADULT SOCIAL CARE,THE CAMDEN SOCIETY (SOCIAL CARE),753.6,LD LTS 18-64,DAYCARE,2102691196
07.07.2017,ADULT SOCIAL CARE,THE CAMDEN SOCIETY (SOCIAL CARE),753.6,LD LTS 18-64,DAYCARE,2102691227
07.07.2017,ADULT SOCIAL CARE,THE CAMDEN SOCIETY (SOCIAL CARE),753.6,LD LTS 18-64,DAYCARE,2102691339
07.07.2017,ADULT SOCIAL CARE,THE CAMDEN SOCIETY (SOCIAL CARE),753.6,LD LTS 18-64,DAYCARE,2102691441
07.07.2017,ADULT SOCIAL CARE,THE CAMDEN SOCIETY (SOCIAL CARE),753.6,LD LTS 18-64,DAYCARE,2102691458
07.07.2017,ADULT SOCIAL CARE,THE CAMDEN SOCIETY (SOCIAL CARE),753.6,LD LTS 18-64,DAYCARE,2102691503
07.07.2017,ADULT SOCIAL CARE,THE CAMDEN SOCIETY (SOCIAL CARE),988,LD LTS 18-64,DAYCARE,2102690840
07.07.2017,ADULT SOCIAL CARE,THE CAMDEN SOCIETY (SOCIAL CARE),988,LD LTS 18-64,DAYCARE,2102691051
07.07.2017,ADULT SOCIAL CARE,THE CAMDEN SOCIETY (SOCIAL CARE),988,LD LTS 18-64,DAYCARE,2102691142
07.07.2017,ADULT SOCIAL CARE,THE CAMDEN SOCIETY (SOCIAL CARE),988,LD LTS 18-64,DAYCARE,2102691157
07.07.2017,ADULT SOCIAL CARE,THE CAMDEN SOCIETY (SOCIAL CARE),988,LD LTS 18-64,DAYCARE,2102691312
07.07.2017,ADULT SOCIAL CARE,THE CAMDEN SOCIETY (SOCIAL CARE),988,LD LTS 18-64,DAYCARE,2102691485
07.07.2017,ADULT SOCIAL CARE,THE CAMDEN SOCIETY (SOCIAL CARE),"1,060.00",LD LTS 18-64,DAYCARE,2102691007
07.07.2017,ADULT SOCIAL CARE,THE CAMDEN SOCIETY (SOCIAL CARE),"1,060.00",LD LTS 18-64,DAYCARE,2102691126
07.07.2017,ADULT SOCIAL CARE,THE CAMDEN SOCIETY (SOCIAL CARE),"1,060.00",LD LTS 18-64,DAYCARE,2102691266
07.07.2017,ADULT SOCIAL CARE,THE CAMDEN SOCIETY (SOCIAL CARE),"1,060.00",LD LTS 18-64,DAYCARE,2102691282
07.07.2017,ADULT SOCIAL CARE,THE CAMDEN SOCIETY (SOCIAL CARE),"1,060.00",LD LTS 18-64,DAYCARE,2102691288
07.07.2017,ADULT SOCIAL CARE,THE CAMDEN SOCIETY (SOCIAL CARE),"1,060.00",LD LTS 18-64,DAYCARE,2102691321
07.07.2017,ADULT SOCIAL CARE,THE CAMDEN SOCIETY (SOCIAL CARE),"1,060.00",LD LTS 18-64,DAYCARE,2102691377
07.07.2017,ADULT SOCIAL CARE,THE CAMDEN SOCIETY (SOCIAL CARE),"1,060.00",LD LTS 18-64,DAYCARE,2102691382
07.07.2017,ADULT SOCIAL CARE,THE CAMDEN SOCIETY (SOCIAL CARE),"1,060.00",LD LTS 18-64,DAYCARE,2102691697
07.07.2017,ADULT SOCIAL CARE,THE CAMDEN SOCIETY (SOCIAL CARE),"1,105.60",LD LTS 18-64,DAYCARE,2102691137
07.07.2017,ADULT SOCIAL CARE,THE CAMDEN SOCIETY (SOCIAL CARE),"1,128.00",LD LTS 18-64,DAYCARE,2102690984
07.07.2017,ADULT SOCIAL CARE,THE CAMDEN SOCIETY (SOCIAL CARE),"1,128.00",LD LTS 18-64,DAYCARE,2102690997
07.07.2017,ADULT SOCIAL CARE,THE CAMDEN SOCIETY (SOCIAL CARE),"1,128.00",LD LTS 18-64,DAYCARE,2102691319
07.07.2017,ADULT SOCIAL CARE,THE CAMDEN SOCIETY (SOCIAL CARE),"1,128.00",LD LTS 18-64,DAYCARE,2102691596
07.07.2017,ADULT SOCIAL CARE,THE CAMDEN SOCIETY (SOCIAL CARE),"1,137.60",LD LTS 18-64,DAYCARE,2102690861
07.07.2017,ADULT SOCIAL CARE,THE CAMDEN SOCIETY (SOCIAL CARE),"1,137.60",LD LTS 18-64,DAYCARE,2102691079
07.07.2017,ADULT SOCIAL CARE,THE CAMDEN SOCIETY (SOCIAL CARE),"1,137.60",LD LTS 18-64,DAYCARE,2102691188
07.07.2017,ADULT SOCIAL CARE,THE CAMDEN SOCIETY (SOCIAL CARE),"1,137.60",LD LTS 18-64,DAYCARE,2102691544
07.07.2017,ADULT SOCIAL CARE,THE CAMDEN SOCIETY (SOCIAL CARE),"1,137.60",LD LTS 18-64,DAYCARE,2102691585
07.07.2017,ADULT SOCIAL CARE,THE CAMDEN SOCIETY (SOCIAL CARE),"1,137.60",LD LTS 18-64,DAYCARE,2102691603
07.07.2017,ADULT SOCIAL CARE,THE CAMDEN SOCIETY (SOCIAL CARE),"1,451.52",LD LTS 18-64,DAYCARE,2102691714
07.07.2017,ADULT SOCIAL CARE,THE CAMDEN SOCIETY (SOCIAL CARE),"1,473.60",LD LTS 18-64,DAYCARE,2102690918
07.07.2017,ADULT SOCIAL CARE,THE CAMDEN SOCIETY (SOCIAL CARE),"1,473.60",LD LTS 18-64,DAYCARE,2102691744
07.07.2017,ADULT SOCIAL CARE,THE CAMDEN SOCIETY (SOCIAL CARE),"1,492.00",LD LTS 18-64,DAYCARE,2102691408
07.07.2017,ADULT SOCIAL CARE,THE CAMDEN SOCIETY (SOCIAL CARE),"1,492.00",LD LTS 18-64,DAYCARE,2102691463
07.07.2017,ADULT SOCIAL CARE,THE CAMDEN SOCIETY (SOCIAL CARE),"1,634.76",LD LTS 18-64,DAYCARE,2102691399
07.07.2017,ADULT SOCIAL CARE,THE CAMDEN SOCIETY (SOCIAL CARE),"1,680.48",LD LTS 18-64,DAYCARE,2102691537
07.07.2017,ADULT SOCIAL CARE,THE CAMDEN SOCIETY (SOCIAL CARE),"1,824.48",LD LTS 18-64,DAYCARE,2102690946
07.07.2017,ADULT SOCIAL CARE,THE CAMDEN SOCIETY (SOCIAL CARE),"1,824.48",LD LTS 18-64,DAYCARE,2102691256
07.07.2017,ADULT SOCIAL CARE,THE CAMDEN SOCIETY (SOCIAL CARE),"1,824.48",LD LTS 18-64,DAYCARE,2102691491
07.07.2017,ADULT SOCIAL CARE,THE CAMDEN SOCIETY (SOCIAL CARE),"1,848.00",LD LTS 18-64,DAYCARE,2102690903
07.07.2017,ADULT SOCIAL CARE,THE CAMDEN SOCIETY (SOCIAL CARE),"1,848.00",LD LTS 18-64,DAYCARE,2102690966
07.07.2017,ADULT SOCIAL CARE,THE CAMDEN SOCIETY (SOCIAL CARE),"1,848.00",LD LTS 18-64,DAYCARE,2102691058
07.07.2017,ADULT SOCIAL CARE,THE CAMDEN SOCIETY (SOCIAL CARE),"1,848.00",LD LTS 18-64,DAYCARE,2102691341
07.07.2017,ADULT SOCIAL CARE,THE CAMDEN SOCIETY (SOCIAL CARE),"1,848.00",LD LTS 18-64,DAYCARE,2102691437
07.07.2017,ADULT SOCIAL CARE,THE CAMDEN SOCIETY (SOCIAL CARE),"1,848.00",LD LTS 18-64,DAYCARE,2102691480
07.07.2017,ADULT SOCIAL CARE,THE CAMDEN SOCIETY (SOCIAL CARE),"1,848.00",LD LTS 18-64,DAYCARE,2102691535
07.07.2017,ADULT SOCIAL CARE,THE CAMDEN SOCIETY (SOCIAL CARE),"1,848.00",LD LTS 18-64,DAYCARE,2102691608
07.07.2017,ADULT SOCIAL CARE,THE CAMDEN SOCIETY (SOCIAL CARE),"1,848.00",LD LTS 18-64,DAYCARE,2102691622
07.07.2017,ADULT SOCIAL CARE,THE CAMDEN SOCIETY (SOCIAL CARE),"1,852.00",LD LTS 18-64,DAYCARE,2102690880
07.07.2017,ADULT SOCIAL CARE,THE CAMDEN SOCIETY (SOCIAL CARE),"1,924.00",LD LTS 18-64,DAYCARE,2102691502
07.07.2017,ADULT SOCIAL CARE,THE CAMDEN SOCIETY (SOCIAL CARE),"1,926.16",LD LTS 18-64,DAYCARE,2102691640
07.07.2017,ADULT SOCIAL CARE,THE CAMDEN SOCIETY (SOCIAL CARE),"2,154.52",LD LTS 18-64,DAYCARE,2102691177
07.07.2017,ADULT SOCIAL CARE,THE CAMDEN SOCIETY (SOCIAL CARE),"2,328.48",LD LTS 18-64,DAYCARE,2102691568
07.07.2017,ADULT SOCIAL CARE,THE CAMDEN SOCIETY (SOCIAL CARE),"2,412.00",LD LTS 18-64,DAYCARE,2102690937
07.07.2017,ADULT SOCIAL CARE,THE CAMDEN SOCIETY (SOCIAL CARE),"2,412.00",LD LTS 18-64,DAYCARE,2102691143
07.07.2017,ADULT SOCIAL CARE,THE CAMDEN SOCIETY (SOCIAL CARE),"2,412.00",LD LTS 18-64,DAYCARE,2102691631
07.07.2017,ADULT SOCIAL CARE,THE CAMDEN SOCIETY (SOCIAL CARE),"2,412.00",LD LTS 18-64,DAYCARE,2102691775
07.07.2017,ADULT SOCIAL CARE,THE CAMDEN SOCIETY (SOCIAL CARE),"2,489.68",LD LTS 18-64,DAYCARE,2102690831
07.07.2017,ADULT SOCIAL CARE,THE CAMDEN SOCIETY (SOCIAL CARE),"2,760.48",LD LTS 18-64,DAYCARE,2102690869
07.07.2017,ADULT SOCIAL CARE,THE CAMDEN SOCIETY (SOCIAL CARE),"3,538.08",LD LTS 18-64,DAYCARE,2102691261
07.07.2017,ADULT SOCIAL CARE,AURORA OPTIONS,408,LD LTS 18-64,DAYCARE,2102691422
07.07.2017,ADULT SOCIAL CARE,FRESH IDEAS & SOLUTIONS SERVICES CIC,"-1,514.96",LD LTS 18-64,DISCRETIONARY FLEXIBLE FEES & INCOME,2102691011
07.07.2017,ADULT SOCIAL CARE,REDACTED PERSONAL DATA,325.16,LD LTS 18-64,DISCRETIONARY FLEXIBLE FEES & INCOME,2102607440
07.07.2017,ADULT SOCIAL CARE,REDACTED PERSONAL DATA,"-3,567.88",LD LTS 18-64,DISCRETIONARY FLEXIBLE FEES & INCOME,2102691861
07.07.2017,ADULT SOCIAL CARE,NESTOR PRIMECARE SERVICES LTD,"1,170.00",LD LTS 18-64,HOMECARE - C&V,2102691087
07.07.2017,ADULT SOCIAL CARE,SWK AFRICAN FAMILY SUPPORT SVCS,"1,310.40",LD LTS 18-64,HOMECARE - C&V,2102691156
07.07.2017,ADULT SOCIAL CARE,FRESH IDEAS & SOLUTIONS SERVICES CIC,644,LD LTS 18-64,HOMECARE - C&V,2102691545
07.07.2017,ADULT SOCIAL CARE,FRESH IDEAS & SOLUTIONS SERVICES CIC,895.6,LD LTS 18-64,HOMECARE - C&V,2102690992
07.07.2017,ADULT SOCIAL CARE,FRESH IDEAS & SOLUTIONS SERVICES CIC,"1,067.12",LD LTS 18-64,HOMECARE - C&V,2102690991
07.07.2017,ADULT SOCIAL CARE,PEOPLES CARE LTD,"2,574.40",LD LTS 18-64,HOMECARE - C&V,2102691707
07.07.2017,ADULT SOCIAL CARE,THE CAMDEN SOCIETY (SOCIAL CARE),484,LD LTS 18-64,HOMECARE - SPOT,2102691586
07.07.2017,ADULT SOCIAL CARE,FRESH IDEAS & SOLUTIONS SERVICES CIC,"1,848.00",LD LTS 18-64,HOMECARE - SPOT,2102691026
07.07.2017,ADULT SOCIAL CARE,PEOPLE PLUS,-924.32,LD LTS 18-64,PAYMENTS TO CLIENTS (DIRECT PAYMENTS),2102691062
07.07.2017,ADULT SOCIAL CARE,PEOPLE PLUS,254.68,LD LTS 18-64,PAYMENTS TO CLIENTS (DIRECT PAYMENTS),2102691467
07.07.2017,ADULT SOCIAL CARE,PEOPLE PLUS,266,LD LTS 18-64,PAYMENTS TO CLIENTS (DIRECT PAYMENTS),2102691511
07.07.2017,ADULT SOCIAL CARE,PEOPLE PLUS,288.4,LD LTS 18-64,PAYMENTS TO CLIENTS (DIRECT PAYMENTS),2102690856
07.07.2017,ADULT SOCIAL CARE,PEOPLE PLUS,288.4,LD LTS 18-64,PAYMENTS TO CLIENTS (DIRECT PAYMENTS),2102691084
07.07.2017,ADULT SOCIAL CARE,PEOPLE PLUS,289.36,LD LTS 18-64,PAYMENTS TO CLIENTS (DIRECT PAYMENTS),2102691375
07.07.2017,ADULT SOCIAL CARE,PEOPLE PLUS,307.84,LD LTS 18-64,PAYMENTS TO CLIENTS (DIRECT PAYMENTS),2102691210
07.07.2017,ADULT SOCIAL CARE,PEOPLE PLUS,308,LD LTS 18-64,PAYMENTS TO CLIENTS (DIRECT PAYMENTS),2102691468
07.07.2017,ADULT SOCIAL CARE,PEOPLE PLUS,329.8,LD LTS 18-64,PAYMENTS TO CLIENTS (DIRECT PAYMENTS),2102691504
07.07.2017,ADULT SOCIAL CARE,PEOPLE PLUS,356.92,LD LTS 18-64,PAYMENTS TO CLIENTS (DIRECT PAYMENTS),2102691792
07.07.2017,ADULT SOCIAL CARE,PEOPLE PLUS,383.44,LD LTS 18-64,PAYMENTS TO CLIENTS (DIRECT PAYMENTS),2102691434
07.07.2017,ADULT SOCIAL CARE,PEOPLE PLUS,395.12,LD LTS 18-64,PAYMENTS TO CLIENTS (DIRECT PAYMENTS),2102691505
07.07.2017,ADULT SOCIAL CARE,PEOPLE PLUS,408.4,LD LTS 18-64,PAYMENTS TO CLIENTS (DIRECT PAYMENTS),2102691765
07.07.2017,ADULT SOCIAL CARE,PEOPLE PLUS,415.6,LD LTS 18-64,PAYMENTS TO CLIENTS (DIRECT PAYMENTS),2102691088
07.07.2017,ADULT SOCIAL CARE,PEOPLE PLUS,424,LD LTS 18-64,PAYMENTS TO CLIENTS (DIRECT PAYMENTS),2102691223
07.07.2017,ADULT SOCIAL CARE,PEOPLE PLUS,440,LD LTS 18-64,PAYMENTS TO CLIENTS (DIRECT PAYMENTS),2102691211
07.07.2017,ADULT SOCIAL CARE,PEOPLE PLUS,450,LD LTS 18-64,PAYMENTS TO CLIENTS (DIRECT PAYMENTS),2102691131
07.07.2017,ADULT SOCIAL CARE,PEOPLE PLUS,450,LD LTS 18-64,PAYMENTS TO CLIENTS (DIRECT PAYMENTS),2102691686
07.07.2017,ADULT SOCIAL CARE,PEOPLE PLUS,505.96,LD LTS 18-64,PAYMENTS TO CLIENTS (DIRECT PAYMENTS),2102691342
07.07.2017,ADULT SOCIAL CARE,PEOPLE PLUS,556.4,LD LTS 18-64,PAYMENTS TO CLIENTS (DIRECT PAYMENTS),2102691646
07.07.2017,ADULT SOCIAL CARE,PEOPLE PLUS,578,LD LTS 18-64,PAYMENTS TO CLIENTS (DIRECT PAYMENTS),2102691080
07.07.2017,ADULT SOCIAL CARE,PEOPLE PLUS,613.52,LD LTS 18-64,PAYMENTS TO CLIENTS (DIRECT PAYMENTS),2102691203
07.07.2017,ADULT SOCIAL CARE,PEOPLE PLUS,670,LD LTS 18-64,PAYMENTS TO CLIENTS (DIRECT PAYMENTS),2102690979
07.07.2017,ADULT SOCIAL CARE,PEOPLE PLUS,679.2,LD LTS 18-64,PAYMENTS TO CLIENTS (DIRECT PAYMENTS),2102691217
07.07.2017,ADULT SOCIAL CARE,PEOPLE PLUS,690.72,LD LTS 18-64,PAYMENTS TO CLIENTS (DIRECT PAYMENTS),2102691432
07.07.2017,ADULT SOCIAL CARE,PEOPLE PLUS,707.04,LD LTS 18-64,PAYMENTS TO CLIENTS (DIRECT PAYMENTS),2102691334
07.07.2017,ADULT SOCIAL CARE,PEOPLE PLUS,712.4,LD LTS 18-64,PAYMENTS TO CLIENTS (DIRECT PAYMENTS),2102691151
07.07.2017,ADULT SOCIAL CARE,PEOPLE PLUS,722.4,LD LTS 18-64,PAYMENTS TO CLIENTS (DIRECT PAYMENTS),2102691244
07.07.2017,ADULT SOCIAL CARE,PEOPLE PLUS,743.04,LD LTS 18-64,PAYMENTS TO CLIENTS (DIRECT PAYMENTS),2102691520
07.07.2017,ADULT SOCIAL CARE,PEOPLE PLUS,754,LD LTS 18-64,PAYMENTS TO CLIENTS (DIRECT PAYMENTS),2102691285
07.07.2017,ADULT SOCIAL CARE,PEOPLE PLUS,754.8,LD LTS 18-64,PAYMENTS TO CLIENTS (DIRECT PAYMENTS),2102691048
07.07.2017,ADULT SOCIAL CARE,PEOPLE PLUS,755.6,LD LTS 18-64,PAYMENTS TO CLIENTS (DIRECT PAYMENTS),2102691311
07.07.2017,ADULT SOCIAL CARE,PEOPLE PLUS,758.72,LD LTS 18-64,PAYMENTS TO CLIENTS (DIRECT PAYMENTS),2102691078
07.07.2017,ADULT SOCIAL CARE,PEOPLE PLUS,794,LD LTS 18-64,PAYMENTS TO CLIENTS (DIRECT PAYMENTS),2102691280
07.07.2017,ADULT SOCIAL CARE,PEOPLE PLUS,794,LD LTS 18-64,PAYMENTS TO CLIENTS (DIRECT PAYMENTS),2102691357
07.07.2017,ADULT SOCIAL CARE,PEOPLE PLUS,813.36,LD LTS 18-64,PAYMENTS TO CLIENTS (DIRECT PAYMENTS),2102690983
07.07.2017,ADULT SOCIAL CARE,PEOPLE PLUS,815.36,LD LTS 18-64,PAYMENTS TO CLIENTS (DIRECT PAYMENTS),2102691395
07.07.2017,ADULT SOCIAL CARE,PEOPLE PLUS,862.64,LD LTS 18-64,PAYMENTS TO CLIENTS (DIRECT PAYMENTS),2102691017
07.07.2017,ADULT SOCIAL CARE,PEOPLE PLUS,875.6,LD LTS 18-64,PAYMENTS TO CLIENTS (DIRECT PAYMENTS),2102691165
07.07.2017,ADULT SOCIAL CARE,PEOPLE PLUS,876.92,LD LTS 18-64,PAYMENTS TO CLIENTS (DIRECT PAYMENTS),2102691522
07.07.2017,ADULT SOCIAL CARE,PEOPLE PLUS,892.36,LD LTS 18-64,PAYMENTS TO CLIENTS (DIRECT PAYMENTS),2102691140
07.07.2017,ADULT SOCIAL CARE,PEOPLE PLUS,909.24,LD LTS 18-64,PAYMENTS TO CLIENTS (DIRECT PAYMENTS),2102690995
07.07.2017,ADULT SOCIAL CARE,PEOPLE PLUS,918,LD LTS 18-64,PAYMENTS TO CLIENTS (DIRECT PAYMENTS),2102691373
07.07.2017,ADULT SOCIAL CARE,PEOPLE PLUS,934,LD LTS 18-64,PAYMENTS TO CLIENTS (DIRECT PAYMENTS),2102691567
07.07.2017,ADULT SOCIAL CARE,PEOPLE PLUS,"1,024.72",LD LTS 18-64,PAYMENTS TO CLIENTS (DIRECT PAYMENTS),2102691294
07.07.2017,ADULT SOCIAL CARE,PEOPLE PLUS,"1,069.36",LD LTS 18-64,PAYMENTS TO CLIENTS (DIRECT PAYMENTS),2102691359
07.07.2017,ADULT SOCIAL CARE,PEOPLE PLUS,"1,080.04",LD LTS 18-64,PAYMENTS TO CLIENTS (DIRECT PAYMENTS),2102691562
07.07.2017,ADULT SOCIAL CARE,PEOPLE PLUS,"1,129.80",LD LTS 18-64,PAYMENTS TO CLIENTS (DIRECT PAYMENTS),2102691205
07.07.2017,ADULT SOCIAL CARE,PEOPLE PLUS,"1,171.28",LD LTS 18-64,PAYMENTS TO CLIENTS (DIRECT PAYMENTS),2102691022
07.07.2017,ADULT SOCIAL CARE,PEOPLE PLUS,"1,171.28",LD LTS 18-64,PAYMENTS TO CLIENTS (DIRECT PAYMENTS),2102691507
07.07.2017,ADULT SOCIAL CARE,PEOPLE PLUS,"1,211.60",LD LTS 18-64,PAYMENTS TO CLIENTS (DIRECT PAYMENTS),2102691089
07.07.2017,ADULT SOCIAL CARE,PEOPLE PLUS,"1,235.68",LD LTS 18-64,PAYMENTS TO CLIENTS (DIRECT PAYMENTS),2102691620
07.07.2017,ADULT SOCIAL CARE,PEOPLE PLUS,"1,239.04",LD LTS 18-64,PAYMENTS TO CLIENTS (DIRECT PAYMENTS),2102691411
07.07.2017,ADULT SOCIAL CARE,PEOPLE PLUS,"1,274.60",LD LTS 18-64,PAYMENTS TO CLIENTS (DIRECT PAYMENTS),2102691611
07.07.2017,ADULT SOCIAL CARE,PEOPLE PLUS,"1,377.28",LD LTS 18-64,PAYMENTS TO CLIENTS (DIRECT PAYMENTS),2102691135
07.07.2017,ADULT SOCIAL CARE,PEOPLE PLUS,"1,380.96",LD LTS 18-64,PAYMENTS TO CLIENTS (DIRECT PAYMENTS),2102691358
07.07.2017,ADULT SOCIAL CARE,PEOPLE PLUS,"1,398.00",LD LTS 18-64,PAYMENTS TO CLIENTS (DIRECT PAYMENTS),2102690874
07.07.2017,ADULT SOCIAL CARE,PEOPLE PLUS,"1,430.96",LD LTS 18-64,PAYMENTS TO CLIENTS (DIRECT PAYMENTS),2102691529
07.07.2017,ADULT SOCIAL CARE,PEOPLE PLUS,"1,474.96",LD LTS 18-64,PAYMENTS TO CLIENTS (DIRECT PAYMENTS),2102691073
07.07.2017,ADULT SOCIAL CARE,PEOPLE PLUS,"1,475.84",LD LTS 18-64,PAYMENTS TO CLIENTS (DIRECT PAYMENTS),2102691286
07.07.2017,ADULT SOCIAL CARE,PEOPLE PLUS,"1,477.48",LD LTS 18-64,PAYMENTS TO CLIENTS (DIRECT PAYMENTS),2102691670
07.07.2017,ADULT SOCIAL CARE,PEOPLE PLUS,"1,480.20",LD LTS 18-64,PAYMENTS TO CLIENTS (DIRECT PAYMENTS),2102691308
07.07.2017,ADULT SOCIAL CARE,PEOPLE PLUS,"1,612.00",LD LTS 18-64,PAYMENTS TO CLIENTS (DIRECT PAYMENTS),2102691513
07.07.2017,ADULT SOCIAL CARE,PEOPLE PLUS,"1,618.73",LD LTS 18-64,PAYMENTS TO CLIENTS (DIRECT PAYMENTS),2102691056
07.07.2017,ADULT SOCIAL CARE,PEOPLE PLUS,"1,626.28",LD LTS 18-64,PAYMENTS TO CLIENTS (DIRECT PAYMENTS),2102691345
07.07.2017,ADULT SOCIAL CARE,PEOPLE PLUS,"1,635.44",LD LTS 18-64,PAYMENTS TO CLIENTS (DIRECT PAYMENTS),2102691660
07.07.2017,ADULT SOCIAL CARE,PEOPLE PLUS,"1,659.04",LD LTS 18-64,PAYMENTS TO CLIENTS (DIRECT PAYMENTS),2102691374
07.07.2017,ADULT SOCIAL CARE,PEOPLE PLUS,"1,666.08",LD LTS 18-64,PAYMENTS TO CLIENTS (DIRECT PAYMENTS),2102691397
07.07.2017,ADULT SOCIAL CARE,PEOPLE PLUS,"1,690.24",LD LTS 18-64,PAYMENTS TO CLIENTS (DIRECT PAYMENTS),2102691560
07.07.2017,ADULT SOCIAL CARE,PEOPLE PLUS,"1,693.84",LD LTS 18-64,PAYMENTS TO CLIENTS (DIRECT PAYMENTS),2102691601
07.07.2017,ADULT SOCIAL CARE,PEOPLE PLUS,"1,696.32",LD LTS 18-64,PAYMENTS TO CLIENTS (DIRECT PAYMENTS),2102690862
07.07.2017,ADULT SOCIAL CARE,PEOPLE PLUS,"1,714.00",LD LTS 18-64,PAYMENTS TO CLIENTS (DIRECT PAYMENTS),2102691283
07.07.2017,ADULT SOCIAL CARE,PEOPLE PLUS,"1,714.80",LD LTS 18-64,PAYMENTS TO CLIENTS (DIRECT PAYMENTS),2102691093
07.07.2017,ADULT SOCIAL CARE,PEOPLE PLUS,"1,772.16",LD LTS 18-64,PAYMENTS TO CLIENTS (DIRECT PAYMENTS),2102691206
07.07.2017,ADULT SOCIAL CARE,PEOPLE PLUS,"1,801.96",LD LTS 18-64,PAYMENTS TO CLIENTS (DIRECT PAYMENTS),2102691305
07.07.2017,ADULT SOCIAL CARE,PEOPLE PLUS,"1,813.48",LD LTS 18-64,PAYMENTS TO CLIENTS (DIRECT PAYMENTS),2102691121
07.07.2017,ADULT SOCIAL CARE,PEOPLE PLUS,"1,862.00",LD LTS 18-64,PAYMENTS TO CLIENTS (DIRECT PAYMENTS),2102691299
07.07.2017,ADULT SOCIAL CARE,PEOPLE PLUS,"1,888.28",LD LTS 18-64,PAYMENTS TO CLIENTS (DIRECT PAYMENTS),2102691469
07.07.2017,ADULT SOCIAL CARE,PEOPLE PLUS,"1,911.52",LD LTS 18-64,PAYMENTS TO CLIENTS (DIRECT PAYMENTS),2102691410
07.07.2017,ADULT SOCIAL CARE,PEOPLE PLUS,"1,912.40",LD LTS 18-64,PAYMENTS TO CLIENTS (DIRECT PAYMENTS),2102690883
07.07.2017,ADULT SOCIAL CARE,PEOPLE PLUS,"1,950.96",LD LTS 18-64,PAYMENTS TO CLIENTS (DIRECT PAYMENTS),2102691734
07.07.2017,ADULT SOCIAL CARE,PEOPLE PLUS,"2,050.00",LD LTS 18-64,PAYMENTS TO CLIENTS (DIRECT PAYMENTS),2102691729
07.07.2017,ADULT SOCIAL CARE,PEOPLE PLUS,"2,108.12",LD LTS 18-64,PAYMENTS TO CLIENTS (DIRECT PAYMENTS),2102691788
07.07.2017,ADULT SOCIAL CARE,PEOPLE PLUS,"2,119.80",LD LTS 18-64,PAYMENTS TO CLIENTS (DIRECT PAYMENTS),2102691770
07.07.2017,ADULT SOCIAL CARE,PEOPLE PLUS,"2,167.80",LD LTS 18-64,PAYMENTS TO CLIENTS (DIRECT PAYMENTS),2102691519
07.07.2017,ADULT SOCIAL CARE,PEOPLE PLUS,"2,204.00",LD LTS 18-64,PAYMENTS TO CLIENTS (DIRECT PAYMENTS),2102690854
07.07.2017,ADULT SOCIAL CARE,PEOPLE PLUS,"2,245.12",LD LTS 18-64,PAYMENTS TO CLIENTS (DIRECT PAYMENTS),2102691176
07.07.2017,ADULT SOCIAL CARE,PEOPLE PLUS,"2,268.84",LD LTS 18-64,PAYMENTS TO CLIENTS (DIRECT PAYMENTS),2102690956
07.07.2017,ADULT SOCIAL CARE,PEOPLE PLUS,"2,312.40",LD LTS 18-64,PAYMENTS TO CLIENTS (DIRECT PAYMENTS),2102690933
07.07.2017,ADULT SOCIAL CARE,PEOPLE PLUS,"2,327.60",LD LTS 18-64,PAYMENTS TO CLIENTS (DIRECT PAYMENTS),2102691475
07.07.2017,ADULT SOCIAL CARE,PEOPLE PLUS,"2,447.76",LD LTS 18-64,PAYMENTS TO CLIENTS (DIRECT PAYMENTS),2102691493
07.07.2017,ADULT SOCIAL CARE,PEOPLE PLUS,"2,490.00",LD LTS 18-64,PAYMENTS TO CLIENTS (DIRECT PAYMENTS),2102691225
07.07.2017,ADULT SOCIAL CARE,PEOPLE PLUS,"2,494.00",LD LTS 18-64,PAYMENTS TO CLIENTS (DIRECT PAYMENTS),2102690990
07.07.2017,ADULT SOCIAL CARE,PEOPLE PLUS,"2,600.08",LD LTS 18-64,PAYMENTS TO CLIENTS (DIRECT PAYMENTS),2102691059
07.07.2017,ADULT SOCIAL CARE,PEOPLE PLUS,"2,733.64",LD LTS 18-64,PAYMENTS TO CLIENTS (DIRECT PAYMENTS),2102691656
07.07.2017,ADULT SOCIAL CARE,PEOPLE PLUS,"2,841.80",LD LTS 18-64,PAYMENTS TO CLIENTS (DIRECT PAYMENTS),2102690969
07.07.2017,ADULT SOCIAL CARE,PEOPLE PLUS,"2,918.00",LD LTS 18-64,PAYMENTS TO CLIENTS (DIRECT PAYMENTS),2102691209
07.07.2017,ADULT SOCIAL CARE,PEOPLE PLUS,"2,946.20",LD LTS 18-64,PAYMENTS TO CLIENTS (DIRECT PAYMENTS),2102691360
07.07.2017,ADULT SOCIAL CARE,PEOPLE PLUS,"3,322.56",LD LTS 18-64,PAYMENTS TO CLIENTS (DIRECT PAYMENTS),2102691423
07.07.2017,ADULT SOCIAL CARE,PEOPLE PLUS,"3,360.88",LD LTS 18-64,PAYMENTS TO CLIENTS (DIRECT PAYMENTS),2102691241
07.07.2017,ADULT SOCIAL CARE,PEOPLE PLUS,"3,809.20",LD LTS 18-64,PAYMENTS TO CLIENTS (DIRECT PAYMENTS),2102691689
07.07.2017,ADULT SOCIAL CARE,PEOPLE PLUS,"5,222.00",LD LTS 18-64,PAYMENTS TO CLIENTS (DIRECT PAYMENTS),2102691449
07.07.2017,ADULT SOCIAL CARE,PEOPLE PLUS,"7,521.32",LD LTS 18-64,PAYMENTS TO CLIENTS (DIRECT PAYMENTS),2102691593
07.07.2017,ADULT SOCIAL CARE,PEOPLE PLUS,"7,908.96",LD LTS 18-64,PAYMENTS TO CLIENTS (DIRECT PAYMENTS),2102691001
07.07.2017,ADULT SOCIAL CARE,PEOPLE PLUS,"12,619.20",LD LTS 18-64,PAYMENTS TO CLIENTS (DIRECT PAYMENTS),2102691173
07.07.2017,ADULT SOCIAL CARE,PEOPLE PLUS,"12,619.20",LD LTS 18-64,PAYMENTS TO CLIENTS (DIRECT PAYMENTS),2102691336
07.07.2017,ADULT SOCIAL CARE,PEOPLE PLUS,"14,014.00",LD LTS 18-64,PAYMENTS TO CLIENTS (DIRECT PAYMENTS),2102691805
07.07.2017,ADULT SOCIAL CARE,FRESH IDEAS & SOLUTIONS SERVICES CIC,"1,464.32",LD LTS 18-64,PAYMENTS TO CLIENTS (DIRECT PAYMENTS),2102691178
07.07.2017,ADULT SOCIAL CARE,FRESH IDEAS & SOLUTIONS SERVICES CIC,"1,613.60",LD LTS 18-64,PAYMENTS TO CLIENTS (DIRECT PAYMENTS),2102691706
07.07.2017,ADULT SOCIAL CARE,FRESH IDEAS & SOLUTIONS SERVICES CIC,"2,048.68",LD LTS 18-64,PAYMENTS TO CLIENTS (DIRECT PAYMENTS),2102691590
07.07.2017,ADULT SOCIAL CARE,REDACTED PERSONAL DATA,"1,672.00",LD LTS 18-64,PAYMENTS TO CLIENTS (DIRECT PAYMENTS),2102691301
07.07.2017,ADULT SOCIAL CARE,REDACTED PERSONAL DATA,"3,923.12",LD LTS 18-64,PAYMENTS TO CLIENTS (DIRECT PAYMENTS),2102691025
07.07.2017,ADULT SOCIAL CARE,REDACTED PERSONAL DATA,"1,483.00",LD LTS 18-64,PAYMENTS TO CLIENTS (DIRECT PAYMENTS),2102691987
07.07.2017,ADULT SOCIAL CARE,REDACTED PERSONAL DATA,"5,362.72",LD LTS 18-64,PAYMENTS TO CLIENTS (DIRECT PAYMENTS),2102691525
07.07.2017,ADULT SOCIAL CARE,REDACTED PERSONAL DATA,"4,348.00",LD LTS 18-64,PAYMENTS TO CLIENTS (DIRECT PAYMENTS),2102691212
07.07.2017,ADULT SOCIAL CARE,REDACTED PERSONAL DATA,"1,545.48",LD LTS 18-64,PAYMENTS TO CLIENTS (DIRECT PAYMENTS),2102692012
07.07.2017,ADULT SOCIAL CARE,REDACTED PERSONAL DATA,"3,118.08",LD LTS 18-64,PAYMENTS TO CLIENTS (DIRECT PAYMENTS),2102691936
07.07.2017,ADULT SOCIAL CARE,REDACTED PERSONAL DATA,"8,484.60",LD LTS 18-64,PAYMENTS TO CLIENTS (DIRECT PAYMENTS),2102690994
07.07.2017,ADULT SOCIAL CARE,REDACTED PERSONAL DATA,288.8,LD LTS 18-64,PAYMENTS TO CLIENTS (DIRECT PAYMENTS),2102690828
07.07.2017,ADULT SOCIAL CARE,REDACTED PERSONAL DATA,"3,096.96",LD LTS 18-64,PAYMENTS TO CLIENTS (DIRECT PAYMENTS),2102691291
07.07.2017,ADULT SOCIAL CARE,REDACTED PERSONAL DATA,"3,864.64",LD LTS 18-64,PAYMENTS TO CLIENTS (DIRECT PAYMENTS),2102691989
07.07.2017,ADULT SOCIAL CARE,REDACTED PERSONAL DATA,"-1,886.80",LD LTS 18-64,PAYMENTS TO CLIENTS (DIRECT PAYMENTS),2102607562
07.07.2017,ADULT SOCIAL CARE,REDACTED PERSONAL DATA,"8,910.24",LD LTS 18-64,PAYMENTS TO CLIENTS (DIRECT PAYMENTS),2102691930
07.07.2017,ADULT SOCIAL CARE,REDACTED PERSONAL DATA,300,LD LTS 18-64,PAYMENTS TO CLIENTS (DIRECT PAYMENTS),2102691907
07.07.2017,ADULT SOCIAL CARE,REDACTED PERSONAL DATA,"2,317.60",LD LTS 18-64,PAYMENTS TO CLIENTS (DIRECT PAYMENTS),2102690849
07.07.2017,ADULT SOCIAL CARE,REDACTED PERSONAL DATA,"1,454.08",LD LTS 18-64,PAYMENTS TO CLIENTS (DIRECT PAYMENTS),2102690938
07.07.2017,ADULT SOCIAL CARE,REDACTED PERSONAL DATA,522.6,LD LTS 18-64,PAYMENTS TO CLIENTS (DIRECT PAYMENTS),2102691835
07.07.2017,ADULT SOCIAL CARE,REDACTED PERSONAL DATA,"1,025.20",LD LTS 18-64,PAYMENTS TO CLIENTS (DIRECT PAYMENTS),2102691973
07.07.2017,ADULT SOCIAL CARE,REDACTED PERSONAL DATA,300,LD LTS 18-64,PAYMENTS TO CLIENTS (DIRECT PAYMENTS),2102691354
07.07.2017,ADULT SOCIAL CARE,REDACTED PERSONAL DATA,"1,112.40",LD LTS 18-64,PAYMENTS TO CLIENTS (DIRECT PAYMENTS),2102691921
07.07.2017,ADULT SOCIAL CARE,REDACTED PERSONAL DATA,738,LD LTS 18-64,PAYMENTS TO CLIENTS (DIRECT PAYMENTS),2102691627
07.07.2017,ADULT SOCIAL CARE,REDACTED PERSONAL DATA,269.6,LD LTS 18-64,PAYMENTS TO CLIENTS (DIRECT PAYMENTS),2102691934
07.07.2017,ADULT SOCIAL CARE,REDACTED PERSONAL DATA,"1,036.24",LD LTS 18-64,PAYMENTS TO CLIENTS (DIRECT PAYMENTS),2102692006
07.07.2017,ADULT SOCIAL CARE,REDACTED PERSONAL DATA,"1,456.00",LD LTS 18-64,PAYMENTS TO CLIENTS (DIRECT PAYMENTS),2102691884
07.07.2017,ADULT SOCIAL CARE,REDACTED PERSONAL DATA,"1,122.64",LD LTS 18-64,PAYMENTS TO CLIENTS (DIRECT PAYMENTS),2102691023
07.07.2017,ADULT SOCIAL CARE,REDACTED PERSONAL DATA,480,LD LTS 18-64,PAYMENTS TO CLIENTS (DIRECT PAYMENTS),2102691855
07.07.2017,ADULT SOCIAL CARE,REDACTED PERSONAL DATA,"1,443.00",LD LTS 18-64,PAYMENTS TO CLIENTS (DIRECT PAYMENTS),2102691625
07.07.2017,ADULT SOCIAL CARE,REDACTED PERSONAL DATA,280,LD LTS 18-64,PAYMENTS TO CLIENTS (DIRECT PAYMENTS),2102691943
07.07.2017,ADULT SOCIAL CARE,REDACTED PERSONAL DATA,420,LD LTS 18-64,PAYMENTS TO CLIENTS (DIRECT PAYMENTS),2102691865
07.07.2017,ADULT SOCIAL CARE,REDACTED PERSONAL DATA,"2,116.00",LD LTS 18-64,PAYMENTS TO CLIENTS (DIRECT PAYMENTS),2102691912
07.07.2017,ADULT SOCIAL CARE,REDACTED PERSONAL DATA,"2,412.00",LD LTS 18-64,PAYMENTS TO CLIENTS (DIRECT PAYMENTS),2102691982
07.07.2017,ADULT SOCIAL CARE,REDACTED PERSONAL DATA,"1,200.00",LD LTS 18-64,PAYMENTS TO CLIENTS (DIRECT PAYMENTS),2102690914
07.07.2017,ADULT SOCIAL CARE,REDACTED PERSONAL DATA,"1,532.68",LD LTS 18-64,PAYMENTS TO CLIENTS (DIRECT PAYMENTS),2102691591
07.07.2017,ADULT SOCIAL CARE,REDACTED PERSONAL DATA,"1,532.92",LD LTS 18-64,PAYMENTS TO CLIENTS (DIRECT PAYMENTS),2102691849
07.07.2017,ADULT SOCIAL CARE,REDACTED PERSONAL DATA,"5,280.88",LD LTS 18-64,PAYMENTS TO CLIENTS (DIRECT PAYMENTS),2102691937
07.07.2017,ADULT SOCIAL CARE,REDACTED PERSONAL DATA,"3,066.48",LD LTS 18-64,PAYMENTS TO CLIENTS (DIRECT PAYMENTS),2102691985
07.07.2017,ADULT SOCIAL CARE,REDACTED PERSONAL DATA,"1,790.40",LD LTS 18-64,PAYMENTS TO CLIENTS (DIRECT PAYMENTS),2102691536
07.07.2017,ADULT SOCIAL CARE,REDACTED PERSONAL DATA,875,LD LTS 18-64,PAYMENTS TO CLIENTS (DIRECT PAYMENTS),2102691972
07.07.2017,ADULT SOCIAL CARE,REDACTED PERSONAL DATA,616,LD LTS 18-64,PAYMENTS TO CLIENTS (DIRECT PAYMENTS),2102691832
07.07.2017,ADULT SOCIAL CARE,REDACTED PERSONAL DATA,409.08,LD LTS 18-64,PAYMENTS TO CLIENTS (DIRECT PAYMENTS),2102691967
07.07.2017,ADULT SOCIAL CARE,REDACTED PERSONAL DATA,"2,344.00",LD LTS 18-64,PAYMENTS TO CLIENTS (DIRECT PAYMENTS),2102691952
07.07.2017,ADULT SOCIAL CARE,REDACTED PERSONAL DATA,331.08,LD LTS 18-64,PAYMENTS TO CLIENTS (DIRECT PAYMENTS),2102691965
07.07.2017,ADULT SOCIAL CARE,REDACTED PERSONAL DATA,"1,278.32",LD LTS 18-64,PAYMENTS TO CLIENTS (DIRECT PAYMENTS),2102691754
07.07.2017,ADULT SOCIAL CARE,REDACTED PERSONAL DATA,"2,660.20",LD LTS 18-64,PAYMENTS TO CLIENTS (DIRECT PAYMENTS),2102691946
07.07.2017,ADULT SOCIAL CARE,REDACTED PERSONAL DATA,"1,338.04",LD LTS 18-64,PAYMENTS TO CLIENTS (DIRECT PAYMENTS),2102691355
07.07.2017,ADULT SOCIAL CARE,REDACTED PERSONAL DATA,"1,293.44",LD LTS 18-64,PAYMENTS TO CLIENTS (DIRECT PAYMENTS),2102691844
07.07.2017,ADULT SOCIAL CARE,REDACTED PERSONAL DATA,"1,197.96",LD LTS 18-64,PAYMENTS TO CLIENTS (DIRECT PAYMENTS),2102691963
07.07.2017,ADULT SOCIAL CARE,REDACTED PERSONAL DATA,"13,198.16",LD LTS 18-64,PAYMENTS TO CLIENTS (DIRECT PAYMENTS),2102691235
07.07.2017,ADULT SOCIAL CARE,REDACTED PERSONAL DATA,"3,162.12",LD LTS 18-64,PAYMENTS TO CLIENTS (DIRECT PAYMENTS),2102691015
07.07.2017,ADULT SOCIAL CARE,REDACTED PERSONAL DATA,"12,580.00",LD LTS 18-64,PAYMENTS TO CLIENTS (DIRECT PAYMENTS),2102691860
07.07.2017,ADULT SOCIAL CARE,REDACTED PERSONAL DATA,"1,019.44",LD LTS 18-64,PAYMENTS TO CLIENTS (DIRECT PAYMENTS),2102691889
07.07.2017,ADULT SOCIAL CARE,REDACTED PERSONAL DATA,"1,800.00",LD LTS 18-64,PAYMENTS TO CLIENTS (DIRECT PAYMENTS),2102691499
07.07.2017,ADULT SOCIAL CARE,REDACTED PERSONAL DATA,"1,811.76",LD LTS 18-64,PAYMENTS TO CLIENTS (DIRECT PAYMENTS),2102691780
07.07.2017,ADULT SOCIAL CARE,REDACTED PERSONAL DATA,"2,736.00",LD LTS 18-64,PAYMENTS TO CLIENTS (DIRECT PAYMENTS),2102690940
07.07.2017,ADULT SOCIAL CARE,REDACTED PERSONAL DATA,314.96,LD LTS 18-64,PAYMENTS TO CLIENTS (DIRECT PAYMENTS),2102691279
07.07.2017,ADULT SOCIAL CARE,REDACTED PERSONAL DATA,484.32,LD LTS 18-64,PAYMENTS TO CLIENTS (DIRECT PAYMENTS),2102691748
07.07.2017,ADULT SOCIAL CARE,CHOICE SUPPORT,428.48,LD LTS 18-64,SUPPORTED LIVING,2102690925
07.07.2017,ADULT SOCIAL CARE,CHOICE SUPPORT,464.8,LD LTS 18-64,SUPPORTED LIVING,2102691856
07.07.2017,ADULT SOCIAL CARE,CHOICE SUPPORT,480,LD LTS 18-64,SUPPORTED LIVING,2102690924
07.07.2017,ADULT SOCIAL CARE,CHOICE SUPPORT,493.92,LD LTS 18-64,SUPPORTED LIVING,2102691393
07.07.2017,ADULT SOCIAL CARE,CHOICE SUPPORT,564.48,LD LTS 18-64,SUPPORTED LIVING,2102691175
07.07.2017,ADULT SOCIAL CARE,CHOICE SUPPORT,592.44,LD LTS 18-64,SUPPORTED LIVING,2102691743
07.07.2017,ADULT SOCIAL CARE,CHOICE SUPPORT,660.08,LD LTS 18-64,SUPPORTED LIVING,2102690845
07.07.2017,ADULT SOCIAL CARE,CHOICE SUPPORT,705.6,LD LTS 18-64,SUPPORTED LIVING,2102691807
07.07.2017,ADULT SOCIAL CARE,CHOICE SUPPORT,733.48,LD LTS 18-64,SUPPORTED LIVING,2102691769
07.07.2017,ADULT SOCIAL CARE,CHOICE SUPPORT,"1,161.64",LD LTS 18-64,SUPPORTED LIVING,2102691366
07.07.2017,ADULT SOCIAL CARE,CHOICE SUPPORT,"1,579.84",LD LTS 18-64,SUPPORTED LIVING,2102691144
07.07.2017,ADULT SOCIAL CARE,CHOICE SUPPORT,"1,737.60",LD LTS 18-64,SUPPORTED LIVING,2102691673
07.07.2017,ADULT SOCIAL CARE,CHOICE SUPPORT,"1,869.28",LD LTS 18-64,SUPPORTED LIVING,2102690923
07.07.2017,ADULT SOCIAL CARE,CHOICE SUPPORT,"1,908.96",LD LTS 18-64,SUPPORTED LIVING,2102691548
07.07.2017,ADULT SOCIAL CARE,CHOICE SUPPORT,"1,976.00",LD LTS 18-64,SUPPORTED LIVING,2102691091
07.07.2017,ADULT SOCIAL CARE,CHOICE SUPPORT,"1,976.00",LD LTS 18-64,SUPPORTED LIVING,2102691323
07.07.2017,ADULT SOCIAL CARE,CHOICE SUPPORT,"2,111.28",LD LTS 18-64,SUPPORTED LIVING,2102690945
07.07.2017,ADULT SOCIAL CARE,CHOICE SUPPORT,"2,696.00",LD LTS 18-64,SUPPORTED LIVING,2102690865
07.07.2017,ADULT SOCIAL CARE,CHOICE SUPPORT,"2,770.28",LD LTS 18-64,SUPPORTED LIVING,2102691703
07.07.2017,ADULT SOCIAL CARE,CHOICE SUPPORT,"2,798.68",LD LTS 18-64,SUPPORTED LIVING,2102691755
07.07.2017,ADULT SOCIAL CARE,CHOICE SUPPORT,"2,916.00",LD LTS 18-64,SUPPORTED LIVING,2102691824
07.07.2017,ADULT SOCIAL CARE,CHOICE SUPPORT,"2,971.84",LD LTS 18-64,SUPPORTED LIVING,2102691546
07.07.2017,ADULT SOCIAL CARE,CHOICE SUPPORT,"3,074.36",LD LTS 18-64,SUPPORTED LIVING,2102691584
07.07.2017,ADULT SOCIAL CARE,CHOICE SUPPORT,"3,331.80",LD LTS 18-64,SUPPORTED LIVING,2102691419
07.07.2017,ADULT SOCIAL CARE,CHOICE SUPPORT,"3,354.56",LD LTS 18-64,SUPPORTED LIVING,2102691420
07.07.2017,ADULT SOCIAL CARE,CHOICE SUPPORT,"3,436.64",LD LTS 18-64,SUPPORTED LIVING,2102691940
07.07.2017,ADULT SOCIAL CARE,CHOICE SUPPORT,"3,636.00",LD LTS 18-64,SUPPORTED LIVING,2102691712
07.07.2017,ADULT SOCIAL CARE,CHOICE SUPPORT,"3,690.24",LD LTS 18-64,SUPPORTED LIVING,2102690986
07.07.2017,ADULT SOCIAL CARE,CHOICE SUPPORT,"4,072.96",LD LTS 18-64,SUPPORTED LIVING,2102691978
07.07.2017,ADULT SOCIAL CARE,CHOICE SUPPORT,"4,101.32",LD LTS 18-64,SUPPORTED LIVING,2102691981
07.07.2017,ADULT SOCIAL CARE,CHOICE SUPPORT,"4,110.32",LD LTS 18-64,SUPPORTED LIVING,2102691815
07.07.2017,ADULT SOCIAL CARE,CHOICE SUPPORT,"4,179.84",LD LTS 18-64,SUPPORTED LIVING,2102691237
07.07.2017,ADULT SOCIAL CARE,CHOICE SUPPORT,"4,204.00",LD LTS 18-64,SUPPORTED LIVING,2102690851
07.07.2017,ADULT SOCIAL CARE,CHOICE SUPPORT,"4,252.00",LD LTS 18-64,SUPPORTED LIVING,2102690985
07.07.2017,ADULT SOCIAL CARE,CHOICE SUPPORT,"4,374.76",LD LTS 18-64,SUPPORTED LIVING,2102690843
07.07.2017,ADULT SOCIAL CARE,CHOICE SUPPORT,"4,386.60",LD LTS 18-64,SUPPORTED LIVING,2102691962
07.07.2017,ADULT SOCIAL CARE,CHOICE SUPPORT,"4,452.92",LD LTS 18-64,SUPPORTED LIVING,2102691389
07.07.2017,ADULT SOCIAL CARE,CHOICE SUPPORT,"4,555.80",LD LTS 18-64,SUPPORTED LIVING,2102691809
07.07.2017,ADULT SOCIAL CARE,CHOICE SUPPORT,"4,572.28",LD LTS 18-64,SUPPORTED LIVING,2102690877
07.07.2017,ADULT SOCIAL CARE,CHOICE SUPPORT,"4,634.12",LD LTS 18-64,SUPPORTED LIVING,2102691841
07.07.2017,ADULT SOCIAL CARE,CHOICE SUPPORT,"4,763.08",LD LTS 18-64,SUPPORTED LIVING,2102691071
07.07.2017,ADULT SOCIAL CARE,CHOICE SUPPORT,"4,826.76",LD LTS 18-64,SUPPORTED LIVING,2102691831
07.07.2017,ADULT SOCIAL CARE,CHOICE SUPPORT,"4,870.84",LD LTS 18-64,SUPPORTED LIVING,2102691711
07.07.2017,ADULT SOCIAL CARE,CHOICE SUPPORT,"4,979.36",LD LTS 18-64,SUPPORTED LIVING,2102691325
07.07.2017,ADULT SOCIAL CARE,CHOICE SUPPORT,"5,022.16",LD LTS 18-64,SUPPORTED LIVING,2102691190
07.07.2017,ADULT SOCIAL CARE,CHOICE SUPPORT,"5,211.88",LD LTS 18-64,SUPPORTED LIVING,2102691347
07.07.2017,ADULT SOCIAL CARE,CHOICE SUPPORT,"5,230.68",LD LTS 18-64,SUPPORTED LIVING,2102690926
07.07.2017,ADULT SOCIAL CARE,CHOICE SUPPORT,"5,289.48",LD LTS 18-64,SUPPORTED LIVING,2102691704
07.07.2017,ADULT SOCIAL CARE,CHOICE SUPPORT,"5,584.08",LD LTS 18-64,SUPPORTED LIVING,2102691032
07.07.2017,ADULT SOCIAL CARE,CHOICE SUPPORT,"5,711.68",LD LTS 18-64,SUPPORTED LIVING,2102691046
07.07.2017,ADULT SOCIAL CARE,CHOICE SUPPORT,"5,871.44",LD LTS 18-64,SUPPORTED LIVING,2102691238
07.07.2017,ADULT SOCIAL CARE,CHOICE SUPPORT,"6,119.04",LD LTS 18-64,SUPPORTED LIVING,2102690982
07.07.2017,ADULT SOCIAL CARE,CHOICE SUPPORT,"6,154.48",LD LTS 18-64,SUPPORTED LIVING,2102691195
07.07.2017,ADULT SOCIAL CARE,CHOICE SUPPORT,"6,379.96",LD LTS 18-64,SUPPORTED LIVING,2102691128
07.07.2017,ADULT SOCIAL CARE,CHOICE SUPPORT,"6,404.48",LD LTS 18-64,SUPPORTED LIVING,2102691041
07.07.2017,ADULT SOCIAL CARE,CHOICE SUPPORT,"6,503.24",LD LTS 18-64,SUPPORTED LIVING,2102691828
07.07.2017,ADULT SOCIAL CARE,CHOICE SUPPORT,"7,674.56",LD LTS 18-64,SUPPORTED LIVING,2102691002
07.07.2017,ADULT SOCIAL CARE,CHOICE SUPPORT,"7,674.56",LD LTS 18-64,SUPPORTED LIVING,2102691733
07.07.2017,ADULT SOCIAL CARE,CHOICE SUPPORT,"8,080.68",LD LTS 18-64,SUPPORTED LIVING,2102691064
07.07.2017,ADULT SOCIAL CARE,HF TRUST LTD,"4,073.80",LD LTS 18-64,SUPPORTED LIVING,2102691531
07.07.2017,ADULT SOCIAL CARE,THE REGARD PARTNERSHIP,"2,920.96",LD LTS 18-64,SUPPORTED LIVING,2102691100
07.07.2017,ADULT SOCIAL CARE,THE REGARD PARTNERSHIP,"4,400.00",LD LTS 18-64,SUPPORTED LIVING,2102691447
07.07.2017,ADULT SOCIAL CARE,THE REGARD PARTNERSHIP,"7,794.64",LD LTS 18-64,SUPPORTED LIVING,2102691081
07.07.2017,ADULT SOCIAL CARE,PLUS SERVICES,"3,200.00",LD LTS 18-64,SUPPORTED LIVING,2102691779
07.07.2017,ADULT SOCIAL CARE,PLUS SERVICES,"5,420.00",LD LTS 18-64,SUPPORTED LIVING,2102691739
07.07.2017,ADULT SOCIAL CARE,PLUS SERVICES,"5,495.20",LD LTS 18-64,SUPPORTED LIVING,2102691114
07.07.2017,ADULT SOCIAL CARE,PLUS SERVICES,"7,042.08",LD LTS 18-64,SUPPORTED LIVING,2102691267
07.07.2017,ADULT SOCIAL CARE,THREE C'S SUPPORT,320,LD LTS 18-64,SUPPORTED LIVING,2102690973
07.07.2017,ADULT SOCIAL CARE,THREE C'S SUPPORT,526,LD LTS 18-64,SUPPORTED LIVING,2102691047
07.07.2017,ADULT SOCIAL CARE,CARE MANAGEMENT GROUP,"4,360.00",LD LTS 18-64,SUPPORTED LIVING,2102691497
07.07.2017,ADULT SOCIAL CARE,CARE MANAGEMENT GROUP,"4,908.00",LD LTS 18-64,SUPPORTED LIVING,2102691200
07.07.2017,ADULT SOCIAL CARE,BRANDON TRUST,"2,639.32",LD LTS 18-64,SUPPORTED LIVING,2102691576
07.07.2017,ADULT SOCIAL CARE,BRANDON TRUST,"2,672.88",LD LTS 18-64,SUPPORTED LIVING,2102691118
07.07.2017,ADULT SOCIAL CARE,BRANDON TRUST,"2,773.56",LD LTS 18-64,SUPPORTED LIVING,2102691665
07.07.2017,ADULT SOCIAL CARE,BRANDON TRUST,"3,004.08",LD LTS 18-64,SUPPORTED LIVING,2102692000
07.07.2017,ADULT SOCIAL CARE,BRANDON TRUST,"3,125.92",LD LTS 18-64,SUPPORTED LIVING,2102691407
07.07.2017,ADULT SOCIAL CARE,BRANDON TRUST,"3,356.08",LD LTS 18-64,SUPPORTED LIVING,2102691421
07.07.2017,ADULT SOCIAL CARE,BRANDON TRUST,"4,015.80",LD LTS 18-64,SUPPORTED LIVING,2102690921
07.07.2017,ADULT SOCIAL CARE,BRANDON TRUST,"4,162.12",LD LTS 18-64,SUPPORTED LIVING,2102691391
07.07.2017,ADULT SOCIAL CARE,BRANDON TRUST,"4,194.64",LD LTS 18-64,SUPPORTED LIVING,2102690899
07.07.2017,ADULT SOCIAL CARE,BRANDON TRUST,"4,227.16",LD LTS 18-64,SUPPORTED LIVING,2102691698
07.07.2017,ADULT SOCIAL CARE,BRANDON TRUST,"4,258.84",LD LTS 18-64,SUPPORTED LIVING,2102691526
07.07.2017,ADULT SOCIAL CARE,BRANDON TRUST,"4,308.24",LD LTS 18-64,SUPPORTED LIVING,2102691482
07.07.2017,ADULT SOCIAL CARE,BRANDON TRUST,"6,652.52",LD LTS 18-64,SUPPORTED LIVING,2102691552
07.07.2017,ADULT SOCIAL CARE,BRANDON TRUST,"8,669.24",LD LTS 18-64,SUPPORTED LIVING,2102691147
07.07.2017,ADULT SOCIAL CARE,CHILDREN OF COLOUR,"4,000.00",LD LTS 18-64,SUPPORTED LIVING,2102691927
07.07.2017,ADULT SOCIAL CARE,PALM CARE LTD,"6,900.00",LD LTS 18-64,SUPPORTED LIVING,2102691969
07.07.2017,ADULT SOCIAL CARE,AURORA OPTIONS,707.92,LD LTS 18-64,SUPPORTED LIVING,2102690947
07.07.2017,ADULT SOCIAL CARE,AURORA OPTIONS,"2,855.16",LD LTS 18-64,SUPPORTED LIVING,2102691021
07.07.2017,ADULT SOCIAL CARE,AURORA OPTIONS,"2,855.16",LD LTS 18-64,SUPPORTED LIVING,2102691253
07.07.2017,ADULT SOCIAL CARE,AURORA OPTIONS,"2,855.16",LD LTS 18-64,SUPPORTED LIVING,2102691416
07.07.2017,ADULT SOCIAL CARE,AURORA OPTIONS,"2,855.16",LD LTS 18-64,SUPPORTED LIVING,2102691470
07.07.2017,ADULT SOCIAL CARE,AURORA OPTIONS,"2,855.16",LD LTS 18-64,SUPPORTED LIVING,2102691643
07.07.2017,ADULT SOCIAL CARE,RIGHT SUPPORT MANAGEMENT LTD,"6,489.56",LD LTS 18-64,SUPPORTED LIVING,2102691492
07.07.2017,ADULT SOCIAL CARE,RIGHT SUPPORT MANAGEMENT LTD,"8,361.00",LD LTS 18-64,SUPPORTED LIVING,2102691914
07.07.2017,ADULT SOCIAL CARE,SAFFRONLAND HOMES,"6,986.00",LD LTS 18-64,SUPPORTED LIVING,2102691372
07.07.2017,ADULT SOCIAL CARE,SAFFRONLAND HOMES,"8,008.00",LD LTS 18-64,SUPPORTED LIVING,2102690960
07.07.2017,ADULT SOCIAL CARE,ZETETICK HOUSING,904.4,LD LTS 18-64,SUPPORTED LIVING,2102691053
07.07.2017,ADULT SOCIAL CARE,ZETETICK HOUSING,904.4,LD LTS 18-64,SUPPORTED LIVING,2102691186
07.07.2017,ADULT SOCIAL CARE,ZETETICK HOUSING,904.4,LD LTS 18-64,SUPPORTED LIVING,2102691214
07.07.2017,ADULT SOCIAL CARE,ZETETICK HOUSING,904.4,LD LTS 18-64,SUPPORTED LIVING,2102691348
07.07.2017,ADULT SOCIAL CARE,FRONTIER SUPPORT SERVICES LTD,"3,584.60",LD LTS 18-64,SUPPORTED LIVING,2102691556
07.07.2017,ADULT SOCIAL CARE,FRONTIER SUPPORT SERVICES LTD,"4,155.60",LD LTS 18-64,SUPPORTED LIVING,2102691183
07.07.2017,ADULT SOCIAL CARE,FRONTIER SUPPORT SERVICES LTD,"4,772.00",LD LTS 18-64,SUPPORTED LIVING,2102691433
07.07.2017,ADULT SOCIAL CARE,FRONTIER SUPPORT SERVICES LTD,"7,893.68",LD LTS 18-64,SUPPORTED LIVING,2102690830
07.07.2017,ADULT SOCIAL CARE,LIFEWAYS COMMUNITY CARE,"8,149.96",LD LTS 18-64,SUPPORTED LIVING,2102692007
07.07.2017,ADULT SOCIAL CARE,L'ARCHE LONDON COMMUNITY,"4,206.00",LD LTS 18-64,SUPPORTED LIVING,2102690981
07.07.2017,ADULT SOCIAL CARE,HEALTH PERSONNEL LTD,"3,440.00",LD LTS 18-64,SUPPORTED LIVING,2102691900
07.07.2017,ADULT SOCIAL CARE,ELYSIUM SUPPORTED LIVING,"6,865.36",LD LTS 18-64,SUPPORTED LIVING,2102691868
07.07.2017,ADULT SOCIAL CARE,REDACTED PERSONAL DATA,"1,356.44",LD LTS 18-64,SUPPORTED LIVING,2102691913
07.07.2017,ADULT SOCIAL CARE,REDACTED PERSONAL DATA,"1,032.16",LD LTS 18-64,SUPPORTED LIVING,2102691939
07.07.2017,ADULT SOCIAL CARE,REDACTED PERSONAL DATA,"1,136.44",LD LTS 18-64,SUPPORTED LIVING,2102690905
07.07.2017,ADULT SOCIAL CARE,REDACTED PERSONAL DATA,281.28,LD LTS 18-64,SUPPORTED LIVING,2102690908
07.07.2017,ADULT SOCIAL CARE,REDACTED PERSONAL DATA,"1,895.44",LD LTS 18-64,SUPPORTED LIVING,2102691351
07.07.2017,ADULT SOCIAL CARE,REDACTED PERSONAL DATA,"1,930.60",LD LTS 18-64,SUPPORTED LIVING,2102691727
07.07.2017,ADULT SOCIAL CARE,REDACTED PERSONAL DATA,"2,314.20",LD LTS 18-64,SUPPORTED LIVING,2102691682
07.07.2017,ADULT SOCIAL CARE,REDACTED PERSONAL DATA,"2,460.92",LD LTS 18-64,SUPPORTED LIVING,2102690962
07.07.2017,ADULT SOCIAL CARE,REDACTED PERSONAL DATA,"1,640.00",LD LTS 18-64,SUPPORTED LIVING,2102691984
07.07.2017,ADULT SOCIAL CARE,THE CAMDEN SOCIETY (SOCIAL CARE),897.6,LD LTS 65+,DAYCARE,2102691383
07.07.2017,ADULT SOCIAL CARE,THE CAMDEN SOCIETY (SOCIAL CARE),"1,137.60",LD LTS 65+,DAYCARE,2102691771
07.07.2017,ADULT SOCIAL CARE,UNITED RESPONSE,"1,450.00",LD LTS 65+,SUPPORTED LIVING,2102691953
07.07.2017,ADULT SOCIAL CARE,CHOICE SUPPORT,352.8,LD LTS 65+,SUPPORTED LIVING,2102690910
07.07.2017,ADULT SOCIAL CARE,CHOICE SUPPORT,776.16,LD LTS 65+,SUPPORTED LIVING,2102690987
07.07.2017,ADULT SOCIAL CARE,CHOICE SUPPORT,"1,448.16",LD LTS 65+,SUPPORTED LIVING,2102691096
07.07.2017,ADULT SOCIAL CARE,CHOICE SUPPORT,"1,777.32",LD LTS 65+,SUPPORTED LIVING,2102691077
07.07.2017,ADULT SOCIAL CARE,CHOICE SUPPORT,"2,276.40",LD LTS 65+,SUPPORTED LIVING,2102691750
07.07.2017,ADULT SOCIAL CARE,CHOICE SUPPORT,"2,665.08",LD LTS 65+,SUPPORTED LIVING,2102691472
07.07.2017,ADULT SOCIAL CARE,CHOICE SUPPORT,"2,966.48",LD LTS 65+,SUPPORTED LIVING,2102691074
07.07.2017,ADULT SOCIAL CARE,CHOICE SUPPORT,"3,047.36",LD LTS 65+,SUPPORTED LIVING,2102691580
07.07.2017,ADULT SOCIAL CARE,CHOICE SUPPORT,"3,163.96",LD LTS 65+,SUPPORTED LIVING,2102690965
07.07.2017,ADULT SOCIAL CARE,CHOICE SUPPORT,"3,951.48",LD LTS 65+,SUPPORTED LIVING,2102691708
07.07.2017,ADULT SOCIAL CARE,CHOICE SUPPORT,"4,151.36",LD LTS 65+,SUPPORTED LIVING,2102690839
07.07.2017,ADULT SOCIAL CARE,CHOICE SUPPORT,"4,151.36",LD LTS 65+,SUPPORTED LIVING,2102691099
07.07.2017,ADULT SOCIAL CARE,CHOICE SUPPORT,"4,496.00",LD LTS 65+,SUPPORTED LIVING,2102690964
07.07.2017,ADULT SOCIAL CARE,CHOICE SUPPORT,"5,907.80",LD LTS 65+,SUPPORTED LIVING,2102690974
07.07.2017,ADULT SOCIAL CARE,CHOICE SUPPORT,"7,920.48",LD LTS 65+,SUPPORTED LIVING,2102690913
07.07.2017,ADULT SOCIAL CARE,PLUS SERVICES,"4,857.20",LD LTS 65+,SUPPORTED LIVING,2102690919
07.07.2017,ADULT SOCIAL CARE,PLUS SERVICES,"4,857.20",LD LTS 65+,SUPPORTED LIVING,2102691618
07.07.2017,ADULT SOCIAL CARE,PLUS SERVICES,"6,147.92",LD LTS 65+,SUPPORTED LIVING,2102691112
07.07.2017,ADULT SOCIAL CARE,OUTLOOK CARE LTD,"2,212.00",LD LTS 65+,SUPPORTED LIVING,2102691915
07.07.2017,ADULT SOCIAL CARE,BLACK ELDER GROUP SWK,264,MEM LTS 18-64,DAYCARE,2102691724
07.07.2017,ADULT SOCIAL CARE,PEOPLES CARE LTD,819,MEM LTS 18-64,HOMECARE - C&V,2102691793
07.07.2017,ADULT SOCIAL CARE,PEOPLE PLUS,389.32,MEM LTS 18-64,PAYMENTS TO CLIENTS (DIRECT PAYMENTS),2102691716
07.07.2017,ADULT SOCIAL CARE,PEOPLE PLUS,608.76,MEM LTS 18-64,PAYMENTS TO CLIENTS (DIRECT PAYMENTS),2102690980
07.07.2017,ADULT SOCIAL CARE,PEOPLE PLUS,619.2,MEM LTS 18-64,PAYMENTS TO CLIENTS (DIRECT PAYMENTS),2102691426
07.07.2017,ADULT SOCIAL CARE,REDACTED PERSONAL DATA,"1,096.36",MEM LTS 18-64,PAYMENTS TO CLIENTS (DIRECT PAYMENTS),2102690950
07.07.2017,ADULT SOCIAL CARE,THE REGARD PARTNERSHIP,"3,102.20",MEM LTS 18-64,SUPPORTED LIVING,2102691484
07.07.2017,ADULT SOCIAL CARE,THE REGARD PARTNERSHIP,"5,825.20",MEM LTS 18-64,SUPPORTED LIVING,2102691705
07.07.2017,ADULT SOCIAL CARE,REDACTED PERSONAL DATA,256,MEM LTS 18-64,SUPPORTED LIVING,2102691893
07.07.2017,ADULT SOCIAL CARE,AGE UK  LEWISHAM & SOUTHWARK,"-1,242.86",MEM LTS 65+,DAYCARE,2102691803
07.07.2017,ADULT SOCIAL CARE,AGE UK  LEWISHAM & SOUTHWARK,360,MEM LTS 65+,DAYCARE,2102691486
07.07.2017,ADULT SOCIAL CARE,AGE UK  LEWISHAM & SOUTHWARK,360,MEM LTS 65+,DAYCARE,2102691528
07.07.2017,ADULT SOCIAL CARE,AGE UK  LEWISHAM & SOUTHWARK,540,MEM LTS 65+,DAYCARE,2102691462
07.07.2017,ADULT SOCIAL CARE,AGE UK  LEWISHAM & SOUTHWARK,540,MEM LTS 65+,DAYCARE,2102691578
07.07.2017,ADULT SOCIAL CARE,AGE UK  LEWISHAM & SOUTHWARK,900,MEM LTS 65+,DAYCARE,2102690857
07.07.2017,ADULT SOCIAL CARE,AGE UK  LEWISHAM & SOUTHWARK,900,MEM LTS 65+,DAYCARE,2102691636
07.07.2017,ADULT SOCIAL CARE,REDACTED PERSONAL DATA,-292.64,MEM LTS 65+,DISCRETIONARY FLEXIBLE FEES & INCOME,2102691010
07.07.2017,ADULT SOCIAL CARE,CARE DIRECT UK LTD,"1,417.32",MEM LTS 65+,HOMECARE - C&V,2102691403
07.07.2017,ADULT SOCIAL CARE,FRESH IDEAS & SOLUTIONS SERVICES CIC,860.44,MEM LTS 65+,HOMECARE - C&V,2102691246
07.07.2017,ADULT SOCIAL CARE,REDACTED PERSONAL DATA,338.16,MEM LTS 65+,HOMECARE - C&V,2102691681
07.07.2017,ADULT SOCIAL CARE,CARE DIRECT UK LTD,565.39,MEM LTS 65+,HOMECARE - SPOT,2102690661
07.07.2017,ADULT SOCIAL CARE,METRO HOMECARE LTD,441.28,MEM LTS 65+,HOMECARE - SPOT,2102690812
07.07.2017,ADULT SOCIAL CARE,METRO HOMECARE LTD,"1,130.78",MEM LTS 65+,HOMECARE - SPOT,2102690772
07.07.2017,ADULT SOCIAL CARE,REDACTED PERSONAL DATA,"1,118.52",MEM LTS 65+,PAYMENTS TO CLIENTS (DIRECT PAYMENTS),2102691236
07.07.2017,ADULT SOCIAL CARE,REDACTED PERSONAL DATA,"2,218.08",MEM LTS 65+,PAYMENTS TO CLIENTS (DIRECT PAYMENTS),2102691277
07.07.2017,ADULT SOCIAL CARE,REDACTED PERSONAL DATA,877.8,MEM LTS 65+,PAYMENTS TO CLIENTS (DIRECT PAYMENTS),2102690907
07.07.2017,ADULT SOCIAL CARE,REDACTED PERSONAL DATA,-532.29,MEM LTS 65+,PAYMENTS TO CLIENTS (DIRECT PAYMENTS),2102691573
07.07.2017,ADULT SOCIAL CARE,REDACTED PERSONAL DATA,803.11,MEM LTS 65+,PAYMENTS TO CLIENTS (DIRECT PAYMENTS),2102691829
07.07.2017,ADULT SOCIAL CARE,BEDE HOUSE ASSOCIATION,280,MH LTS 18-64,DAYCARE,2102690932
07.07.2017,ADULT SOCIAL CARE,COOLTAN ARTS,369.48,MH LTS 18-64,DAYCARE,2102691732
07.07.2017,ADULT SOCIAL CARE,COOLTAN ARTS,376,MH LTS 18-64,DAYCARE,2102691672
07.07.2017,ADULT SOCIAL CARE,PALM TREE RECOVERY CLUB,264,MH LTS 18-64,DAYCARE,2102690844
07.07.2017,ADULT SOCIAL CARE,CAPITAL HOMECARE (UK) LTD,423.88,MH LTS 18-64,HOMECARE - C&V,2102691723
07.07.2017,ADULT SOCIAL CARE,FUTURE VISION CARE LTD,421.2,MH LTS 18-64,HOMECARE - C&V,2102691619
07.07.2017,ADULT SOCIAL CARE,WESTMINSTER HOMECARE LTD,279.6,MH LTS 18-64,HOMECARE - C&V,2102691330
07.07.2017,ADULT SOCIAL CARE,CHOICE SUPPORT,320,MH LTS 18-64,HOMECARE - SPOT,2102691710
07.07.2017,ADULT SOCIAL CARE,CHOICE SUPPORT,367.4,MH LTS 18-64,HOMECARE - SPOT,2102691182
07.07.2017,ADULT SOCIAL CARE,CHOICE SUPPORT,440.88,MH LTS 18-64,HOMECARE - SPOT,2102691191
07.07.2017,ADULT SOCIAL CARE,MEDACS HOMECARE,725.4,MH LTS 18-64,HOMECARE - SPOT,2102690988
07.07.2017,ADULT SOCIAL CARE,THREE C'S SUPPORT,256.12,MH LTS 18-64,HOMECARE - SPOT,2102691117
07.07.2017,ADULT SOCIAL CARE,THREE C'S SUPPORT,660,MH LTS 18-64,HOMECARE - SPOT,2102691577
07.07.2017,ADULT SOCIAL CARE,COOLTAN ARTS,412,MH LTS 18-64,HOMECARE - SPOT,2102691717
07.07.2017,ADULT SOCIAL CARE,SWEETTREE HOME CARE SERVICES LTD,492,MH LTS 18-64,HOMECARE - SPOT,2102691885
07.07.2017,ADULT SOCIAL CARE,METRO HOMECARE LTD,"1,061.83",MH LTS 18-64,HOMECARE - SPOT,2102690755
07.07.2017,ADULT SOCIAL CARE,PALM TREE RECOVERY CLUB,399.96,MH LTS 18-64,HOMECARE - SPOT,2102691295
07.07.2017,ADULT SOCIAL CARE,PALM TREE RECOVERY CLUB,399.96,MH LTS 18-64,HOMECARE - SPOT,2102691737
07.07.2017,ADULT SOCIAL CARE,PALM TREE RECOVERY CLUB,492,MH LTS 18-64,HOMECARE - SPOT,2102691632
07.07.2017,ADULT SOCIAL CARE,PALM TREE RECOVERY CLUB,500,MH LTS 18-64,HOMECARE - SPOT,2102690967
07.07.2017,ADULT SOCIAL CARE,SIGNHEALTH,"1,920.00",MH LTS 18-64,HOMECARE - SPOT,2102691409
07.07.2017,ADULT SOCIAL CARE,REDACTED PERSONAL DATA,272,MH LTS 18-64,HOMECARE - SPOT,2102690829
07.07.2017,ADULT SOCIAL CARE,REDACTED PERSONAL DATA,276,MH LTS 18-64,HOMECARE - SPOT,2102691553
07.07.2017,ADULT SOCIAL CARE,REDACTED PERSONAL DATA,302,MH LTS 18-64,HOMECARE - SPOT,2102691610
07.07.2017,ADULT SOCIAL CARE,REDACTED PERSONAL DATA,348,MH LTS 18-64,HOMECARE - SPOT,2102691259
07.07.2017,ADULT SOCIAL CARE,REDACTED PERSONAL DATA,355.6,MH LTS 18-64,HOMECARE - SPOT,2102691406
07.07.2017,ADULT SOCIAL CARE,REDACTED PERSONAL DATA,392,MH LTS 18-64,HOMECARE - SPOT,2102691268
07.07.2017,ADULT SOCIAL CARE,REDACTED PERSONAL DATA,421.2,MH LTS 18-64,HOMECARE - SPOT,2102691164
07.07.2017,ADULT SOCIAL CARE,REDACTED PERSONAL DATA,540,MH LTS 18-64,HOMECARE - SPOT,2102691016
07.07.2017,ADULT SOCIAL CARE,REDACTED PERSONAL DATA,546,MH LTS 18-64,HOMECARE - SPOT,2102691149
07.07.2017,ADULT SOCIAL CARE,REDACTED PERSONAL DATA,588,MH LTS 18-64,HOMECARE - SPOT,2102691518
07.07.2017,ADULT SOCIAL CARE,REDACTED PERSONAL DATA,655.2,MH LTS 18-64,HOMECARE - SPOT,2102690878
07.07.2017,ADULT SOCIAL CARE,PEOPLE PLUS,263.92,MH LTS 18-64,PAYMENTS TO CLIENTS (DIRECT PAYMENTS),2102690871
07.07.2017,ADULT SOCIAL CARE,PEOPLE PLUS,274,MH LTS 18-64,PAYMENTS TO CLIENTS (DIRECT PAYMENTS),2102691067
07.07.2017,ADULT SOCIAL CARE,PEOPLE PLUS,274,MH LTS 18-64,PAYMENTS TO CLIENTS (DIRECT PAYMENTS),2102691624
07.07.2017,ADULT SOCIAL CARE,PEOPLE PLUS,284.8,MH LTS 18-64,PAYMENTS TO CLIENTS (DIRECT PAYMENTS),2102691799
07.07.2017,ADULT SOCIAL CARE,PEOPLE PLUS,310.48,MH LTS 18-64,PAYMENTS TO CLIENTS (DIRECT PAYMENTS),2102691052
07.07.2017,ADULT SOCIAL CARE,PEOPLE PLUS,328.48,MH LTS 18-64,PAYMENTS TO CLIENTS (DIRECT PAYMENTS),2102691800
07.07.2017,ADULT SOCIAL CARE,PEOPLE PLUS,381.84,MH LTS 18-64,PAYMENTS TO CLIENTS (DIRECT PAYMENTS),2102690891
07.07.2017,ADULT SOCIAL CARE,PEOPLE PLUS,427.92,MH LTS 18-64,PAYMENTS TO CLIENTS (DIRECT PAYMENTS),2102691185
07.07.2017,ADULT SOCIAL CARE,PEOPLE PLUS,431.2,MH LTS 18-64,PAYMENTS TO CLIENTS (DIRECT PAYMENTS),2102690906
07.07.2017,ADULT SOCIAL CARE,REDACTED PERSONAL DATA,"1,962.00",MH LTS 18-64,PAYMENTS TO CLIENTS (DIRECT PAYMENTS),2102691150
07.07.2017,ADULT SOCIAL CARE,REDACTED PERSONAL DATA,"1,726.72",MH LTS 18-64,PAYMENTS TO CLIENTS (DIRECT PAYMENTS),2102691379
07.07.2017,ADULT SOCIAL CARE,REDACTED PERSONAL DATA,328,MH LTS 18-64,PAYMENTS TO CLIENTS (DIRECT PAYMENTS),2102691910
07.07.2017,ADULT SOCIAL CARE,REDACTED PERSONAL DATA,720,MH LTS 18-64,PAYMENTS TO CLIENTS (DIRECT PAYMENTS),2102691859
07.07.2017,ADULT SOCIAL CARE,REDACTED PERSONAL DATA,892,MH LTS 18-64,PAYMENTS TO CLIENTS (DIRECT PAYMENTS),2102691944
07.07.2017,ADULT SOCIAL CARE,THREE C'S SUPPORT,256,MH LTS 18-64,SUPPORTED LIVING,2102691598
07.07.2017,ADULT SOCIAL CARE,THREE C'S SUPPORT,492,MH LTS 18-64,SUPPORTED LIVING,2102691676
07.07.2017,ADULT SOCIAL CARE,TOGETHER WORKING FOR WELLBEING,680,MH LTS 18-64,SUPPORTED LIVING,2102691876
07.07.2017,ADULT SOCIAL CARE,AGE CONCERN LEWISHAM & SOUTHWARK,360,MH LTS 65+,DAYCARE,2102691106
07.07.2017,ADULT SOCIAL CARE,AGE CONCERN LEWISHAM & SOUTHWARK,900,MH LTS 65+,DAYCARE,2102691243
07.07.2017,ADULT SOCIAL CARE,BLACK ELDER GROUP SWK,680,MH LTS 65+,DAYCARE,2102691138
07.07.2017,ADULT SOCIAL CARE,MEDACS HOMECARE,392,MH LTS 65+,HOMECARE - C&V,2102690888
07.07.2017,ADULT SOCIAL CARE,FIRST CHOICE SOCIAL CARE & HOUSING,690.32,MH LTS 65+,HOMECARE - C&V,2102691473
07.07.2017,ADULT SOCIAL CARE,ARK HOME HEALTHCARE LTD,351,MH LTS 65+,HOMECARE - C&V,2102691564
07.07.2017,ADULT SOCIAL CARE,METRO HOMECARE LTD,337.86,MH LTS 65+,HOMECARE - C&V,2102690744
07.07.2017,ADULT SOCIAL CARE,REDACTED PERSONAL DATA,327.6,MH LTS 65+,HOMECARE - C&V,2102691647
07.07.2017,ADULT SOCIAL CARE,CARE DIRECT UK LTD,265.46,MH LTS 65+,HOMECARE - SPOT,2102690710
07.07.2017,ADULT SOCIAL CARE,METRO HOMECARE LTD,268.91,MH LTS 65+,HOMECARE - SPOT,2102690742
07.07.2017,ADULT SOCIAL CARE,METRO HOMECARE LTD,448.18,MH LTS 65+,HOMECARE - SPOT,2102690749
07.07.2017,ADULT SOCIAL CARE,WESTMINSTER HOMECARE LTD,894.72,MH LTS 65+,HOMECARE - SPOT,2102690953
07.07.2017,ADULT SOCIAL CARE,REDACTED PERSONAL DATA,494,MH LTS 65+,HOMECARE - SPOT,2102691745
07.07.2017,ADULT SOCIAL CARE,PEOPLE PLUS,283.6,MH LTS 65+,PAYMENTS TO CLIENTS (DIRECT PAYMENTS),2102691003
07.07.2017,ADULT SOCIAL CARE,PEOPLE PLUS,901.36,MH LTS 65+,PAYMENTS TO CLIENTS (DIRECT PAYMENTS),2102691813
07.07.2017,ADULT SOCIAL CARE,PEOPLE PLUS,"1,212.20",MH LTS 65+,PAYMENTS TO CLIENTS (DIRECT PAYMENTS),2102691767
07.07.2017,ADULT SOCIAL CARE,PEOPLE PLUS,"1,248.68",MH LTS 65+,PAYMENTS TO CLIENTS (DIRECT PAYMENTS),2102691328
07.07.2017,ADULT SOCIAL CARE,REDACTED PERSONAL DATA,900,MH LTS 65+,PAYMENTS TO CLIENTS (DIRECT PAYMENTS),2102691999
07.07.2017,ADULT SOCIAL CARE,REDACTED PERSONAL DATA,961.4,MH LTS 65+,PAYMENTS TO CLIENTS (DIRECT PAYMENTS),2102690931
07.07.2017,ADULT SOCIAL CARE,REDACTED PERSONAL DATA,897.8,MH LTS 65+,PAYMENTS TO CLIENTS (DIRECT PAYMENTS),2102691478
07.07.2017,ADULT SOCIAL CARE,SWK DISABLEMENT ASSN,"3,977.12",PERSHEALTH BUDS-CCG,RECOVERABLE COSTS INCL. HEALTH,2102691587
07.07.2017,ADULT SOCIAL CARE,THE CAMDEN SOCIETY (SOCIAL CARE),705.6,PHY LTS 18-64,DAYCARE,2102691634
07.07.2017,ADULT SOCIAL CARE,AGE UK  LEWISHAM & SOUTHWARK,360,PHY LTS 18-64,DAYCARE,2102691139
07.07.2017,ADULT SOCIAL CARE,AGE UK  LEWISHAM & SOUTHWARK,360,PHY LTS 18-64,DAYCARE,2102691583
07.07.2017,ADULT SOCIAL CARE,PEOPLE PLUS,-277.24,PHY LTS 18-64,DISCRETIONARY FLEXIBLE FEES & INCOME,2102691013
07.07.2017,ADULT SOCIAL CARE,GOLDSBOROUGH HOMECARE & NURSING,655.2,PHY LTS 18-64,HOMECARE - C&V,2102691671
07.07.2017,ADULT SOCIAL CARE,GOLDSBOROUGH HOMECARE & NURSING,690.32,PHY LTS 18-64,HOMECARE - C&V,2102691773
07.07.2017,ADULT SOCIAL CARE,NESTOR PRIMECARE SERVICES LTD,"1,146.60",PHY LTS 18-64,HOMECARE - C&V,2102691333
07.07.2017,ADULT SOCIAL CARE,NESTOR PRIMECARE SERVICES LTD,"1,154.80",PHY LTS 18-64,HOMECARE - C&V,2102691757
07.07.2017,ADULT SOCIAL CARE,LONDON CARE LTD,386.81,PHY LTS 18-64,HOMECARE - C&V,2102690737
07.07.2017,ADULT SOCIAL CARE,LONDON CARE LTD,411.5,PHY LTS 18-64,HOMECARE - C&V,2102690736
07.07.2017,ADULT SOCIAL CARE,SWK DISABLEMENT ASSN,648.12,PHY LTS 18-64,HOMECARE - C&V,2102691700
07.07.2017,ADULT SOCIAL CARE,SWK DISABLEMENT ASSN,777.6,PHY LTS 18-64,HOMECARE - C&V,2102691488
07.07.2017,ADULT SOCIAL CARE,SWK DISABLEMENT ASSN,"1,252.04",PHY LTS 18-64,HOMECARE - C&V,2102691694
07.07.2017,ADULT SOCIAL CARE,SWK DISABLEMENT ASSN,"2,062.20",PHY LTS 18-64,HOMECARE - C&V,2102691184
07.07.2017,ADULT SOCIAL CARE,SWK DISABLEMENT ASSN,"2,238.96",PHY LTS 18-64,HOMECARE - C&V,2102691278
07.07.2017,ADULT SOCIAL CARE,SWK DISABLEMENT ASSN,"2,489.36",PHY LTS 18-64,HOMECARE - C&V,2102691199
07.07.2017,ADULT SOCIAL CARE,SWK DISABLEMENT ASSN,"2,975.44",PHY LTS 18-64,HOMECARE - C&V,2102691687
07.07.2017,ADULT SOCIAL CARE,FIRST CHOICE SOCIAL CARE & HOUSING,491.4,PHY LTS 18-64,HOMECARE - C&V,2102691752
07.07.2017,ADULT SOCIAL CARE,CAPITAL HOMECARE (UK) LTD,351,PHY LTS 18-64,HOMECARE - C&V,2102691633
07.07.2017,ADULT SOCIAL CARE,CAPITAL HOMECARE (UK) LTD,491.4,PHY LTS 18-64,HOMECARE - C&V,2102690961
07.07.2017,ADULT SOCIAL CARE,CAPITAL HOMECARE (UK) LTD,"1,170.00",PHY LTS 18-64,HOMECARE - C&V,2102690879
07.07.2017,ADULT SOCIAL CARE,CAPITAL HOMECARE (UK) LTD,"7,698.60",PHY LTS 18-64,HOMECARE - C&V,2102691202
07.07.2017,ADULT SOCIAL CARE,SWK AFRICAN FAMILY SUPPORT SVCS,982.8,PHY LTS 18-64,HOMECARE - C&V,2102691677
07.07.2017,ADULT SOCIAL CARE,CARE DIRECT UK LTD,641.24,PHY LTS 18-64,HOMECARE - C&V,2102690683
07.07.2017,ADULT SOCIAL CARE,METRO HOMECARE LTD,337.86,PHY LTS 18-64,HOMECARE - C&V,2102690760
07.07.2017,ADULT SOCIAL CARE,METRO HOMECARE LTD,"1,130.78",PHY LTS 18-64,HOMECARE - C&V,2102690751
07.07.2017,ADULT SOCIAL CARE,METRO HOMECARE LTD,"1,316.00",PHY LTS 18-64,HOMECARE - C&V,2102691675
07.07.2017,ADULT SOCIAL CARE,FRESH IDEAS & SOLUTIONS SERVICES CIC,"5,774.24",PHY LTS 18-64,HOMECARE - C&V,2102690975
07.07.2017,ADULT SOCIAL CARE,WESTMINSTER HOMECARE LTD,251.64,PHY LTS 18-64,HOMECARE - C&V,2102691412
07.07.2017,ADULT SOCIAL CARE,WESTMINSTER HOMECARE LTD,433.4,PHY LTS 18-64,HOMECARE - C&V,2102691338
07.07.2017,ADULT SOCIAL CARE,WESTMINSTER HOMECARE LTD,933.88,PHY LTS 18-64,HOMECARE - C&V,2102691679
07.07.2017,ADULT SOCIAL CARE,WESTMINSTER HOMECARE LTD,936.68,PHY LTS 18-64,HOMECARE - C&V,2102691386
07.07.2017,ADULT SOCIAL CARE,WESTMINSTER HOMECARE LTD,"1,006.56",PHY LTS 18-64,HOMECARE - C&V,2102691827
07.07.2017,ADULT SOCIAL CARE,WESTMINSTER HOMECARE LTD,"1,174.32",PHY LTS 18-64,HOMECARE - C&V,2102691035
07.07.2017,ADULT SOCIAL CARE,WESTMINSTER HOMECARE LTD,"1,999.16",PHY LTS 18-64,HOMECARE - C&V,2102691265
07.07.2017,ADULT SOCIAL CARE,PALM TREE RECOVERY CLUB,399.96,PHY LTS 18-64,HOMECARE - C&V,2102691153
07.07.2017,ADULT SOCIAL CARE,NESTOR PRIMECARE SERVICES LTD,491.4,PHY LTS 18-64,HOMECARE - SPOT,2102691085
07.07.2017,ADULT SOCIAL CARE,NESTOR PRIMECARE SERVICES LTD,655.2,PHY LTS 18-64,HOMECARE - SPOT,2102691481
07.07.2017,ADULT SOCIAL CARE,SWK DISABLEMENT ASSN,700.04,PHY LTS 18-64,HOMECARE - SPOT,2102691103
07.07.2017,ADULT SOCIAL CARE,SWK DISABLEMENT ASSN,912,PHY LTS 18-64,HOMECARE - SPOT,2102691063
07.07.2017,ADULT SOCIAL CARE,SWK DISABLEMENT ASSN,"1,148.96",PHY LTS 18-64,HOMECARE - SPOT,2102691571
07.07.2017,ADULT SOCIAL CARE,SWK DISABLEMENT ASSN,"2,076.92",PHY LTS 18-64,HOMECARE - SPOT,2102690884
07.07.2017,ADULT SOCIAL CARE,CARE DIRECT UK LTD,310.28,PHY LTS 18-64,HOMECARE - SPOT,2102690727
07.07.2017,ADULT SOCIAL CARE,CARE DIRECT UK LTD,661.92,PHY LTS 18-64,HOMECARE - SPOT,2102690700
07.07.2017,ADULT SOCIAL CARE,CARE DIRECT UK LTD,675.71,PHY LTS 18-64,HOMECARE - SPOT,2102690656
07.07.2017,ADULT SOCIAL CARE,CARE DIRECT UK LTD,877.52,PHY LTS 18-64,HOMECARE - SPOT,2102690911
07.07.2017,ADULT SOCIAL CARE,CARE DIRECT UK LTD,"1,199.73",PHY LTS 18-64,HOMECARE - SPOT,2102690693
07.07.2017,ADULT SOCIAL CARE,LIFECARE QUALIFICATIONS LTD,"2,129.40",PHY LTS 18-64,HOMECARE - SPOT,2102669140
07.07.2017,ADULT SOCIAL CARE,LIFECARE QUALIFICATIONS LTD,"2,129.40",PHY LTS 18-64,HOMECARE - SPOT,2102681781
07.07.2017,ADULT SOCIAL CARE,LIFECARE QUALIFICATIONS LTD,"2,129.40",PHY LTS 18-64,HOMECARE - SPOT,2102690902
07.07.2017,ADULT SOCIAL CARE,METRO HOMECARE LTD,262.01,PHY LTS 18-64,HOMECARE - SPOT,2102690821
07.07.2017,ADULT SOCIAL CARE,METRO HOMECARE LTD,317.17,PHY LTS 18-64,HOMECARE - SPOT,2102690758
07.07.2017,ADULT SOCIAL CARE,METRO HOMECARE LTD,317.17,PHY LTS 18-64,HOMECARE - SPOT,2102690759
07.07.2017,ADULT SOCIAL CARE,METRO HOMECARE LTD,358.54,PHY LTS 18-64,HOMECARE - SPOT,2102690783
07.07.2017,ADULT SOCIAL CARE,METRO HOMECARE LTD,358.54,PHY LTS 18-64,HOMECARE - SPOT,2102690820
07.07.2017,ADULT SOCIAL CARE,METRO HOMECARE LTD,379.23,PHY LTS 18-64,HOMECARE - SPOT,2102690746
07.07.2017,ADULT SOCIAL CARE,METRO HOMECARE LTD,427.49,PHY LTS 18-64,HOMECARE - SPOT,2102690790
07.07.2017,ADULT SOCIAL CARE,METRO HOMECARE LTD,482.65,PHY LTS 18-64,HOMECARE - SPOT,2102690743
07.07.2017,ADULT SOCIAL CARE,METRO HOMECARE LTD,627.45,PHY LTS 18-64,HOMECARE - SPOT,2102690816
07.07.2017,ADULT SOCIAL CARE,METRO HOMECARE LTD,"1,006.67",PHY LTS 18-64,HOMECARE - SPOT,2102690741
07.07.2017,ADULT SOCIAL CARE,METRO HOMECARE LTD,"1,027.36",PHY LTS 18-64,HOMECARE - SPOT,2102690754
07.07.2017,ADULT SOCIAL CARE,METRO HOMECARE LTD,"1,351.42",PHY LTS 18-64,HOMECARE - SPOT,2102690769
07.07.2017,ADULT SOCIAL CARE,METRO HOMECARE LTD,"1,461.74",PHY LTS 18-64,HOMECARE - SPOT,2102690807
07.07.2017,ADULT SOCIAL CARE,METRO HOMECARE LTD,"1,572.06",PHY LTS 18-64,HOMECARE - SPOT,2102690766
07.07.2017,ADULT SOCIAL CARE,FRESH IDEAS & SOLUTIONS SERVICES CIC,838.64,PHY LTS 18-64,HOMECARE - SPOT,2102691628
07.07.2017,ADULT SOCIAL CARE,YOUTH GRACES (UK) LTD,538.2,PHY LTS 18-64,HOMECARE - SPOT,2102691170
07.07.2017,ADULT SOCIAL CARE,WESTMINSTER HOMECARE LTD,"-1,917.26",PHY LTS 18-64,HOMECARE - SPOT,2102690882
07.07.2017,ADULT SOCIAL CARE,WESTMINSTER HOMECARE LTD,335.52,PHY LTS 18-64,HOMECARE - SPOT,2102691346
07.07.2017,ADULT SOCIAL CARE,WESTMINSTER HOMECARE LTD,782.88,PHY LTS 18-64,HOMECARE - SPOT,2102691801
07.07.2017,ADULT SOCIAL CARE,WESTMINSTER HOMECARE LTD,992.56,PHY LTS 18-64,HOMECARE - SPOT,2102691768
07.07.2017,ADULT SOCIAL CARE,WESTMINSTER HOMECARE LTD,"1,412.00",PHY LTS 18-64,HOMECARE - SPOT,2102691402
07.07.2017,ADULT SOCIAL CARE,MERCURY CARE SERVICES LTD,374.4,PHY LTS 18-64,HOMECARE - SPOT,2102691847
07.07.2017,ADULT SOCIAL CARE,PEOPLE PLUS,"-1,937.60",PHY LTS 18-64,PAYMENTS TO CLIENTS (DIRECT PAYMENTS),2102691050
07.07.2017,ADULT SOCIAL CARE,PEOPLE PLUS,295.04,PHY LTS 18-64,PAYMENTS TO CLIENTS (DIRECT PAYMENTS),2102691466
07.07.2017,ADULT SOCIAL CARE,PEOPLE PLUS,309.72,PHY LTS 18-64,PAYMENTS TO CLIENTS (DIRECT PAYMENTS),2102691172
07.07.2017,ADULT SOCIAL CARE,PEOPLE PLUS,326.6,PHY LTS 18-64,PAYMENTS TO CLIENTS (DIRECT PAYMENTS),2102691400
07.07.2017,ADULT SOCIAL CARE,PEOPLE PLUS,389.32,PHY LTS 18-64,PAYMENTS TO CLIENTS (DIRECT PAYMENTS),2102691272
07.07.2017,ADULT SOCIAL CARE,PEOPLE PLUS,410.2,PHY LTS 18-64,PAYMENTS TO CLIENTS (DIRECT PAYMENTS),2102691006
07.07.2017,ADULT SOCIAL CARE,PEOPLE PLUS,452,PHY LTS 18-64,PAYMENTS TO CLIENTS (DIRECT PAYMENTS),2102691510
07.07.2017,ADULT SOCIAL CARE,PEOPLE PLUS,452,PHY LTS 18-64,PAYMENTS TO CLIENTS (DIRECT PAYMENTS),2102691753
07.07.2017,ADULT SOCIAL CARE,PEOPLE PLUS,504.24,PHY LTS 18-64,PAYMENTS TO CLIENTS (DIRECT PAYMENTS),2102691111
07.07.2017,ADULT SOCIAL CARE,PEOPLE PLUS,514.72,PHY LTS 18-64,PAYMENTS TO CLIENTS (DIRECT PAYMENTS),2102690890
07.07.2017,ADULT SOCIAL CARE,PEOPLE PLUS,535.6,PHY LTS 18-64,PAYMENTS TO CLIENTS (DIRECT PAYMENTS),2102691453
07.07.2017,ADULT SOCIAL CARE,PEOPLE PLUS,535.6,PHY LTS 18-64,PAYMENTS TO CLIENTS (DIRECT PAYMENTS),2102691649
07.07.2017,ADULT SOCIAL CARE,PEOPLE PLUS,535.6,PHY LTS 18-64,PAYMENTS TO CLIENTS (DIRECT PAYMENTS),2102691738
07.07.2017,ADULT SOCIAL CARE,PEOPLE PLUS,556.52,PHY LTS 18-64,PAYMENTS TO CLIENTS (DIRECT PAYMENTS),2102691018
07.07.2017,ADULT SOCIAL CARE,PEOPLE PLUS,585.2,PHY LTS 18-64,PAYMENTS TO CLIENTS (DIRECT PAYMENTS),2102690904
07.07.2017,ADULT SOCIAL CARE,PEOPLE PLUS,588.4,PHY LTS 18-64,PAYMENTS TO CLIENTS (DIRECT PAYMENTS),2102691160
07.07.2017,ADULT SOCIAL CARE,PEOPLE PLUS,598.28,PHY LTS 18-64,PAYMENTS TO CLIENTS (DIRECT PAYMENTS),2102690835
07.07.2017,ADULT SOCIAL CARE,PEOPLE PLUS,619.2,PHY LTS 18-64,PAYMENTS TO CLIENTS (DIRECT PAYMENTS),2102690876
07.07.2017,ADULT SOCIAL CARE,PEOPLE PLUS,619.2,PHY LTS 18-64,PAYMENTS TO CLIENTS (DIRECT PAYMENTS),2102691314
07.07.2017,ADULT SOCIAL CARE,PEOPLE PLUS,629.64,PHY LTS 18-64,PAYMENTS TO CLIENTS (DIRECT PAYMENTS),2102691000
07.07.2017,ADULT SOCIAL CARE,PEOPLE PLUS,629.64,PHY LTS 18-64,PAYMENTS TO CLIENTS (DIRECT PAYMENTS),2102691161
07.07.2017,ADULT SOCIAL CARE,PEOPLE PLUS,653,PHY LTS 18-64,PAYMENTS TO CLIENTS (DIRECT PAYMENTS),2102690858
07.07.2017,ADULT SOCIAL CARE,PEOPLE PLUS,661,PHY LTS 18-64,PAYMENTS TO CLIENTS (DIRECT PAYMENTS),2102691506
07.07.2017,ADULT SOCIAL CARE,PEOPLE PLUS,692.36,PHY LTS 18-64,PAYMENTS TO CLIENTS (DIRECT PAYMENTS),2102691579
07.07.2017,ADULT SOCIAL CARE,PEOPLE PLUS,734.16,PHY LTS 18-64,PAYMENTS TO CLIENTS (DIRECT PAYMENTS),2102691381
07.07.2017,ADULT SOCIAL CARE,PEOPLE PLUS,765.52,PHY LTS 18-64,PAYMENTS TO CLIENTS (DIRECT PAYMENTS),2102691652
07.07.2017,ADULT SOCIAL CARE,PEOPLE PLUS,779.88,PHY LTS 18-64,PAYMENTS TO CLIENTS (DIRECT PAYMENTS),2102690848
07.07.2017,ADULT SOCIAL CARE,PEOPLE PLUS,801.8,PHY LTS 18-64,PAYMENTS TO CLIENTS (DIRECT PAYMENTS),2102691362
07.07.2017,ADULT SOCIAL CARE,PEOPLE PLUS,877.8,PHY LTS 18-64,PAYMENTS TO CLIENTS (DIRECT PAYMENTS),2102691454
07.07.2017,ADULT SOCIAL CARE,PEOPLE PLUS,911.8,PHY LTS 18-64,PAYMENTS TO CLIENTS (DIRECT PAYMENTS),2102691387
07.07.2017,ADULT SOCIAL CARE,PEOPLE PLUS,974.52,PHY LTS 18-64,PAYMENTS TO CLIENTS (DIRECT PAYMENTS),2102691380
07.07.2017,ADULT SOCIAL CARE,PEOPLE PLUS,"1,003.20",PHY LTS 18-64,PAYMENTS TO CLIENTS (DIRECT PAYMENTS),2102690920
07.07.2017,ADULT SOCIAL CARE,PEOPLE PLUS,"1,032.32",PHY LTS 18-64,PAYMENTS TO CLIENTS (DIRECT PAYMENTS),2102691630
07.07.2017,ADULT SOCIAL CARE,PEOPLE PLUS,"1,037.20",PHY LTS 18-64,PAYMENTS TO CLIENTS (DIRECT PAYMENTS),2102691109
07.07.2017,ADULT SOCIAL CARE,PEOPLE PLUS,"1,052.64",PHY LTS 18-64,PAYMENTS TO CLIENTS (DIRECT PAYMENTS),2102691120
07.07.2017,ADULT SOCIAL CARE,PEOPLE PLUS,"1,100.00",PHY LTS 18-64,PAYMENTS TO CLIENTS (DIRECT PAYMENTS),2102691464
07.07.2017,ADULT SOCIAL CARE,PEOPLE PLUS,"1,738.64",PHY LTS 18-64,PAYMENTS TO CLIENTS (DIRECT PAYMENTS),2102691231
07.07.2017,ADULT SOCIAL CARE,PEOPLE PLUS,"1,998.60",PHY LTS 18-64,PAYMENTS TO CLIENTS (DIRECT PAYMENTS),2102691014
07.07.2017,ADULT SOCIAL CARE,PEOPLE PLUS,"2,295.04",PHY LTS 18-64,PAYMENTS TO CLIENTS (DIRECT PAYMENTS),2102691094
07.07.2017,ADULT SOCIAL CARE,PEOPLE PLUS,"2,446.64",PHY LTS 18-64,PAYMENTS TO CLIENTS (DIRECT PAYMENTS),2102691098
07.07.2017,ADULT SOCIAL CARE,PEOPLE PLUS,"3,234.00",PHY LTS 18-64,PAYMENTS TO CLIENTS (DIRECT PAYMENTS),2102691090
07.07.2017,ADULT SOCIAL CARE,PEOPLE PLUS,"3,307.52",PHY LTS 18-64,PAYMENTS TO CLIENTS (DIRECT PAYMENTS),2102690909
07.07.2017,ADULT SOCIAL CARE,PEOPLE PLUS,"3,576.40",PHY LTS 18-64,PAYMENTS TO CLIENTS (DIRECT PAYMENTS),2102691340
07.07.2017,ADULT SOCIAL CARE,PEOPLE PLUS,"4,096.40",PHY LTS 18-64,PAYMENTS TO CLIENTS (DIRECT PAYMENTS),2102691731
07.07.2017,ADULT SOCIAL CARE,FRESH IDEAS & SOLUTIONS SERVICES CIC,284.8,PHY LTS 18-64,PAYMENTS TO CLIENTS (DIRECT PAYMENTS),2102691617
07.07.2017,ADULT SOCIAL CARE,FRESH IDEAS & SOLUTIONS SERVICES CIC,619.2,PHY LTS 18-64,PAYMENTS TO CLIENTS (DIRECT PAYMENTS),2102690944
07.07.2017,ADULT SOCIAL CARE,FRESH IDEAS & SOLUTIONS SERVICES CIC,846.44,PHY LTS 18-64,PAYMENTS TO CLIENTS (DIRECT PAYMENTS),2102690976
07.07.2017,ADULT SOCIAL CARE,FRESH IDEAS & SOLUTIONS SERVICES CIC,870,PHY LTS 18-64,PAYMENTS TO CLIENTS (DIRECT PAYMENTS),2102691822
07.07.2017,ADULT SOCIAL CARE,FRESH IDEAS & SOLUTIONS SERVICES CIC,911.8,PHY LTS 18-64,PAYMENTS TO CLIENTS (DIRECT PAYMENTS),2102691819
07.07.2017,ADULT SOCIAL CARE,REDACTED PERSONAL DATA,"1,210.40",PHY LTS 18-64,PAYMENTS TO CLIENTS (DIRECT PAYMENTS),2102691271
07.07.2017,ADULT SOCIAL CARE,REDACTED PERSONAL DATA,"3,278.60",PHY LTS 18-64,PAYMENTS TO CLIENTS (DIRECT PAYMENTS),2102691095
07.07.2017,ADULT SOCIAL CARE,REDACTED PERSONAL DATA,258.08,PHY LTS 18-64,PAYMENTS TO CLIENTS (DIRECT PAYMENTS),2102691713
07.07.2017,ADULT SOCIAL CARE,REDACTED PERSONAL DATA,688.8,PHY LTS 18-64,PAYMENTS TO CLIENTS (DIRECT PAYMENTS),2102691834
07.07.2017,ADULT SOCIAL CARE,REDACTED PERSONAL DATA,814.2,PHY LTS 18-64,PAYMENTS TO CLIENTS (DIRECT PAYMENTS),2102691368
07.07.2017,ADULT SOCIAL CARE,REDACTED PERSONAL DATA,602.48,PHY LTS 18-64,PAYMENTS TO CLIENTS (DIRECT PAYMENTS),2102691917
07.07.2017,ADULT SOCIAL CARE,REDACTED PERSONAL DATA,602.44,PHY LTS 18-64,PAYMENTS TO CLIENTS (DIRECT PAYMENTS),2102691901
07.07.2017,ADULT SOCIAL CARE,REDACTED PERSONAL DATA,721.04,PHY LTS 18-64,PAYMENTS TO CLIENTS (DIRECT PAYMENTS),2102691870
07.07.2017,ADULT SOCIAL CARE,REDACTED PERSONAL DATA,312.6,PHY LTS 18-64,PAYMENTS TO CLIENTS (DIRECT PAYMENTS),2102691948
07.07.2017,ADULT SOCIAL CARE,REDACTED PERSONAL DATA,511.16,PHY LTS 18-64,PAYMENTS TO CLIENTS (DIRECT PAYMENTS),2102691666
07.07.2017,ADULT SOCIAL CARE,REDACTED PERSONAL DATA,"3,589.92",PHY LTS 18-64,PAYMENTS TO CLIENTS (DIRECT PAYMENTS),2102691370
07.07.2017,ADULT SOCIAL CARE,REDACTED PERSONAL DATA,312.6,PHY LTS 18-64,PAYMENTS TO CLIENTS (DIRECT PAYMENTS),2102691874
07.07.2017,ADULT SOCIAL CARE,REDACTED PERSONAL DATA,856,PHY LTS 18-64,PAYMENTS TO CLIENTS (DIRECT PAYMENTS),2102691986
07.07.2017,ADULT SOCIAL CARE,REDACTED PERSONAL DATA,"1,379.40",PHY LTS 18-64,PAYMENTS TO CLIENTS (DIRECT PAYMENTS),2102691635
07.07.2017,ADULT SOCIAL CARE,REDACTED PERSONAL DATA,876.88,PHY LTS 18-64,PAYMENTS TO CLIENTS (DIRECT PAYMENTS),2102691877
07.07.2017,ADULT SOCIAL CARE,REDACTED PERSONAL DATA,"1,221.76",PHY LTS 18-64,PAYMENTS TO CLIENTS (DIRECT PAYMENTS),2102691638
07.07.2017,ADULT SOCIAL CARE,REDACTED PERSONAL DATA,"2,851.96",PHY LTS 18-64,PAYMENTS TO CLIENTS (DIRECT PAYMENTS),2102691891
07.07.2017,ADULT SOCIAL CARE,REDACTED PERSONAL DATA,491.4,PHY LTS 18-64,PAYMENTS TO CLIENTS (DIRECT PAYMENTS),2102691740
07.07.2017,ADULT SOCIAL CARE,REDACTED PERSONAL DATA,999.6,PHY LTS 18-64,PAYMENTS TO CLIENTS (DIRECT PAYMENTS),2102691132
07.07.2017,ADULT SOCIAL CARE,REDACTED PERSONAL DATA,418,PHY LTS 18-64,PAYMENTS TO CLIENTS (DIRECT PAYMENTS),2102691879
07.07.2017,ADULT SOCIAL CARE,REDACTED PERSONAL DATA,"1,147.12",PHY LTS 18-64,PAYMENTS TO CLIENTS (DIRECT PAYMENTS),2102691980
07.07.2017,ADULT SOCIAL CARE,REDACTED PERSONAL DATA,314.44,PHY LTS 18-64,PAYMENTS TO CLIENTS (DIRECT PAYMENTS),2102691994
07.07.2017,ADULT SOCIAL CARE,REDACTED PERSONAL DATA,514.8,PHY LTS 18-64,PAYMENTS TO CLIENTS (DIRECT PAYMENTS),2102691313
07.07.2017,ADULT SOCIAL CARE,REDACTED PERSONAL DATA,501.6,PHY LTS 18-64,PAYMENTS TO CLIENTS (DIRECT PAYMENTS),2102691908
07.07.2017,ADULT SOCIAL CARE,REDACTED PERSONAL DATA,"1,204.16",PHY LTS 18-64,PAYMENTS TO CLIENTS (DIRECT PAYMENTS),2102691846
07.07.2017,ADULT SOCIAL CARE,REDACTED PERSONAL DATA,957.68,PHY LTS 18-64,PAYMENTS TO CLIENTS (DIRECT PAYMENTS),2102691863
07.07.2017,ADULT SOCIAL CARE,REDACTED PERSONAL DATA,"4,608.04",PHY LTS 18-64,PAYMENTS TO CLIENTS (DIRECT PAYMENTS),2102691495
07.07.2017,ADULT SOCIAL CARE,REDACTED PERSONAL DATA,"1,579.20",PHY LTS 18-64,PAYMENTS TO CLIENTS (DIRECT PAYMENTS),2102691057
07.07.2017,ADULT SOCIAL CARE,REDACTED PERSONAL DATA,354.4,PHY LTS 18-64,PAYMENTS TO CLIENTS (DIRECT PAYMENTS),2102691997
07.07.2017,ADULT SOCIAL CARE,REDACTED PERSONAL DATA,403.44,PHY LTS 18-64,PAYMENTS TO CLIENTS (DIRECT PAYMENTS),2102691858
07.07.2017,ADULT SOCIAL CARE,REDACTED PERSONAL DATA,730.6,PHY LTS 18-64,PAYMENTS TO CLIENTS (DIRECT PAYMENTS),2102691736
07.07.2017,ADULT SOCIAL CARE,REDACTED PERSONAL DATA,836.36,PHY LTS 18-64,PAYMENTS TO CLIENTS (DIRECT PAYMENTS),2102691364
07.07.2017,ADULT SOCIAL CARE,REDACTED PERSONAL DATA,824.64,PHY LTS 18-64,PAYMENTS TO CLIENTS (DIRECT PAYMENTS),2102691883
07.07.2017,ADULT SOCIAL CARE,REDACTED PERSONAL DATA,400,PHY LTS 18-64,PAYMENTS TO CLIENTS (DIRECT PAYMENTS),2102691961
07.07.2017,ADULT SOCIAL CARE,REDACTED PERSONAL DATA,"2,422.96",PHY LTS 18-64,PAYMENTS TO CLIENTS (DIRECT PAYMENTS),2102691838
07.07.2017,ADULT SOCIAL CARE,REDACTED PERSONAL DATA,635.28,PHY LTS 18-64,PAYMENTS TO CLIENTS (DIRECT PAYMENTS),2102691726
07.07.2017,ADULT SOCIAL CARE,REDACTED PERSONAL DATA,663.52,PHY LTS 18-64,PAYMENTS TO CLIENTS (DIRECT PAYMENTS),2102690900
07.07.2017,ADULT SOCIAL CARE,REDACTED PERSONAL DATA,323.04,PHY LTS 18-64,PAYMENTS TO CLIENTS (DIRECT PAYMENTS),2102691903
07.07.2017,ADULT SOCIAL CARE,REDACTED PERSONAL DATA,"1,002.32",PHY LTS 18-64,PAYMENTS TO CLIENTS (DIRECT PAYMENTS),2102690893
07.07.2017,ADULT SOCIAL CARE,REDACTED PERSONAL DATA,"1,200.80",PHY LTS 18-64,PAYMENTS TO CLIENTS (DIRECT PAYMENTS),2102691072
07.07.2017,ADULT SOCIAL CARE,REDACTED PERSONAL DATA,751.96,PHY LTS 18-64,PAYMENTS TO CLIENTS (DIRECT PAYMENTS),2102691258
07.07.2017,ADULT SOCIAL CARE,REDACTED PERSONAL DATA,675.48,PHY LTS 18-64,PAYMENTS TO CLIENTS (DIRECT PAYMENTS),2102691122
07.07.2017,ADULT SOCIAL CARE,REDACTED PERSONAL DATA,667.92,PHY LTS 18-64,PAYMENTS TO CLIENTS (DIRECT PAYMENTS),2102691251
07.07.2017,ADULT SOCIAL CARE,REDACTED PERSONAL DATA,647.92,PHY LTS 18-64,PAYMENTS TO CLIENTS (DIRECT PAYMENTS),2102691498
07.07.2017,ADULT SOCIAL CARE,REDACTED PERSONAL DATA,668.8,PHY LTS 18-64,PAYMENTS TO CLIENTS (DIRECT PAYMENTS),2102691942
07.07.2017,ADULT SOCIAL CARE,REDACTED PERSONAL DATA,521.64,PHY LTS 18-64,PAYMENTS TO CLIENTS (DIRECT PAYMENTS),2102691851
07.07.2017,ADULT SOCIAL CARE,REDACTED PERSONAL DATA,889.8,PHY LTS 18-64,PAYMENTS TO CLIENTS (DIRECT PAYMENTS),2102690881
07.07.2017,ADULT SOCIAL CARE,REDACTED PERSONAL DATA,"5,321.24",PHY LTS 18-64,PAYMENTS TO CLIENTS (DIRECT PAYMENTS),2102692003
07.07.2017,ADULT SOCIAL CARE,REDACTED PERSONAL DATA,526.04,PHY LTS 18-64,PAYMENTS TO CLIENTS (DIRECT PAYMENTS),2102692005
07.07.2017,ADULT SOCIAL CARE,REDACTED PERSONAL DATA,918.72,PHY LTS 18-64,PAYMENTS TO CLIENTS (DIRECT PAYMENTS),2102691864
07.07.2017,ADULT SOCIAL CARE,REDACTED PERSONAL DATA,"2,088.48",PHY LTS 18-64,PAYMENTS TO CLIENTS (DIRECT PAYMENTS),2102691361
07.07.2017,ADULT SOCIAL CARE,REDACTED PERSONAL DATA,"1,179.96",PHY LTS 18-64,PAYMENTS TO CLIENTS (DIRECT PAYMENTS),2102691996
07.07.2017,ADULT SOCIAL CARE,CHOICE SUPPORT,"3,516.00",PHY LTS 18-64,SUPPORTED LIVING,2102690941
07.07.2017,ADULT SOCIAL CARE,THE REGARD PARTNERSHIP,"2,897.88",PHY LTS 18-64,SUPPORTED LIVING,2102691275
07.07.2017,ADULT SOCIAL CARE,THE REGARD PARTNERSHIP,"4,056.76",PHY LTS 18-64,SUPPORTED LIVING,2102690838
07.07.2017,ADULT SOCIAL CARE,RNIB COMMUNITY LIVING SERVICE,"1,917.48",PHY LTS 18-64,SUPPORTED LIVING,2102691455
07.07.2017,ADULT SOCIAL CARE,AGE CONCERN LEWISHAM & SOUTHWARK,540,PHY LTS 65+,DAYCARE,2102691802
07.07.2017,ADULT SOCIAL CARE,AGE UK  LEWISHAM & SOUTHWARK,"-2,211.43",PHY LTS 65+,DAYCARE,2102691806
07.07.2017,ADULT SOCIAL CARE,AGE UK  LEWISHAM & SOUTHWARK,360,PHY LTS 65+,DAYCARE,2102690892
07.07.2017,ADULT SOCIAL CARE,AGE UK  LEWISHAM & SOUTHWARK,360,PHY LTS 65+,DAYCARE,2102690912
07.07.2017,ADULT SOCIAL CARE,AGE UK  LEWISHAM & SOUTHWARK,360,PHY LTS 65+,DAYCARE,2102691012
07.07.2017,ADULT SOCIAL CARE,AGE UK  LEWISHAM & SOUTHWARK,360,PHY LTS 65+,DAYCARE,2102691066
07.07.2017,ADULT SOCIAL CARE,AGE UK  LEWISHAM & SOUTHWARK,360,PHY LTS 65+,DAYCARE,2102691171
07.07.2017,ADULT SOCIAL CARE,AGE UK  LEWISHAM & SOUTHWARK,360,PHY LTS 65+,DAYCARE,2102691260
07.07.2017,ADULT SOCIAL CARE,AGE UK  LEWISHAM & SOUTHWARK,360,PHY LTS 65+,DAYCARE,2102691696
07.07.2017,ADULT SOCIAL CARE,AGE UK  LEWISHAM & SOUTHWARK,360,PHY LTS 65+,DAYCARE,2102691830
07.07.2017,ADULT SOCIAL CARE,AGE UK  LEWISHAM & SOUTHWARK,396,PHY LTS 65+,DAYCARE,2102691043
07.07.2017,ADULT SOCIAL CARE,AGE UK  LEWISHAM & SOUTHWARK,540,PHY LTS 65+,DAYCARE,2102690948
07.07.2017,ADULT SOCIAL CARE,AGE UK  LEWISHAM & SOUTHWARK,540,PHY LTS 65+,DAYCARE,2102691031
07.07.2017,ADULT SOCIAL CARE,AGE UK  LEWISHAM & SOUTHWARK,540,PHY LTS 65+,DAYCARE,2102691605
07.07.2017,ADULT SOCIAL CARE,AGE UK  LEWISHAM & SOUTHWARK,540,PHY LTS 65+,DAYCARE,2102691760
07.07.2017,ADULT SOCIAL CARE,AGE UK  LEWISHAM & SOUTHWARK,720,PHY LTS 65+,DAYCARE,2102690875
07.07.2017,ADULT SOCIAL CARE,AGE UK  LEWISHAM & SOUTHWARK,720,PHY LTS 65+,DAYCARE,2102691044
07.07.2017,ADULT SOCIAL CARE,AGE UK  LEWISHAM & SOUTHWARK,720,PHY LTS 65+,DAYCARE,2102691076
07.07.2017,ADULT SOCIAL CARE,AGE UK  LEWISHAM & SOUTHWARK,720,PHY LTS 65+,DAYCARE,2102691158
07.07.2017,ADULT SOCIAL CARE,BLACK ELDER GROUP SWK,360,PHY LTS 65+,DAYCARE,2102691297
07.07.2017,ADULT SOCIAL CARE,BLACK ELDER GROUP SWK,408,PHY LTS 65+,DAYCARE,2102691292
07.07.2017,ADULT SOCIAL CARE,BLACK ELDER GROUP SWK,480,PHY LTS 65+,DAYCARE,2102691725
07.07.2017,ADULT SOCIAL CARE,BLACK ELDER GROUP SWK,588,PHY LTS 65+,DAYCARE,2102691509
07.07.2017,ADULT SOCIAL CARE,BLACK ELDER GROUP SWK,680,PHY LTS 65+,DAYCARE,2102691428
07.07.2017,ADULT SOCIAL CARE,MEDACS HOMECARE,-254.68,PHY LTS 65+,DISCRETIONARY FLEXIBLE FEES & INCOME,2102691758
07.07.2017,ADULT SOCIAL CARE,PEOPLE PLUS,-253.32,PHY LTS 65+,DISCRETIONARY FLEXIBLE FEES & INCOME,2102691248
07.07.2017,ADULT SOCIAL CARE,REDACTED PERSONAL DATA,-407.12,PHY LTS 65+,DISCRETIONARY FLEXIBLE FEES & INCOME,2102691764
07.07.2017,ADULT SOCIAL CARE,REDACTED PERSONAL DATA,-645.6,PHY LTS 65+,DISCRETIONARY FLEXIBLE FEES & INCOME,2102691439
07.07.2017,ADULT SOCIAL CARE,GOLDSBOROUGH HOMECARE & NURSING,"1,895.40",PHY LTS 65+,HOMECARE - C&V,2102691776
07.07.2017,ADULT SOCIAL CARE,NESTOR PRIMECARE SERVICES LTD,994.52,PHY LTS 65+,HOMECARE - C&V,2102690898
07.07.2017,ADULT SOCIAL CARE,NESTOR PRIMECARE SERVICES LTD,"1,872.00",PHY LTS 65+,HOMECARE - C&V,2102691699
07.07.2017,ADULT SOCIAL CARE,MEDACS HOMECARE,327.6,PHY LTS 65+,HOMECARE - C&V,2102691166
07.07.2017,ADULT SOCIAL CARE,MEDACS HOMECARE,374.4,PHY LTS 65+,HOMECARE - C&V,2102691702
07.07.2017,ADULT SOCIAL CARE,MEDACS HOMECARE,643.52,PHY LTS 65+,HOMECARE - C&V,2102691378
07.07.2017,ADULT SOCIAL CARE,MEDACS HOMECARE,678.6,PHY LTS 65+,HOMECARE - C&V,2102691722
07.07.2017,ADULT SOCIAL CARE,MEDACS HOMECARE,819,PHY LTS 65+,HOMECARE - C&V,2102691541
07.07.2017,ADULT SOCIAL CARE,SWK DISABLEMENT ASSN,294.6,PHY LTS 65+,HOMECARE - C&V,2102691614
07.07.2017,ADULT SOCIAL CARE,SWK DISABLEMENT ASSN,309.32,PHY LTS 65+,HOMECARE - C&V,2102691452
07.07.2017,ADULT SOCIAL CARE,SWK DISABLEMENT ASSN,412.44,PHY LTS 65+,HOMECARE - C&V,2102691431
07.07.2017,ADULT SOCIAL CARE,SWK DISABLEMENT ASSN,854.36,PHY LTS 65+,HOMECARE - C&V,2102690972
07.07.2017,ADULT SOCIAL CARE,CAPITAL HOMECARE (UK) LTD,-421.2,PHY LTS 65+,HOMECARE - C&V,2102691527
07.07.2017,ADULT SOCIAL CARE,CAPITAL HOMECARE (UK) LTD,345.16,PHY LTS 65+,HOMECARE - C&V,2102690971
07.07.2017,ADULT SOCIAL CARE,CAPITAL HOMECARE (UK) LTD,409.52,PHY LTS 65+,HOMECARE - C&V,2102690872
07.07.2017,ADULT SOCIAL CARE,CAPITAL HOMECARE (UK) LTD,538.2,PHY LTS 65+,HOMECARE - C&V,2102691310
07.07.2017,ADULT SOCIAL CARE,CAPITAL HOMECARE (UK) LTD,643.52,PHY LTS 65+,HOMECARE - C&V,2102691794
07.07.2017,ADULT SOCIAL CARE,CAPITAL HOMECARE (UK) LTD,678.6,PHY LTS 65+,HOMECARE - C&V,2102691201
07.07.2017,ADULT SOCIAL CARE,CAPITAL HOMECARE (UK) LTD,"1,310.40",PHY LTS 65+,HOMECARE - C&V,2102690928
07.07.2017,ADULT SOCIAL CARE,ARK HOME HEALTHCARE LTD,421.2,PHY LTS 65+,HOMECARE - C&V,2102691427
07.07.2017,ADULT SOCIAL CARE,SWK AFRICAN FAMILY SUPPORT SVCS,292.52,PHY LTS 65+,HOMECARE - C&V,2102691444
07.07.2017,ADULT SOCIAL CARE,SWK AFRICAN FAMILY SUPPORT SVCS,409.52,PHY LTS 65+,HOMECARE - C&V,2102691574
07.07.2017,ADULT SOCIAL CARE,SUPREME CARE SERVICES LTD,907,PHY LTS 65+,HOMECARE - C&V,2102691842
07.07.2017,ADULT SOCIAL CARE,CARE DIRECT UK LTD,503.34,PHY LTS 65+,HOMECARE - C&V,2102690629
07.07.2017,ADULT SOCIAL CARE,CARE DIRECT UK LTD,655.2,PHY LTS 65+,HOMECARE - C&V,2102691701
07.07.2017,ADULT SOCIAL CARE,CARE DIRECT UK LTD,783.92,PHY LTS 65+,HOMECARE - C&V,2102691774
07.07.2017,ADULT SOCIAL CARE,LIFECARE QUALIFICATIONS LTD,"-6,974.87",PHY LTS 65+,HOMECARE - C&V,2102669653
07.07.2017,ADULT SOCIAL CARE,METRO HOMECARE LTD,-965.25,PHY LTS 65+,HOMECARE - C&V,2102690896
07.07.2017,ADULT SOCIAL CARE,METRO HOMECARE LTD,289.59,PHY LTS 65+,HOMECARE - C&V,2102690825
07.07.2017,ADULT SOCIAL CARE,METRO HOMECARE LTD,337.86,PHY LTS 65+,HOMECARE - C&V,2102690773
07.07.2017,ADULT SOCIAL CARE,METRO HOMECARE LTD,655.2,PHY LTS 65+,HOMECARE - C&V,2102691107
07.07.2017,ADULT SOCIAL CARE,METRO HOMECARE LTD,772.24,PHY LTS 65+,HOMECARE - C&V,2102690810
07.07.2017,ADULT SOCIAL CARE,METRO HOMECARE LTD,820.51,PHY LTS 65+,HOMECARE - C&V,2102690777
07.07.2017,ADULT SOCIAL CARE,METRO HOMECARE LTD,"1,213.52",PHY LTS 65+,HOMECARE - C&V,2102690757
07.07.2017,ADULT SOCIAL CARE,METRO HOMECARE LTD,"1,241.10",PHY LTS 65+,HOMECARE - C&V,2102690784
07.07.2017,ADULT SOCIAL CARE,FRESH IDEAS & SOLUTIONS SERVICES CIC,585.2,PHY LTS 65+,HOMECARE - C&V,2102690886
07.07.2017,ADULT SOCIAL CARE,FRESH IDEAS & SOLUTIONS SERVICES CIC,"1,413.40",PHY LTS 65+,HOMECARE - C&V,2102691245
07.07.2017,ADULT SOCIAL CARE,WESTMINSTER HOMECARE LTD,321.56,PHY LTS 65+,HOMECARE - C&V,2102691599
07.07.2017,ADULT SOCIAL CARE,WESTMINSTER HOMECARE LTD,377.48,PHY LTS 65+,HOMECARE - C&V,2102690852
07.07.2017,ADULT SOCIAL CARE,WESTMINSTER HOMECARE LTD,503.28,PHY LTS 65+,HOMECARE - C&V,2102691747
07.07.2017,ADULT SOCIAL CARE,WESTMINSTER HOMECARE LTD,671.04,PHY LTS 65+,HOMECARE - C&V,2102691129
07.07.2017,ADULT SOCIAL CARE,WESTMINSTER HOMECARE LTD,"1,202.28",PHY LTS 65+,HOMECARE - C&V,2102691825
07.07.2017,ADULT SOCIAL CARE,WESTMINSTER HOMECARE LTD,"4,397.60",PHY LTS 65+,HOMECARE - C&V,2102690952
07.07.2017,ADULT SOCIAL CARE,BLUEBIRD CARE (SOUTHWARK),"1,228.52",PHY LTS 65+,HOMECARE - C&V,2102691609
07.07.2017,ADULT SOCIAL CARE,REDACTED PERSONAL DATA,737.76,PHY LTS 65+,HOMECARE - C&V,2102691207
07.07.2017,ADULT SOCIAL CARE,REDACTED PERSONAL DATA,584.8,PHY LTS 65+,HOMECARE - C&V,2102691033
07.07.2017,ADULT SOCIAL CARE,NESTOR PRIMECARE SERVICES LTD,596.72,PHY LTS 65+,HOMECARE - SPOT,2102690855
07.07.2017,ADULT SOCIAL CARE,NESTOR PRIMECARE SERVICES LTD,725.4,PHY LTS 65+,HOMECARE - SPOT,2102691616
07.07.2017,ADULT SOCIAL CARE,MEDACS HOMECARE,327.6,PHY LTS 65+,HOMECARE - SPOT,2102691759
07.07.2017,ADULT SOCIAL CARE,SWK DISABLEMENT ASSN,744.8,PHY LTS 65+,HOMECARE - SPOT,2102691816
07.07.2017,ADULT SOCIAL CARE,SWK DISABLEMENT ASSN,810.16,PHY LTS 65+,HOMECARE - SPOT,2102690977
07.07.2017,ADULT SOCIAL CARE,SWK DISABLEMENT ASSN,"1,178.40",PHY LTS 65+,HOMECARE - SPOT,2102691742
07.07.2017,ADULT SOCIAL CARE,SWK DISABLEMENT ASSN,"1,296.24",PHY LTS 65+,HOMECARE - SPOT,2102691269
07.07.2017,ADULT SOCIAL CARE,SWK DISABLEMENT ASSN,"1,414.08",PHY LTS 65+,HOMECARE - SPOT,2102691667
07.07.2017,ADULT SOCIAL CARE,FIRST CHOICE SOCIAL CARE & HOUSING,-284.14,PHY LTS 65+,HOMECARE - SPOT,2102691276
07.07.2017,ADULT SOCIAL CARE,CAPITAL HOMECARE (UK) LTD,409.52,PHY LTS 65+,HOMECARE - SPOT,2102691796
07.07.2017,ADULT SOCIAL CARE,CAPITAL HOMECARE (UK) LTD,655.2,PHY LTS 65+,HOMECARE - SPOT,2102691061
07.07.2017,ADULT SOCIAL CARE,CAPITAL HOMECARE (UK) LTD,760.52,PHY LTS 65+,HOMECARE - SPOT,2102691642
07.07.2017,ADULT SOCIAL CARE,SWK AFRICAN FAMILY SUPPORT SVCS,351,PHY LTS 65+,HOMECARE - SPOT,2102691293
07.07.2017,ADULT SOCIAL CARE,CARE DIRECT UK LTD,262.01,PHY LTS 65+,HOMECARE - SPOT,2102690733
07.07.2017,ADULT SOCIAL CARE,CARE DIRECT UK LTD,265.46,PHY LTS 65+,HOMECARE - SPOT,2102690650
07.07.2017,ADULT SOCIAL CARE,CARE DIRECT UK LTD,337.86,PHY LTS 65+,HOMECARE - SPOT,2102690669
07.07.2017,ADULT SOCIAL CARE,CARE DIRECT UK LTD,358.54,PHY LTS 65+,HOMECARE - SPOT,2102690707
07.07.2017,ADULT SOCIAL CARE,CARE DIRECT UK LTD,386.12,PHY LTS 65+,HOMECARE - SPOT,2102690706
07.07.2017,ADULT SOCIAL CARE,CARE DIRECT UK LTD,399.91,PHY LTS 65+,HOMECARE - SPOT,2102690625
07.07.2017,ADULT SOCIAL CARE,CARE DIRECT UK LTD,406.81,PHY LTS 65+,HOMECARE - SPOT,2102690624
07.07.2017,ADULT SOCIAL CARE,CARE DIRECT UK LTD,430.94,PHY LTS 65+,HOMECARE - SPOT,2102690659
07.07.2017,ADULT SOCIAL CARE,CARE DIRECT UK LTD,475.76,PHY LTS 65+,HOMECARE - SPOT,2102690676
07.07.2017,ADULT SOCIAL CARE,CARE DIRECT UK LTD,482.65,PHY LTS 65+,HOMECARE - SPOT,2102690678
07.07.2017,ADULT SOCIAL CARE,CARE DIRECT UK LTD,496.44,PHY LTS 65+,HOMECARE - SPOT,2102690674
07.07.2017,ADULT SOCIAL CARE,CARE DIRECT UK LTD,530.92,PHY LTS 65+,HOMECARE - SPOT,2102690616
07.07.2017,ADULT SOCIAL CARE,CARE DIRECT UK LTD,530.92,PHY LTS 65+,HOMECARE - SPOT,2102690690
07.07.2017,ADULT SOCIAL CARE,CARE DIRECT UK LTD,620.55,PHY LTS 65+,HOMECARE - SPOT,2102690664
07.07.2017,ADULT SOCIAL CARE,CARE DIRECT UK LTD,655.03,PHY LTS 65+,HOMECARE - SPOT,2102690645
07.07.2017,ADULT SOCIAL CARE,CARE DIRECT UK LTD,723.98,PHY LTS 65+,HOMECARE - SPOT,2102690684
07.07.2017,ADULT SOCIAL CARE,CARE DIRECT UK LTD,"1,450.80",PHY LTS 65+,HOMECARE - SPOT,2102691558
07.07.2017,ADULT SOCIAL CARE,CARE DIRECT UK LTD,"1,699.76",PHY LTS 65+,HOMECARE - SPOT,2102691555
07.07.2017,ADULT SOCIAL CARE,AGE UK  LEWISHAM & SOUTHWARK,"2,012.40",PHY LTS 65+,HOMECARE - SPOT,2102691029
07.07.2017,ADULT SOCIAL CARE,LIFECARE QUALIFICATIONS LTD,468,PHY LTS 65+,HOMECARE - SPOT,2102670125
07.07.2017,ADULT SOCIAL CARE,LIFECARE QUALIFICATIONS LTD,468,PHY LTS 65+,HOMECARE - SPOT,2102682051
07.07.2017,ADULT SOCIAL CARE,LIFECARE QUALIFICATIONS LTD,468,PHY LTS 65+,HOMECARE - SPOT,2102691471
07.07.2017,ADULT SOCIAL CARE,LIFECARE QUALIFICATIONS LTD,585,PHY LTS 65+,HOMECARE - SPOT,2102669210
07.07.2017,ADULT SOCIAL CARE,LIFECARE QUALIFICATIONS LTD,585,PHY LTS 65+,HOMECARE - SPOT,2102682177
07.07.2017,ADULT SOCIAL CARE,LIFECARE QUALIFICATIONS LTD,585,PHY LTS 65+,HOMECARE - SPOT,2102691331
07.07.2017,ADULT SOCIAL CARE,METRO HOMECARE LTD,268.91,PHY LTS 65+,HOMECARE - SPOT,2102690815
07.07.2017,ADULT SOCIAL CARE,METRO HOMECARE LTD,289.59,PHY LTS 65+,HOMECARE - SPOT,2102690775
07.07.2017,ADULT SOCIAL CARE,METRO HOMECARE LTD,310.28,PHY LTS 65+,HOMECARE - SPOT,2102690786
07.07.2017,ADULT SOCIAL CARE,METRO HOMECARE LTD,330.96,PHY LTS 65+,HOMECARE - SPOT,2102690791
07.07.2017,ADULT SOCIAL CARE,METRO HOMECARE LTD,337.86,PHY LTS 65+,HOMECARE - SPOT,2102690788
07.07.2017,ADULT SOCIAL CARE,METRO HOMECARE LTD,358.54,PHY LTS 65+,HOMECARE - SPOT,2102690756
07.07.2017,ADULT SOCIAL CARE,METRO HOMECARE LTD,365.44,PHY LTS 65+,HOMECARE - SPOT,2102690806
07.07.2017,ADULT SOCIAL CARE,METRO HOMECARE LTD,379.23,PHY LTS 65+,HOMECARE - SPOT,2102690822
07.07.2017,ADULT SOCIAL CARE,METRO HOMECARE LTD,386.12,PHY LTS 65+,HOMECARE - SPOT,2102690787
07.07.2017,ADULT SOCIAL CARE,METRO HOMECARE LTD,393.02,PHY LTS 65+,HOMECARE - SPOT,2102690753
07.07.2017,ADULT SOCIAL CARE,METRO HOMECARE LTD,413.7,PHY LTS 65+,HOMECARE - SPOT,2102690824
07.07.2017,ADULT SOCIAL CARE,METRO HOMECARE LTD,434.39,PHY LTS 65+,HOMECARE - SPOT,2102690814
07.07.2017,ADULT SOCIAL CARE,METRO HOMECARE LTD,441.28,PHY LTS 65+,HOMECARE - SPOT,2102690819
07.07.2017,ADULT SOCIAL CARE,METRO HOMECARE LTD,461.97,PHY LTS 65+,HOMECARE - SPOT,2102690785
07.07.2017,ADULT SOCIAL CARE,METRO HOMECARE LTD,475.76,PHY LTS 65+,HOMECARE - SPOT,2102690763
07.07.2017,ADULT SOCIAL CARE,METRO HOMECARE LTD,482.65,PHY LTS 65+,HOMECARE - SPOT,2102690770
07.07.2017,ADULT SOCIAL CARE,METRO HOMECARE LTD,482.65,PHY LTS 65+,HOMECARE - SPOT,2102690782
07.07.2017,ADULT SOCIAL CARE,METRO HOMECARE LTD,551.6,PHY LTS 65+,HOMECARE - SPOT,2102690776
07.07.2017,ADULT SOCIAL CARE,METRO HOMECARE LTD,551.6,PHY LTS 65+,HOMECARE - SPOT,2102690798
07.07.2017,ADULT SOCIAL CARE,METRO HOMECARE LTD,579.18,PHY LTS 65+,HOMECARE - SPOT,2102690740
07.07.2017,ADULT SOCIAL CARE,METRO HOMECARE LTD,580.08,PHY LTS 65+,HOMECARE - SPOT,2102690917
07.07.2017,ADULT SOCIAL CARE,METRO HOMECARE LTD,585,PHY LTS 65+,HOMECARE - SPOT,2102691396
07.07.2017,ADULT SOCIAL CARE,METRO HOMECARE LTD,592.97,PHY LTS 65+,HOMECARE - SPOT,2102690767
07.07.2017,ADULT SOCIAL CARE,METRO HOMECARE LTD,627.45,PHY LTS 65+,HOMECARE - SPOT,2102690738
07.07.2017,ADULT SOCIAL CARE,METRO HOMECARE LTD,661.92,PHY LTS 65+,HOMECARE - SPOT,2102690793
07.07.2017,ADULT SOCIAL CARE,METRO HOMECARE LTD,723.98,PHY LTS 65+,HOMECARE - SPOT,2102690739
07.07.2017,ADULT SOCIAL CARE,METRO HOMECARE LTD,758.45,PHY LTS 65+,HOMECARE - SPOT,2102690750
07.07.2017,ADULT SOCIAL CARE,METRO HOMECARE LTD,772.24,PHY LTS 65+,HOMECARE - SPOT,2102690747
07.07.2017,ADULT SOCIAL CARE,METRO HOMECARE LTD,896.35,PHY LTS 65+,HOMECARE - SPOT,2102690771
07.07.2017,ADULT SOCIAL CARE,METRO HOMECARE LTD,910.14,PHY LTS 65+,HOMECARE - SPOT,2102690780
07.07.2017,ADULT SOCIAL CARE,METRO HOMECARE LTD,979.09,PHY LTS 65+,HOMECARE - SPOT,2102690774
07.07.2017,ADULT SOCIAL CARE,METRO HOMECARE LTD,"1,020.46",PHY LTS 65+,HOMECARE - SPOT,2102690826
07.07.2017,ADULT SOCIAL CARE,METRO HOMECARE LTD,"1,061.83",PHY LTS 65+,HOMECARE - SPOT,2102690778
07.07.2017,ADULT SOCIAL CARE,METRO HOMECARE LTD,"1,061.83",PHY LTS 65+,HOMECARE - SPOT,2102690792
07.07.2017,ADULT SOCIAL CARE,METRO HOMECARE LTD,"1,061.83",PHY LTS 65+,HOMECARE - SPOT,2102690801
07.07.2017,ADULT SOCIAL CARE,METRO HOMECARE LTD,"1,103.20",PHY LTS 65+,HOMECARE - SPOT,2102690779
07.07.2017,ADULT SOCIAL CARE,METRO HOMECARE LTD,"1,103.20",PHY LTS 65+,HOMECARE - SPOT,2102690811
07.07.2017,ADULT SOCIAL CARE,METRO HOMECARE LTD,"1,723.75",PHY LTS 65+,HOMECARE - SPOT,2102690803
07.07.2017,ADULT SOCIAL CARE,METRO HOMECARE LTD,"2,293.20",PHY LTS 65+,HOMECARE - SPOT,2102691595
07.07.2017,ADULT SOCIAL CARE,WESTMINSTER HOMECARE LTD,579.17,PHY LTS 65+,HOMECARE - SPOT,2102691592
07.07.2017,ADULT SOCIAL CARE,WESTMINSTER HOMECARE LTD,"1,174.32",PHY LTS 65+,HOMECARE - SPOT,2102691110
07.07.2017,ADULT SOCIAL CARE,RA CARE SERVICES LTD,549.92,PHY LTS 65+,HOMECARE - SPOT,2102691871
07.07.2017,ADULT SOCIAL CARE,REDACTED PERSONAL DATA,645.6,PHY LTS 65+,HOMECARE - SPOT,2102691440
07.07.2017,ADULT SOCIAL CARE,REDACTED PERSONAL DATA,"1,081.00",PHY LTS 65+,HOMECARE - SPOT,2102691224
07.07.2017,ADULT SOCIAL CARE,SWK DISABLEMENT ASSN,"1,620.32",PHY LTS 65+,PAYMENTS TO CLIENTS (DIRECT PAYMENTS),2102691487
07.07.2017,ADULT SOCIAL CARE,PEOPLE PLUS,"-3,527.23",PHY LTS 65+,PAYMENTS TO CLIENTS (DIRECT PAYMENTS),2102690836
07.07.2017,ADULT SOCIAL CARE,PEOPLE PLUS,263.92,PHY LTS 65+,PAYMENTS TO CLIENTS (DIRECT PAYMENTS),2102691761
07.07.2017,ADULT SOCIAL CARE,PEOPLE PLUS,326.6,PHY LTS 65+,PAYMENTS TO CLIENTS (DIRECT PAYMENTS),2102691692
07.07.2017,ADULT SOCIAL CARE,PEOPLE PLUS,365.76,PHY LTS 65+,PAYMENTS TO CLIENTS (DIRECT PAYMENTS),2102691695
07.07.2017,ADULT SOCIAL CARE,PEOPLE PLUS,407.56,PHY LTS 65+,PAYMENTS TO CLIENTS (DIRECT PAYMENTS),2102691042
07.07.2017,ADULT SOCIAL CARE,PEOPLE PLUS,410.2,PHY LTS 65+,PAYMENTS TO CLIENTS (DIRECT PAYMENTS),2102691306
07.07.2017,ADULT SOCIAL CARE,PEOPLE PLUS,441.56,PHY LTS 65+,PAYMENTS TO CLIENTS (DIRECT PAYMENTS),2102691154
07.07.2017,ADULT SOCIAL CARE,PEOPLE PLUS,472.88,PHY LTS 65+,PAYMENTS TO CLIENTS (DIRECT PAYMENTS),2102691438
07.07.2017,ADULT SOCIAL CARE,PEOPLE PLUS,472.88,PHY LTS 65+,PAYMENTS TO CLIENTS (DIRECT PAYMENTS),2102691678
07.07.2017,ADULT SOCIAL CARE,PEOPLE PLUS,535.64,PHY LTS 65+,PAYMENTS TO CLIENTS (DIRECT PAYMENTS),2102691826
07.07.2017,ADULT SOCIAL CARE,PEOPLE PLUS,543.4,PHY LTS 65+,PAYMENTS TO CLIENTS (DIRECT PAYMENTS),2102691401
07.07.2017,ADULT SOCIAL CARE,PEOPLE PLUS,543.4,PHY LTS 65+,PAYMENTS TO CLIENTS (DIRECT PAYMENTS),2102691808
07.07.2017,ADULT SOCIAL CARE,PEOPLE PLUS,546.04,PHY LTS 65+,PAYMENTS TO CLIENTS (DIRECT PAYMENTS),2102691218
07.07.2017,ADULT SOCIAL CARE,PEOPLE PLUS,546.04,PHY LTS 65+,PAYMENTS TO CLIENTS (DIRECT PAYMENTS),2102691637
07.07.2017,ADULT SOCIAL CARE,PEOPLE PLUS,556.52,PHY LTS 65+,PAYMENTS TO CLIENTS (DIRECT PAYMENTS),2102691229
07.07.2017,ADULT SOCIAL CARE,PEOPLE PLUS,556.52,PHY LTS 65+,PAYMENTS TO CLIENTS (DIRECT PAYMENTS),2102691317
07.07.2017,ADULT SOCIAL CARE,PEOPLE PLUS,564.32,PHY LTS 65+,PAYMENTS TO CLIENTS (DIRECT PAYMENTS),2102691612
07.07.2017,ADULT SOCIAL CARE,PEOPLE PLUS,566.96,PHY LTS 65+,PAYMENTS TO CLIENTS (DIRECT PAYMENTS),2102691045
07.07.2017,ADULT SOCIAL CARE,PEOPLE PLUS,577.4,PHY LTS 65+,PAYMENTS TO CLIENTS (DIRECT PAYMENTS),2102691162
07.07.2017,ADULT SOCIAL CARE,PEOPLE PLUS,585.2,PHY LTS 65+,PAYMENTS TO CLIENTS (DIRECT PAYMENTS),2102691741
07.07.2017,ADULT SOCIAL CARE,PEOPLE PLUS,619.2,PHY LTS 65+,PAYMENTS TO CLIENTS (DIRECT PAYMENTS),2102691532
07.07.2017,ADULT SOCIAL CARE,PEOPLE PLUS,619.2,PHY LTS 65+,PAYMENTS TO CLIENTS (DIRECT PAYMENTS),2102691570
07.07.2017,ADULT SOCIAL CARE,PEOPLE PLUS,650.56,PHY LTS 65+,PAYMENTS TO CLIENTS (DIRECT PAYMENTS),2102691169
07.07.2017,ADULT SOCIAL CARE,PEOPLE PLUS,671.44,PHY LTS 65+,PAYMENTS TO CLIENTS (DIRECT PAYMENTS),2102691055
07.07.2017,ADULT SOCIAL CARE,PEOPLE PLUS,676.28,PHY LTS 65+,PAYMENTS TO CLIENTS (DIRECT PAYMENTS),2102691181
07.07.2017,ADULT SOCIAL CARE,PEOPLE PLUS,692.32,PHY LTS 65+,PAYMENTS TO CLIENTS (DIRECT PAYMENTS),2102691751
07.07.2017,ADULT SOCIAL CARE,PEOPLE PLUS,723.72,PHY LTS 65+,PAYMENTS TO CLIENTS (DIRECT PAYMENTS),2102691008
07.07.2017,ADULT SOCIAL CARE,PEOPLE PLUS,741.96,PHY LTS 65+,PAYMENTS TO CLIENTS (DIRECT PAYMENTS),2102691390
07.07.2017,ADULT SOCIAL CARE,PEOPLE PLUS,765.52,PHY LTS 65+,PAYMENTS TO CLIENTS (DIRECT PAYMENTS),2102690873
07.07.2017,ADULT SOCIAL CARE,PEOPLE PLUS,765.52,PHY LTS 65+,PAYMENTS TO CLIENTS (DIRECT PAYMENTS),2102691517
07.07.2017,ADULT SOCIAL CARE,PEOPLE PLUS,796.84,PHY LTS 65+,PAYMENTS TO CLIENTS (DIRECT PAYMENTS),2102691220
07.07.2017,ADULT SOCIAL CARE,PEOPLE PLUS,890.92,PHY LTS 65+,PAYMENTS TO CLIENTS (DIRECT PAYMENTS),2102691607
07.07.2017,ADULT SOCIAL CARE,PEOPLE PLUS,911.8,PHY LTS 65+,PAYMENTS TO CLIENTS (DIRECT PAYMENTS),2102690837
07.07.2017,ADULT SOCIAL CARE,PEOPLE PLUS,911.8,PHY LTS 65+,PAYMENTS TO CLIENTS (DIRECT PAYMENTS),2102691691
07.07.2017,ADULT SOCIAL CARE,PEOPLE PLUS,922.24,PHY LTS 65+,PAYMENTS TO CLIENTS (DIRECT PAYMENTS),2102691216
07.07.2017,ADULT SOCIAL CARE,PEOPLE PLUS,953.6,PHY LTS 65+,PAYMENTS TO CLIENTS (DIRECT PAYMENTS),2102691683
07.07.2017,ADULT SOCIAL CARE,PEOPLE PLUS,964.04,PHY LTS 65+,PAYMENTS TO CLIENTS (DIRECT PAYMENTS),2102691424
07.07.2017,ADULT SOCIAL CARE,PEOPLE PLUS,"1,012.28",PHY LTS 65+,PAYMENTS TO CLIENTS (DIRECT PAYMENTS),2102691477
07.07.2017,ADULT SOCIAL CARE,PEOPLE PLUS,"1,026.76",PHY LTS 65+,PAYMENTS TO CLIENTS (DIRECT PAYMENTS),2102691371
07.07.2017,ADULT SOCIAL CARE,PEOPLE PLUS,"1,077.68",PHY LTS 65+,PAYMENTS TO CLIENTS (DIRECT PAYMENTS),2102691746
07.07.2017,ADULT SOCIAL CARE,PEOPLE PLUS,"1,126.80",PHY LTS 65+,PAYMENTS TO CLIENTS (DIRECT PAYMENTS),2102690936
07.07.2017,ADULT SOCIAL CARE,PEOPLE PLUS,"1,135.60",PHY LTS 65+,PAYMENTS TO CLIENTS (DIRECT PAYMENTS),2102691192
07.07.2017,ADULT SOCIAL CARE,PEOPLE PLUS,"1,173.04",PHY LTS 65+,PAYMENTS TO CLIENTS (DIRECT PAYMENTS),2102690847
07.07.2017,ADULT SOCIAL CARE,PEOPLE PLUS,"1,288.00",PHY LTS 65+,PAYMENTS TO CLIENTS (DIRECT PAYMENTS),2102691060
07.07.2017,ADULT SOCIAL CARE,PEOPLE PLUS,"1,288.00",PHY LTS 65+,PAYMENTS TO CLIENTS (DIRECT PAYMENTS),2102691718
07.07.2017,ADULT SOCIAL CARE,PEOPLE PLUS,"1,834.00",PHY LTS 65+,PAYMENTS TO CLIENTS (DIRECT PAYMENTS),2102691163
07.07.2017,ADULT SOCIAL CARE,PEOPLE PLUS,"2,211.44",PHY LTS 65+,PAYMENTS TO CLIENTS (DIRECT PAYMENTS),2102691247
07.07.2017,ADULT SOCIAL CARE,FRESH IDEAS & SOLUTIONS SERVICES CIC,647.92,PHY LTS 65+,PAYMENTS TO CLIENTS (DIRECT PAYMENTS),2102691668
07.07.2017,ADULT SOCIAL CARE,FRESH IDEAS & SOLUTIONS SERVICES CIC,849.12,PHY LTS 65+,PAYMENTS TO CLIENTS (DIRECT PAYMENTS),2102691343
07.07.2017,ADULT SOCIAL CARE,REDACTED PERSONAL DATA,542.52,PHY LTS 65+,PAYMENTS TO CLIENTS (DIRECT PAYMENTS),2102691234
07.07.2017,ADULT SOCIAL CARE,REDACTED PERSONAL DATA,"1,149.52",PHY LTS 65+,PAYMENTS TO CLIENTS (DIRECT PAYMENTS),2102691326
07.07.2017,ADULT SOCIAL CARE,REDACTED PERSONAL DATA,385.76,PHY LTS 65+,PAYMENTS TO CLIENTS (DIRECT PAYMENTS),2102691923
07.07.2017,ADULT SOCIAL CARE,REDACTED PERSONAL DATA,605.2,PHY LTS 65+,PAYMENTS TO CLIENTS (DIRECT PAYMENTS),2102691763
07.07.2017,ADULT SOCIAL CARE,REDACTED PERSONAL DATA,"1,274.00",PHY LTS 65+,PAYMENTS TO CLIENTS (DIRECT PAYMENTS),2102690935
07.07.2017,ADULT SOCIAL CARE,REDACTED PERSONAL DATA,802.84,PHY LTS 65+,PAYMENTS TO CLIENTS (DIRECT PAYMENTS),2102691918
07.07.2017,ADULT SOCIAL CARE,REDACTED PERSONAL DATA,"1,107.72",PHY LTS 65+,PAYMENTS TO CLIENTS (DIRECT PAYMENTS),2102691365
07.07.2017,ADULT SOCIAL CARE,REDACTED PERSONAL DATA,417.72,PHY LTS 65+,PAYMENTS TO CLIENTS (DIRECT PAYMENTS),2102691971
07.07.2017,ADULT SOCIAL CARE,REDACTED PERSONAL DATA,783.76,PHY LTS 65+,PAYMENTS TO CLIENTS (DIRECT PAYMENTS),2102691931
07.07.2017,ADULT SOCIAL CARE,REDACTED PERSONAL DATA,"1,621.60",PHY LTS 65+,PAYMENTS TO CLIENTS (DIRECT PAYMENTS),2102691797
07.07.2017,ADULT SOCIAL CARE,REDACTED PERSONAL DATA,"1,023.20",PHY LTS 65+,PAYMENTS TO CLIENTS (DIRECT PAYMENTS),2102691538
07.07.2017,ADULT SOCIAL CARE,REDACTED PERSONAL DATA,479.8,PHY LTS 65+,PAYMENTS TO CLIENTS (DIRECT PAYMENTS),2102691970
07.07.2017,ADULT SOCIAL CARE,REDACTED PERSONAL DATA,830.68,PHY LTS 65+,PAYMENTS TO CLIENTS (DIRECT PAYMENTS),2102691418
07.07.2017,ADULT SOCIAL CARE,REDACTED PERSONAL DATA,"1,190.40",PHY LTS 65+,PAYMENTS TO CLIENTS (DIRECT PAYMENTS),2102691909
07.07.2017,ADULT SOCIAL CARE,REDACTED PERSONAL DATA,829.4,PHY LTS 65+,PAYMENTS TO CLIENTS (DIRECT PAYMENTS),2102691881
07.07.2017,ADULT SOCIAL CARE,REDACTED PERSONAL DATA,355,PHY LTS 65+,PAYMENTS TO CLIENTS (DIRECT PAYMENTS),2102691966
07.07.2017,ADULT SOCIAL CARE,REDACTED PERSONAL DATA,668.8,PHY LTS 65+,PAYMENTS TO CLIENTS (DIRECT PAYMENTS),2102691756
07.07.2017,ADULT SOCIAL CARE,REDACTED PERSONAL DATA,787.2,PHY LTS 65+,PAYMENTS TO CLIENTS (DIRECT PAYMENTS),2102691515
07.07.2017,ADULT SOCIAL CARE,REDACTED PERSONAL DATA,"2,215.40",PHY LTS 65+,PAYMENTS TO CLIENTS (DIRECT PAYMENTS),2102691857
07.07.2017,ADULT SOCIAL CARE,REDACTED PERSONAL DATA,883.48,PHY LTS 65+,PAYMENTS TO CLIENTS (DIRECT PAYMENTS),2102691512
07.07.2017,ADULT SOCIAL CARE,REDACTED PERSONAL DATA,919.6,PHY LTS 65+,PAYMENTS TO CLIENTS (DIRECT PAYMENTS),2102691130
07.07.2017,ADULT SOCIAL CARE,REDACTED PERSONAL DATA,584.04,PHY LTS 65+,PAYMENTS TO CLIENTS (DIRECT PAYMENTS),2102691956
07.07.2017,ADULT SOCIAL CARE,REDACTED PERSONAL DATA,"2,334.48",PHY LTS 65+,PAYMENTS TO CLIENTS (DIRECT PAYMENTS),2102691899
07.07.2017,ADULT SOCIAL CARE,REDACTED PERSONAL DATA,"1,106.80",PHY LTS 65+,PAYMENTS TO CLIENTS (DIRECT PAYMENTS),2102691284
07.07.2017,ADULT SOCIAL CARE,REDACTED PERSONAL DATA,"1,371.76",PHY LTS 65+,PAYMENTS TO CLIENTS (DIRECT PAYMENTS),2102691037
07.07.2017,ADULT SOCIAL CARE,REDACTED PERSONAL DATA,982.32,PHY LTS 65+,PAYMENTS TO CLIENTS (DIRECT PAYMENTS),2102691551
07.07.2017,ADULT SOCIAL CARE,REDACTED PERSONAL DATA,351,PHY LTS 65+,PAYMENTS TO CLIENTS (DIRECT PAYMENTS),2102692008
07.07.2017,ADULT SOCIAL CARE,REDACTED PERSONAL DATA,768.8,PHY LTS 65+,PAYMENTS TO CLIENTS (DIRECT PAYMENTS),2102691651
07.07.2017,ADULT SOCIAL CARE,REDACTED PERSONAL DATA,740,PHY LTS 65+,PAYMENTS TO CLIENTS (DIRECT PAYMENTS),2102691134
07.07.2017,ADULT SOCIAL CARE,REDACTED PERSONAL DATA,"1,356.72",PHY LTS 65+,PAYMENTS TO CLIENTS (DIRECT PAYMENTS),2102691983
07.07.2017,ADULT SOCIAL CARE,CHOICE SUPPORT,"4,347.44",PHY LTS 65+,SUPPORTED LIVING,2102691446
07.07.2017,ADULT SOCIAL CARE,HESTIA HOUSING & SUPPORT,"1,198.32",PHY LTS 65+,SUPPORTED LIVING,2102691853
07.07.2017,ADULT SOCIAL CARE,JANE RAMSAY,565.6,SAFEGUARDING TEAM,OTHER CONTRACTORS,5902257419
07.07.2017,ADULT SOCIAL CARE,4SONS CARE ASSESSMENT LTD,418,SAFEGUARDING TEAM,OTHER CONTRACTORS,5902257350
07.07.2017,ADULT SOCIAL CARE,4SONS CARE ASSESSMENT LTD,418,SAFEGUARDING TEAM,OTHER CONTRACTORS,5902257351
07.07.2017,ADULT SOCIAL CARE,METRO HOMECARE LTD,324.07,SEN LTS 18-64,HOMECARE - SPOT,2102690813
07.07.2017,ADULT SOCIAL CARE,LEWISHAM INDO CHINESE COMMUNITY,258.72,SEN LTS 65+,DAYCARE,2102691887
07.07.2017,ADULT SOCIAL CARE,AGE UK  LEWISHAM & SOUTHWARK,360,SOCIAL ISOLATION,DAYCARE,2102691049
07.07.2017,ADULT SOCIAL CARE,AGE UK  LEWISHAM & SOUTHWARK,360,SOCIAL ISOLATION,DAYCARE,2102691388
07.07.2017,ADULT SOCIAL CARE,AGE UK  LEWISHAM & SOUTHWARK,540,SOCIAL ISOLATION,DAYCARE,2102691039
07.07.2017,ADULT SOCIAL CARE,AGE UK  LEWISHAM & SOUTHWARK,540,SOCIAL ISOLATION,DAYCARE,2102691523
07.07.2017,ADULT SOCIAL CARE,AGE UK  LEWISHAM & SOUTHWARK,540,SOCIAL ISOLATION,DAYCARE,2102691543
07.07.2017,ADULT SOCIAL CARE,AGE UK  LEWISHAM & SOUTHWARK,540,SOCIAL ISOLATION,DAYCARE,2102691783
07.07.2017,ADULT SOCIAL CARE,AGE UK  LEWISHAM & SOUTHWARK,900,SOCIAL ISOLATION,DAYCARE,2102691105
07.07.2017,ADULT SOCIAL CARE,BLACK ELDER GROUP SWK,368,SOCIAL ISOLATION,DAYCARE,2102691781
07.07.2017,ADULT SOCIAL CARE,SWK DISABLEMENT ASSN,"1,207.88",SOCIAL ISOLATION,HOMECARE - C&V,2102691322
07.07.2017,ADULT SOCIAL CARE,FRESH IDEAS & SOLUTIONS SERVICES CIC,597.2,SOCIAL ISOLATION,HOMECARE - C&V,2102691662
07.07.2017,ADULT SOCIAL CARE,WESTMINSTER HOMECARE LTD,"2,013.12",SOCIAL ISOLATION,HOMECARE - C&V,2102691476
07.07.2017,ADULT SOCIAL CARE,CARE DIRECT UK LTD,262.01,SOCIAL ISOLATION,HOMECARE - SPOT,2102690648
07.07.2017,ADULT SOCIAL CARE,CARE DIRECT UK LTD,268.91,SOCIAL ISOLATION,HOMECARE - SPOT,2102690644
07.07.2017,ADULT SOCIAL CARE,METRO HOMECARE LTD,289.59,SOCIAL ISOLATION,HOMECARE - SPOT,2102690752
07.07.2017,ADULT SOCIAL CARE,METRO HOMECARE LTD,409.52,SOCIAL ISOLATION,HOMECARE - SPOT,2102690999
07.07.2017,ADULT SOCIAL CARE,METRO HOMECARE LTD,537.81,SOCIAL ISOLATION,HOMECARE - SPOT,2102690768
07.07.2017,ADULT SOCIAL CARE,METRO HOMECARE LTD,558.5,SOCIAL ISOLATION,HOMECARE - SPOT,2102690809
07.07.2017,ADULT SOCIAL CARE,PEOPLE PLUS,271.72,SOCIAL ISOLATION,PAYMENTS TO CLIENTS (DIRECT PAYMENTS),2102690955
07.07.2017,ADULT SOCIAL CARE,PEOPLE PLUS,534.64,SOCIAL ISOLATION,PAYMENTS TO CLIENTS (DIRECT PAYMENTS),2102691812
07.07.2017,ADULT SOCIAL CARE,PEOPLE PLUS,546.04,SOCIAL ISOLATION,PAYMENTS TO CLIENTS (DIRECT PAYMENTS),2102691335
07.07.2017,ADULT SOCIAL CARE,PEOPLE PLUS,"1,329.80",SOCIAL ISOLATION,PAYMENTS TO CLIENTS (DIRECT PAYMENTS),2102691524
07.07.2017,ADULT SOCIAL CARE,PEOPLE PLUS,"3,193.20",SOCIAL ISOLATION,PAYMENTS TO CLIENTS (DIRECT PAYMENTS),2102691019
07.07.2017,ADULT SOCIAL CARE,REDACTED PERSONAL DATA,614.4,SOCIAL ISOLATION,PAYMENTS TO CLIENTS (DIRECT PAYMENTS),2102691919
07.07.2017,ADULT SOCIAL CARE,REDACTED PERSONAL DATA,839.6,SOCIAL ISOLATION,PAYMENTS TO CLIENTS (DIRECT PAYMENTS),2102691998
07.07.2017,ADULT SOCIAL CARE,REDACTED PERSONAL DATA,307.2,SOCIAL ISOLATION,PAYMENTS TO CLIENTS (DIRECT PAYMENTS),2102691886
07.07.2017,ADULT SOCIAL CARE,REDACTED PERSONAL DATA,"1,000.00",SOCIAL ISOLATION,PAYMENTS TO CLIENTS (DIRECT PAYMENTS),2102691083
07.07.2017,ADULT SOCIAL CARE,PEOPLE PLUS,253.68,TRANSITION 14YRS TO 18YRS,PAYMENTS TO CLIENTS (DIRECT PAYMENTS),2102690571
07.07.2017,ADULT SOCIAL CARE,PEOPLE PLUS,308.88,TRANSITION 14YRS TO 18YRS,PAYMENTS TO CLIENTS (DIRECT PAYMENTS),2102690567
07.07.2017,ADULT SOCIAL CARE,PEOPLE PLUS,333.6,TRANSITION 14YRS TO 18YRS,PAYMENTS TO CLIENTS (DIRECT PAYMENTS),2102690563
07.07.2017,ADULT SOCIAL CARE,PEOPLE PLUS,348.6,TRANSITION 14YRS TO 18YRS,PAYMENTS TO CLIENTS (DIRECT PAYMENTS),2102690573
07.07.2017,ADULT SOCIAL CARE,PEOPLE PLUS,383.44,TRANSITION 14YRS TO 18YRS,PAYMENTS TO CLIENTS (DIRECT PAYMENTS),2102690505
07.07.2017,ADULT SOCIAL CARE,PEOPLE PLUS,393.52,TRANSITION 14YRS TO 18YRS,PAYMENTS TO CLIENTS (DIRECT PAYMENTS),2102690529
07.07.2017,ADULT SOCIAL CARE,PEOPLE PLUS,513.36,TRANSITION 14YRS TO 18YRS,PAYMENTS TO CLIENTS (DIRECT PAYMENTS),2102690607
07.07.2017,ADULT SOCIAL CARE,PEOPLE PLUS,563.2,TRANSITION 14YRS TO 18YRS,PAYMENTS TO CLIENTS (DIRECT PAYMENTS),2102690501
07.07.2017,ADULT SOCIAL CARE,PEOPLE PLUS,590.4,TRANSITION 14YRS TO 18YRS,PAYMENTS TO CLIENTS (DIRECT PAYMENTS),2102690577
